Workbook

Sheet Schichtplan
A1: 2026 | I1: A | AA1: B | AR1: C
C2: R1 - R4 | F2: RO 5-6
I3: Biskuitlinien RO 5+6 | M3: Glattbrandlinien RO 1-4 | AA3: Biskuitlinien RO 5+6 | AE3: Glattbrandlinien RO 1-4 | AR3: Biskuitlinien RO 5+6 | AV3: Glattbrandlinien RO 1-4 | BJ3: ROH
C4: F | D4: S | E4: N | F4: F | G4: S | H4: N | I4: 9 | J4: =I4+1 -> 10 | K4: =J4+1 -> 11 | L4: 12 | M4: =L4+1 -> 13 | N4: =M4+1 -> 14 | O4: =N4+1 -> 15 | P4: =O4+1 -> 16 | Q4: =P4+1 -> 17 | R4: =Q4+1 -> 18 | S4: =R4+1 -> 19 | T4: =S4+1 -> 20 | U4: =T4+1 -> 21 | V4: =U4+1 -> 22 | W4: =V4+1 -> 23 | X4: =W4+1 -> 24 | Y4: =X4+1 -> 25 | Z4: =Y4+1 -> 26 | AA4: =Z4+1 -> 27 | AB4: =AA4+1 -> 28 | AC4: =AB4+1 -> 29 | AD4: =AC4+1 -> 30 | AE4: =AD4+1 -> 31 | AF4: =AE4+1 -> 32 | AG4: =AF4+1 -> 33 | AH4: =AG4+1 -> 34 | AI4: =AH4+1 -> 35 | AJ4: =AI4+1 -> 36 | AK4: =AJ4+1 -> 37 | AL4: =AK4+1 -> 38 | AM4: =AL4+1 -> 39 | AN4: =AM4+1 -> 40 | AO4: =AN4+1 -> 41 | AP4: =AO4+1 -> 42 | AQ4: =AP4+1 -> 43 | AR4: =AQ4+1 -> 44 | AS4: =AR4+1 -> 45 | AT4: =AS4+1 -> 46 | AU4: =AT4+1 -> 47 | AV4: =AU4+1 -> 48 | AW4: =AV4+1 -> 49 | AX4: =AW4+1 -> 50 | AY4: =AX4+1 -> 51 | AZ4: =AY4+1 -> 52 | BA4: =AZ4+1 -> 53 | BB4: =BA4+1 -> 54 | BC4: =BB4+1 -> 55 | BD4: =BC4+1 -> 56 | BE4: =BD4+1 -> 57 | BF4: =BE4+1 -> 58 | BG4: =BF4+1 -> 59 | BH4: =BG4+1 -> 60 | BI4: =BH4+1 -> 61 | BJ4: =BI4+1 -> 62 | BK4: =BJ4+1 -> 63 | BL4: =BK4+1 -> 64 | BM4: =BL4+1 -> 65 | BN4: =BM4+1 -> 66 | BO4: =BN4+1 -> 67 | BP4: =BO4+1 -> 68 | BQ4: =BP4+1 -> 69 | BR4: =BQ4+1 -> 70 | BS4: =BR4+1 -> 71
A5: 2026-01-01 | B5: =TEXT(A5,"TTT") -> Do | C5: =COUNTIF($M5:$Z5,"f*")+COUNTIF($AE5:$AQ5,"f*")+COUNTIF($AV5:$BG5,"f*") -> 0 | D5: =COUNTIF($M5:$Z5,"s*")+COUNTIF($AE5:$AQ5,"s*")+COUNTIF($AV5:$BG5,"s*") -> 0 | E5: =COUNTIF($M5:$Z5,"n*")+COUNTIF($AE5:$AQ5,"n*")+COUNTIF($AV5:$BG5,"n*") -> 0 | F5: =COUNTIF($I5:K5,"f*")+COUNTIF($AA5:$AC5,"f*")+COUNTIF($AR5:$AT5,"f*") -> 0 | G5: =COUNTIF($I5:K5,"s*")+COUNTIF($AA5:$AC5,"s*")+COUNTIF($AR5:$AT5,"s*") -> 0 | H5: =COUNTIF($I5:K5,"n*")+COUNTIF($AA5:$AC5,"n*")+COUNTIF($AR5:$AT5,"n*") -> 0 | I5: H | J5: H | K5: H | L5: H | M5: H | N5: H | O5: H | P5: H | Q5: H | R5: H | S5: H | T5: H | U5: H | V5: H | W5: H | X5: H | Y5: H | Z5: H | AA5: H | AB5: H | AC5: H | AD5: H | AE5: H | AF5: H | AG5: H | AH5: H | AI5: H | AJ5: H | AK5: H | AL5: H | AM5: H | AN5: H | AO5: H | AP5: H | AQ5: H | AR5: H | AS5: H | AT5: H | AU5: H | AV5: H | AW5: H | AX5: H | AY5: H | AZ5: H | BA5: H | BB5: H | BC5: H | BD5: H | BE5: H | BF5: H | BG5: H | BH5: =TEXT(A5,"TTT") -> Do | BI5: =DATEVALUE("1.1."&A1) -> 2026-01-01 | BJ5: H | BK5: H | BL5: H | BM5: =WEEKNUM(BI5) -> 1 | BN5: H | BO5: H | BP5: H | BQ5: H | BR5: H | BS5: H | CG5: Jan | CH5: =COUNTIF(I5:BL35,"K") -> 1 | CI5: =COUNTA(I5:BL35)-COUNTA(BH5:BI35) -> 1205 | CJ5: =CH5/CI5*100 -> 0.08298755187
A6: =A5+1 -> 2026-01-02 | B6: =TEXT(A6,"TTT") -> Fr | C6: 1 | D6: 0 | E6: 0 | F6: =COUNTIF($I6:K6,"f*")+COUNTIF($AA6:$AC6,"f*")+COUNTIF($AR6:$AT6,"f*") -> 0 | G6: =COUNTIF($I6:K6,"s*")+COUNTIF($AA6:$AC6,"s*")+COUNTIF($AR6:$AT6,"s*") -> 0 | H6: =COUNTIF($I6:K6,"n*")+COUNTIF($AA6:$AC6,"n*")+COUNTIF($AR6:$AT6,"n*") -> 0 | I6: U | J6: U | K6: U | L6: U | M6: U | N6: U | O6: U | P6: U | Q6: U | R6: U | S6: U | T6: U | U6: U | V6: x | W6: U | X6: U | Y6: U | Z6: U | AA6: U | AB6: U | AC6: U | AD6: U | AE6: U | AF6: U | AG6: U | AH6: U | AI6: U | AJ6: U | AK6: U | AL6: U | AM6: U | AN6: U | AO6: U | AP6: U | AQ6: U | AR6: U | AS6: U | AT6: U | AU6: U | AV6: U | AW6: U | AX6: U | AY6: U | AZ6: U | BA6: U | BB6: U | BC6: U | BD6: U | BE6: F | BF6: U | BG6: U | BH6: Fr | BI6: =BI5+1 -> 2026-01-02 | BJ6: U | BK6: U | BL6: U | BM6: =WEEKNUM(BI6) -> 1 | BN6: U | BO6: U | BP6: U | BQ6: U | BR6: U | BS6: U | CG6: Feb | CH6: =COUNTIF(I36:BL63,"K") -> 0 | CI6: =COUNTA(I36:BL63)-COUNTA(BH36:BI63) -> 1088 | CJ6: =CH6/CI6*100 -> 0
A7: =A6+1 -> 2026-01-03 | B7: Sa | C7: 2 | D7: 1 | E7: 1 | F7: =COUNTIF($I7:K7,"f*")+COUNTIF($AA7:$AC7,"f*")+COUNTIF($AR7:$AT7,"f*") -> 0 | G7: =COUNTIF($I7:K7,"s*")+COUNTIF($AA7:$AC7,"s*")+COUNTIF($AR7:$AT7,"s*") -> 0 | H7: =COUNTIF($I7:K7,"n*")+COUNTIF($AA7:$AC7,"n*")+COUNTIF($AR7:$AT7,"n*") -> 0 | M7: F | AE7: S | AY7: N | BE7: F | BH7: Sa | BI7: =BI6+1 -> 2026-01-03 | CG7: Mär | CH7: =COUNTIF(I64:BM94,"K") -> 0 | CI7: =COUNTA(I64:BL94)-COUNTA(BH64:BI94) -> 1197 | CJ7: 0
A8: 2026-01-04 | B8: So | C8: 1 | D8: 1 | E8: 4 | F8: =COUNTIF($I8:K8,"f*")+COUNTIF($AA8:$AC8,"f*")+COUNTIF($AR8:$AT8,"f*") -> 0 | G8: =COUNTIF($I8:K8,"s*")+COUNTIF($AA8:$AC8,"s*")+COUNTIF($AR8:$AT8,"s*") -> 0 | H8: =COUNTIF($I8:K8,"n*")+COUNTIF($AA8:$AC8,"n*")+COUNTIF($AR8:$AT8,"n*") -> 0 | O8: F | AG8: S | AV8: N | AZ8: N | BE8: N | BG8: N | BH8: So | BI8: 2026-01-04 | BM8: 2 | CG8: Apr | CH8: =COUNTIF(I95:BM124,"K") -> 0 | CI8: =COUNTA(I95:BL124)-COUNTA(BH95:BI124) -> 1196 | CJ8: =CH8/CI8*100 -> 0
A9: 2026-01-05 | B9: Mo | C9: 10 | D9: 12 | E9: 10 | F9: =COUNTIF($I9:L9,"f*")+COUNTIF($AA9:$AD9,"f*")+COUNTIF($AR9:$AU9,"f*") -> 3 | G9: =COUNTIF($I9:L9,"s*")+COUNTIF($AA9:$AD9,"s*")+COUNTIF($AR9:$AU9,"s*") -> 3 | H9: =COUNTIF($I9:L9,"n*")+COUNTIF($AA9:$AD9,"n*")+COUNTIF($AR9:$AU9,"n*") -> 4 | I9: F+ | J9: F | K9: F | L9: u | M9: F | N9: .F | O9: F | P9: F+ | Q9: K | R9: F | S9: .F+ | T9: F+ | U9: F+ | V9: F | W9: F | X9: .F | Y9: F | Z9: F | AA9: S | AB9: S | AC9: S | AD9: .S | AE9: S | AF9: S | AG9: S | AH9: S | AI9: S | AJ9: S | AK9: .S | AL9: S | AM9: S | AN9: S | AO9: S | AP9: S | AQ9: S | AR9: N | AS9: N | AT9: N | AU9: N | AV9: N | AW9: A | AX9: N | AY9: N | AZ9: N | BA9: N | BB9: N | BC9: N | BD9: U | BE9: N | BF9: N | BG9: N | BH9: Mo | BI9: 2026-01-05 | BJ9: F | BK9: U | BL9: F | BM9: =WEEKNUM(BI10) -> 2 | BN9: F | BO9: .S | BP9: S | BQ9: T | BR9: T | BS9: T | CG9: Mai | CH9: =COUNTIF(I125:BM155,"K") -> 0 | CI9: =COUNTA(I125:BL155)-COUNTA(BH125:BI155) -> 1144 | CJ9: 0
A10: 2026-01-06 | B10: Di | C10: =COUNTIF($M10:$Z10,"f*")+COUNTIF($AE10:$AQ10,"f*")+COUNTIF($AV10:$BG10,"f*") -> 10 | D10: =COUNTIF($M10:$Z10,"s*")+COUNTIF($AE10:$AQ10,"s*")+COUNTIF($AV10:$BG10,"s*") -> 11 | E10: 10 | F10: =COUNTIF($I10:L10,"f*")+COUNTIF($AA10:$AD10,"f*")+COUNTIF($AR10:$AU10,"f*") -> 4 | G10: =COUNTIF($I10:L10,"s*")+COUNTIF($AA10:$AD10,"s*")+COUNTIF($AR10:$AU10,"s*") -> 2 | H10: =COUNTIF($I10:L10,"n*")+COUNTIF($AA10:$AD10,"n*")+COUNTIF($AR10:$AU10,"n*") -> 4 | I10: F | J10: F | K10: F | L10: F | M10: u | N10: .F | O10: F | P10: F | Q10: F | R10: F | S10: .F | T10: F | U10: F | V10: F | W10: F | X10: .F | Y10: F | Z10: F | AA10: A | AB10: S | AC10: S | AD10: .S | AE10: S | AF10: S | AG10: S | AH10: S | AI10: S | AJ10: S | AK10: .S | AL10: S | AM10: S | AN10: S | AO10: S | AP10: A | AQ10: S | AR10: N | AS10: N | AT10: N | AU10: N | AV10: N | AW10: N | AX10: N | AY10: N | AZ10: N | BA10: N | BB10: N | BC10: N | BD10: U | BE10: U | BF10: N | BG10: N | BH10: Di | BI10: 2026-01-06 | BJ10: A | BK10: T | BL10: F | BM10: 2 | BN10: F | BO10: .S | BP10: S | BQ10: T | BR10: T | BS10: T | CG10: Jun | CH10: =COUNTIF(I156:BM185,"K") -> 0 | CI10: =COUNTA(I156:BL185)-COUNTA(BH156:BI185) -> 1196 | CJ10: 0
A11: 2026-01-07 | B11: Mi | C11: 8 | D11: 11 | E11: 10 | F11: =COUNTIF($I11:L11,"f*")+COUNTIF($AA11:$AD11,"f*")+COUNTIF($AR11:$AU11,"f*") -> 4 | G11: =COUNTIF($I11:L11,"s*")+COUNTIF($AA11:$AD11,"s*")+COUNTIF($AR11:$AU11,"s*") -> 3 | H11: =COUNTIF($I11:L11,"n*")+COUNTIF($AA11:$AD11,"n*")+COUNTIF($AR11:$AU11,"n*") -> 4 | I11: F | J11: F | K11: F | L11: F | M11: F | N11: .F | O11: F | P11: F | Q11: F | R11: F | S11: .F | T11: F | U11: w | V11: z | W11: F | X11: .F | Y11: A | Z11: F | AA11: S | AB11: S | AC11: S | AD11: .S | AE11: S | AF11: S | AG11: S | AH11: S | AI11: S | AJ11: S | AK11: .S | AL11: S | AM11: A | AN11: S | AO11: S | AP11: S | AQ11: S | AR11: N | AS11: N | AT11: N | AU11: N | AV11: N | AW11: N | AX11: N | AY11: N | AZ11: N | BA11: N | BB11: N | BC11: N | BD11: U | BE11: U | BF11: N | BG11: N | BH11: Mi | BI11: 2026-01-07 | BJ11: F | BK11: T | BL11: F | BM11: 2 | BN11: F | BO11: .S | BP11: S | BQ11: T | BR11: T | BS11: T | CG11: Jul | CH11: =COUNTIF(I186:BM216,"K") -> 0 | CI11: =COUNTA(I186:BL216)-COUNTA(BH186:BI216) -> 1248 | CJ11: 0
A12: 2026-01-08 | B12: Do | C12: 9 | D12: 12 | E12: 11 | F12: =COUNTIF($I12:L12,"f*")+COUNTIF($AA12:$AD12,"f*")+COUNTIF($AR12:$AU12,"f*") -> 4 | G12: =COUNTIF($I12:L12,"s*")+COUNTIF($AA12:$AD12,"s*")+COUNTIF($AR12:$AU12,"s*") -> 2 | H12: =COUNTIF($I12:L12,"n*")+COUNTIF($AA12:$AD12,"n*")+COUNTIF($AR12:$AU12,"n*") -> 4 | I12: F | J12: F | K12: F | L12: F | M12: F | N12: .F | O12: a | P12: F | Q12: F | R12: F | S12: .F | T12: F | U12: F | V12: r | W12: F | X12: .F | Y12: F | Z12: F | AA12: S | AB12: A | AC12: S | AD12: .S | AE12: S | AF12: S | AG12: S | AH12: S | AI12: S | AJ12: S | AK12: .S | AL12: S | AM12: S | AN12: S | AO12: S | AP12: S | AQ12: S | AR12: N | AS12: N | AT12: N | AU12: N | AV12: N | AW12: N | AX12: N | AY12: N | AZ12: N | BA12: N | BB12: N | BC12: N | BD12: U | BE12: N | BF12: N | BG12: N | BH12: Do | BI12: 2026-01-08 | BJ12: F | BK12: T | BL12: F | BM12: 2 | BN12: F | BO12: .S | BP12: S | BQ12: T | BR12: T | BS12: T | CG12: Aug | CH12: =COUNTIF(I217:BM247,"K") -> 0 | CI12: =COUNTA(I217:BL247)-COUNTA(BH217:BI247) -> 1142 | CJ12: 0
A13: 2026-01-09 | B13: Fr | C13: 11 | D13: 12 | E13: 10 | F13: =COUNTIF($I13:L13,"f*")+COUNTIF($AA13:$AD13,"f*")+COUNTIF($AR13:$AU13,"f*") -> 4 | G13: =COUNTIF($I13:L13,"s*")+COUNTIF($AA13:$AD13,"s*")+COUNTIF($AR13:$AU13,"s*") -> 3 | H13: =COUNTIF($I13:L13,"n*")+COUNTIF($AA13:$AD13,"n*")+COUNTIF($AR13:$AU13,"n*") -> 4 | I13: F | J13: F | K13: F | L13: F | M13: F | N13: .F | O13: F | P13: F | Q13: F | R13: F | S13: .F | T13: F | U13: F | V13: F | W13: F | X13: .F | Y13: F | Z13: F | AA13: S | AB13: S | AC13: S | AD13: .S | AE13: S | AF13: S | AG13: S | AH13: S | AI13: S | AJ13: S | AK13: .S | AL13: S | AM13: S | AN13: S | AO13: S | AP13: S | AQ13: S | AR13: N | AS13: N | AT13: N | AU13: N | AV13: N | AW13: N | AX13: N | AY13: N | AZ13: N | BA13: N | BB13: N | BC13: U | BD13: U | BE13: N+ | BF13: N+ | BG13: N+ | BH13: Fr | BI13: 2026-01-09 | BJ13: F | BK13: T | BL13: F | BM13: 2 | BN13: F | BO13: .S | BP13: S | BQ13: T | BR13: T | BS13: T | CG13: Sep | CH13: =COUNTIF(I248:BM277,"K") -> 0 | CI13: =COUNTA(I248:BL277)-COUNTA(BH248:BI277) -> 1196 | CJ13: 0
A14: 2026-01-10 | B14: Sa | C14: 1 | D14: 0 | E14: 0 | F14: =COUNTIF($I14:L14,"f*")+COUNTIF($AA14:$AD14,"f*")+COUNTIF($AR14:$AU14,"f*") -> 0 | G14: =COUNTIF($I14:L14,"s*")+COUNTIF($AA14:$AD14,"s*")+COUNTIF($AR14:$AU14,"s*") -> 0 | H14: =COUNTIF($I14:L14,"n*")+COUNTIF($AA14:$AD14,"n*")+COUNTIF($AR14:$AU14,"n*") -> 0 | O14: F | BH14: Sa | BI14: 2026-01-10 | BM14: 3 | CG14: Okt | CH14: =COUNTIF(I278:BM308,"K") -> 0 | CI14: =COUNTA(I278:BL308)-COUNTA(BH278:BI308) -> 1197 | CJ14: 0
A15: 2026-01-11 | B15: So | C15: 0 | D15: 0 | E15: 1 | F15: =COUNTIF($I15:L15,"f*")+COUNTIF($AA15:$AD15,"f*")+COUNTIF($AR15:$AU15,"f*") -> 0 | G15: =COUNTIF($I15:L15,"s*")+COUNTIF($AA15:$AD15,"s*")+COUNTIF($AR15:$AU15,"s*") -> 0 | H15: =COUNTIF($I15:L15,"n*")+COUNTIF($AA15:$AD15,"n*")+COUNTIF($AR15:$AU15,"n*") -> 0 | M15: N | BH15: So | BI15: 2026-01-11 | BM15: 3 | CG15: Nov | CH15: =COUNTIF(I309:BM338,"K") -> 0 | CI15: =COUNTA(I309:BL338)-COUNTA(BH309:BI338) -> 1143 | CJ15: 0
A16: 2026-01-12 | B16: Mo | C16: 12 | D16: 11 | E16: 11 | F16: =COUNTIF($I16:L16,"f*")+COUNTIF($AA16:$AD16,"f*")+COUNTIF($AR16:$AU16,"f*") -> 3 | G16: =COUNTIF($I16:L16,"s*")+COUNTIF($AA16:$AD16,"s*")+COUNTIF($AR16:$AU16,"s*") -> 4 | H16: =COUNTIF($I16:L16,"n*")+COUNTIF($AA16:$AD16,"n*")+COUNTIF($AR16:$AU16,"n*") -> 4 | I16: N | J16: N | K16: N | L16: N | M16: N | N16: .N | O16: N | P16: N | Q16: N | R16: N | S16: .N | T16: N | U16: N | V16: N | W16: N | X16: .N | Y16: N | Z16: N | AA16: F+ | AB16: F | AC16: F | AD16: .F | AE16: F | AF16: F | AG16: F | AH16: F+ | AI16: F | AJ16: F+ | AK16: .F | AL16: F+ | AM16: F | AN16: F | AO16: F | AP16: F | AQ16: F | AR16: S | AS16: S | AT16: S | AU16: S | AV16: S | AW16: S | AX16: S | AY16: S | AZ16: S | BA16: S | BB16: S | BC16: S | BD16: A | BE16: S | BF16: S | BG16: S | BH16: Mo | BI16: 2026-01-12 | BJ16: F | BK16: T | BL16: F | BM16: 3 | BN16: S | BO16: .F | BP16: F | BQ16: A | BR16: T | BS16: T | CG16: Dez | CH16: =COUNTIF(I339:BM369,"K") -> 0 | CI16: =COUNTA(I339:BL369)-COUNTA(BH339:BI369) -> 1248 | CJ16: 0
A17: 2026-01-13 | B17: Di | C17: 11 | D17: 12 | E17: 11 | F17: =COUNTIF($I17:L17,"f*")+COUNTIF($AA17:$AD17,"f*")+COUNTIF($AR17:$AU17,"f*") -> 3 | G17: =COUNTIF($I17:L17,"s*")+COUNTIF($AA17:$AD17,"s*")+COUNTIF($AR17:$AU17,"s*") -> 4 | H17: =COUNTIF($I17:L17,"n*")+COUNTIF($AA17:$AD17,"n*")+COUNTIF($AR17:$AU17,"n*") -> 4 | I17: N | J17: N | K17: N | L17: N | M17: N | N17: .N | O17: N | P17: N | Q17: N | R17: N | S17: .N | T17: N | U17: N | V17: N | W17: N | X17: .N | Y17: N | Z17: N | AA17: F | AB17: F | AC17: F | AD17: .F | AE17: F | AF17: F | AG17: F | AH17: F | AI17: A | AJ17: F | AK17: .F | AL17: F | AM17: F | AN17: F | AO17: F | AP17: F | AQ17: F | AR17: S | AS17: S | AT17: S | AU17: S | AV17: S | AW17: S | AX17: S | AY17: S | AZ17: S | BA17: S | BB17: S | BC17: S | BD17: S | BE17: S | BF17: S | BG17: S | BH17: Di | BI17: 2026-01-13 | BJ17: F | BK17: T | BL17: F | BM17: 3 | BN17: S | BO17: .F | BP17: F | BQ17: T | BR17: T | BS17: T
A18: 2026-01-14 | B18: Mi | C18: 11 | D18: 12 | E18: 11 | F18: =COUNTIF($I18:L18,"f*")+COUNTIF($AA18:$AD18,"f*")+COUNTIF($AR18:$AU18,"f*") -> 3 | G18: =COUNTIF($I18:L18,"s*")+COUNTIF($AA18:$AD18,"s*")+COUNTIF($AR18:$AU18,"s*") -> 4 | H18: =COUNTIF($I18:L18,"n*")+COUNTIF($AA18:$AD18,"n*")+COUNTIF($AR18:$AU18,"n*") -> 4 | I18: N | J18: N | K18: N | L18: N | M18: N | N18: .N | O18: N | P18: N | Q18: N | R18: N | S18: .N | T18: N | U18: N | V18: N | W18: N | X18: .N | Y18: N | Z18: N | AA18: F | AB18: F | AC18: F | AD18: .F | AE18: F | AF18: A | AG18: F | AH18: F | AI18: F | AJ18: F | AK18: .F | AL18: F | AM18: F | AN18: F | AO18: F | AP18: F | AQ18: F | AR18: S | AS18: S | AT18: S | AU18: S | AV18: S | AW18: S | AX18: S | AY18: S | AZ18: S | BA18: S | BB18: S | BC18: S | BD18: S | BE18: S | BF18: S | BG18: S | BH18: Mi | BI18: 2026-01-14 | BJ18: F | BK18: T | BL18: F | BM18: 3 | BN18: S | BO18: .F | BP18: F | BQ18: T | BR18: T | BS18: T
A19: 2026-01-15 | B19: Do | C19: 11 | D19: 12 | E19: 11 | F19: =COUNTIF($I19:L19,"f*")+COUNTIF($AA19:$AD19,"f*")+COUNTIF($AR19:$AU19,"f*") -> 3 | G19: =COUNTIF($I19:L19,"s*")+COUNTIF($AA19:$AD19,"s*")+COUNTIF($AR19:$AU19,"s*") -> 4 | H19: =COUNTIF($I19:L19,"n*")+COUNTIF($AA19:$AD19,"n*")+COUNTIF($AR19:$AU19,"n*") -> 4 | I19: N | J19: N | K19: N | L19: N | M19: N | N19: .N | O19: N | P19: N | Q19: N | R19: N | S19: .N | T19: N | U19: N | V19: N | W19: N | X19: .N | Y19: N | Z19: N | AA19: F | AB19: F | AC19: F | AD19: .F | AE19: F | AF19: F | AG19: F | AH19: F | AI19: F | AJ19: F | AK19: .F | AL19: F | AM19: F | AN19: F | AO19: F | AP19: F | AQ19: A | AR19: S | AS19: S | AT19: S | AU19: S | AV19: S | AW19: S | AX19: S | AY19: S | AZ19: S | BA19: S | BB19: S | BC19: S | BD19: S | BE19: S | BF19: S | BG19: S | BH19: Do | BI19: 2026-01-15 | BJ19: F | BK19: T | BL19: F | BM19: 3 | BN19: S | BO19: .F | BP19: F | BQ19: T | BR19: T | BS19: T
A20: 2026-01-16 | B20: Fr | C20: 12 | D20: 11 | E20: 11 | F20: =COUNTIF($I20:L20,"f*")+COUNTIF($AA20:$AD20,"f*")+COUNTIF($AR20:$AU20,"f*") -> 3 | G20: =COUNTIF($I20:L20,"s*")+COUNTIF($AA20:$AD20,"s*")+COUNTIF($AR20:$AU20,"s*") -> 4 | H20: =COUNTIF($I20:L20,"n*")+COUNTIF($AA20:$AD20,"n*")+COUNTIF($AR20:$AU20,"n*") -> 4 | I20: N | J20: N | K20: N | L20: N | M20: N | N20: .N | O20: N | P20: N | Q20: N | R20: N | S20: .N | T20: N | U20: N | V20: N | W20: N | X20: .N | Y20: N | Z20: N | AA20: F | AB20: F | AC20: F | AD20: .F | AE20: F | AF20: F | AG20: F | AH20: F | AI20: F | AJ20: F | AK20: .F | AL20: F | AM20: F | AN20: F | AO20: F | AP20: F | AQ20: F | AR20: S | AS20: S | AT20: S | AU20: S | AV20: S | AW20: S | AX20: S | AY20: S | AZ20: S | BA20: S | BB20: A | BC20: S | BD20: S | BE20: S | BF20: S | BG20: S | BH20: Fr | BI20: 2026-01-16 | BJ20: F | BK20: T | BL20: F | BM20: 3 | BN20: S | BO20: .F | BP20: F | BQ20: T | BR20: T | BS20: T
A21: 2026-01-17 | B21: Sa | C21: 1 | D21: 0 | E21: 0 | F21: =COUNTIF($I21:L21,"f*")+COUNTIF($AA21:$AD21,"f*")+COUNTIF($AR21:$AU21,"f*") -> 0 | G21: =COUNTIF($I21:L21,"s*")+COUNTIF($AA21:$AD21,"s*")+COUNTIF($AR21:$AU21,"s*") -> 0 | H21: =COUNTIF($I21:L21,"n*")+COUNTIF($AA21:$AD21,"n*")+COUNTIF($AR21:$AU21,"n*") -> 0 | AF21: F | BH21: Sa | BI21: 2026-01-17 | BM21: 4
A22: 2026-01-18 | B22: So | C22: 0 | D22: 0 | E22: 1 | F22: =COUNTIF($I22:L22,"f*")+COUNTIF($AA22:$AD22,"f*")+COUNTIF($AR22:$AU22,"f*") -> 0 | G22: =COUNTIF($I22:L22,"s*")+COUNTIF($AA22:$AD22,"s*")+COUNTIF($AR22:$AU22,"s*") -> 0 | H22: =COUNTIF($I22:L22,"n*")+COUNTIF($AA22:$AD22,"n*")+COUNTIF($AR22:$AU22,"n*") -> 0 | AE22: N | BH22: So | BI22: 2026-01-18 | BM22: 4
A23: 2026-01-19 | B23: Mo | C23: 11 | D23: 11 | E23: 12 | F23: =COUNTIF($I23:L23,"f*")+COUNTIF($AA23:$AD23,"f*")+COUNTIF($AR23:$AU23,"f*") -> 4 | G23: =COUNTIF($I23:L23,"s*")+COUNTIF($AA23:$AD23,"s*")+COUNTIF($AR23:$AU23,"s*") -> 4 | H23: =COUNTIF($I23:L23,"n*")+COUNTIF($AA23:$AD23,"n*")+COUNTIF($AR23:$AU23,"n*") -> 3 | I23: S | J23: S | K23: S | L23: S | M23: S | N23: .S | O23: S | P23: S | Q23: S | R23: S | S23: .S | T23: S | U23: S | V23: S | W23: S | X23: .S | Y23: S | Z23: S | AA23: N | AB23: N | AC23: N | AD23: .N | AE23: N | AF23: N | AG23: N | AH23: N | AI23: N | AJ23: N | AK23: .N | AL23: N | AM23: N | AN23: N | AO23: N | AP23: N | AQ23: N | AR23: F+ | AS23: F | AT23: F | AU23: F | AV23: F | AW23: F | AX23: F | AY23: F | AZ23: F+ | BA23: F+ | BB23: F+ | BC23: F+ | BD23: F | BE23: F | BF23: A | BG23: F | BH23: Mo | BI23: 2026-01-19 | BJ23: F | BK23: T | BL23: F | BM23: 4 | BN23: F | BO23: .N | BP23: S | BQ23: T | BR23: T | BS23: T
A24: 2026-01-20 | B24: Di | C24: 12 | D24: 11 | E24: 12 | F24: =COUNTIF($I24:L24,"f*")+COUNTIF($AA24:$AD24,"f*")+COUNTIF($AR24:$AU24,"f*") -> 4 | G24: =COUNTIF($I24:L24,"s*")+COUNTIF($AA24:$AD24,"s*")+COUNTIF($AR24:$AU24,"s*") -> 4 | H24: =COUNTIF($I24:L24,"n*")+COUNTIF($AA24:$AD24,"n*")+COUNTIF($AR24:$AU24,"n*") -> 3 | I24: S | J24: S | K24: S | L24: S | M24: S | N24: .S | O24: S | P24: S | Q24: S | R24: S | S24: .S | T24: S | U24: S | V24: S | W24: S | X24: .S | Y24: S | Z24: S | AA24: N | AB24: N | AC24: N | AD24: .N | AE24: N | AF24: N | AG24: N | AH24: N | AI24: N | AJ24: N | AK24: .N | AL24: N | AM24: N | AN24: N | AO24: N | AP24: N | AQ24: N | AR24: F | AS24: F | AT24: F | AU24: F | AV24: F | AW24: F | AX24: F | AY24: F | AZ24: F | BA24: F | BB24: F | BC24: F | BD24: F | BE24: F | BF24: F | BG24: F | BH24: Di | BI24: 2026-01-20 | BJ24: F | BK24: T | BL24: F | BM24: 4 | BN24: F | BO24: .N | BP24: S | BQ24: T | BR24: T | BS24: T
A25: 2026-01-21 | B25: Mi | C25: 12 | D25: 11 | E25: 12 | F25: =COUNTIF($I25:L25,"f*")+COUNTIF($AA25:$AD25,"f*")+COUNTIF($AR25:$AU25,"f*") -> 4 | G25: =COUNTIF($I25:L25,"s*")+COUNTIF($AA25:$AD25,"s*")+COUNTIF($AR25:$AU25,"s*") -> 4 | H25: =COUNTIF($I25:L25,"n*")+COUNTIF($AA25:$AD25,"n*")+COUNTIF($AR25:$AU25,"n*") -> 3 | I25: S | J25: S | K25: S | L25: S | M25: S | N25: .S | O25: S | P25: S | Q25: S | R25: S | S25: .S | T25: S | U25: S | V25: S | W25: S | X25: .S | Y25: S | Z25: S | AA25: N | AB25: N | AC25: N | AD25: .N | AE25: N | AF25: N | AG25: N | AH25: N | AI25: N | AJ25: N | AK25: .N | AL25: N | AM25: N | AN25: N | AO25: N | AP25: N | AQ25: N | AR25: F | AS25: F | AT25: F | AU25: F | AV25: F | AW25: F | AX25: F | AY25: F | AZ25: F | BA25: F | BB25: F | BC25: F | BD25: F | BE25: F | BF25: F | BG25: F | BH25: Mi | BI25: 2026-01-21 | BJ25: F | BK25: T | BL25: F | BM25: 4 | BN25: F | BO25: .N | BP25: S | BQ25: T | BR25: T | BS25: T
A26: 2026-01-22 | B26: Do | C26: 12 | D26: 11 | E26: 12 | F26: =COUNTIF($I26:L26,"f*")+COUNTIF($AA26:$AD26,"f*")+COUNTIF($AR26:$AU26,"f*") -> 4 | G26: =COUNTIF($I26:L26,"s*")+COUNTIF($AA26:$AD26,"s*")+COUNTIF($AR26:$AU26,"s*") -> 4 | H26: =COUNTIF($I26:L26,"n*")+COUNTIF($AA26:$AD26,"n*")+COUNTIF($AR26:$AU26,"n*") -> 3 | I26: S | J26: S | K26: S | L26: S | M26: S | N26: .S | O26: S | P26: S | Q26: S | R26: S | S26: .S | T26: S | U26: S | V26: S | W26: S | X26: .S | Y26: S | Z26: S | AA26: N | AB26: N | AC26: N | AD26: .N | AE26: N | AF26: N | AG26: N | AH26: N | AI26: N | AJ26: N | AK26: .N | AL26: N | AM26: N | AN26: N | AO26: N | AP26: N | AQ26: N | AR26: F | AS26: F | AT26: F | AU26: F | AV26: F | AW26: F | AX26: F | AY26: F | AZ26: F | BA26: F | BB26: F | BC26: F | BD26: F | BE26: F | BF26: F | BG26: F | BH26: Do | BI26: 2026-01-22 | BJ26: F | BK26: T | BL26: F | BM26: 4 | BN26: F | BO26: .N | BP26: S | BQ26: T | BR26: T | BS26: T
A27: 2026-01-23 | B27: Fr | C27: 12 | D27: 11 | E27: 11 | F27: =COUNTIF($I27:L27,"f*")+COUNTIF($AA27:$AD27,"f*")+COUNTIF($AR27:$AU27,"f*") -> 4 | G27: =COUNTIF($I27:L27,"s*")+COUNTIF($AA27:$AD27,"s*")+COUNTIF($AR27:$AU27,"s*") -> 4 | H27: =COUNTIF($I27:L27,"n*")+COUNTIF($AA27:$AD27,"n*")+COUNTIF($AR27:$AU27,"n*") -> 3 | I27: S | J27: S | K27: S | L27: S | M27: S | N27: .S | O27: S | P27: S | Q27: S | R27: S | S27: .S | T27: S | U27: S | V27: S | W27: S | X27: .S | Y27: S | Z27: S | AA27: N | AB27: N | AC27: N | AD27: .N | AE27: N | AF27: N | AG27: N | AH27: N | AI27: N | AJ27: N | AK27: .N | AL27: N | AM27: N+ | AN27: U | AO27: N+ | AP27: N+ | AQ27: N+ | AR27: F | AS27: F | AT27: F | AU27: F | AV27: F | AW27: F | AX27: F | AY27: F | AZ27: F | BA27: F | BB27: F | BC27: F | BD27: F | BE27: F | BF27: F | BG27: F | BH27: Fr | BI27: 2026-01-23 | BJ27: F | BK27: T | BL27: F | BM27: 4 | BN27: F | BO27: .N | BP27: S | BQ27: T | BR27: T | BS27: T
A28: 2026-01-24 | B28: Sa | C28: 1 | D28: 0 | E28: 0 | F28: =COUNTIF($I28:L28,"f*")+COUNTIF($AA28:$AD28,"f*")+COUNTIF($AR28:$AU28,"f*") -> 0 | G28: =COUNTIF($I28:L28,"s*")+COUNTIF($AA28:$AD28,"s*")+COUNTIF($AR28:$AU28,"s*") -> 0 | H28: =COUNTIF($I28:L28,"n*")+COUNTIF($AA28:$AD28,"n*")+COUNTIF($AR28:$AU28,"n*") -> 0 | AX28: F | BH28: Sa | BI28: 2026-01-24 | BM28: 5
A29: 2026-01-25 | B29: So | C29: 0 | D29: 0 | E29: 1 | F29: =COUNTIF($I29:L29,"f*")+COUNTIF($AA29:$AD29,"f*")+COUNTIF($AR29:$AU29,"f*") -> 0 | G29: =COUNTIF($I29:L29,"s*")+COUNTIF($AA29:$AD29,"s*")+COUNTIF($AR29:$AU29,"s*") -> 0 | H29: =COUNTIF($I29:L29,"n*")+COUNTIF($AA29:$AD29,"n*")+COUNTIF($AR29:$AU29,"n*") -> 0 | AY29: N | BH29: So | BI29: 2026-01-25 | BM29: 5
A30: 2026-01-26 | B30: Mo | C30: 10 | D30: 11 | E30: 12 | F30: =COUNTIF($I30:L30,"f*")+COUNTIF($AA30:$AD30,"f*")+COUNTIF($AR30:$AU30,"f*") -> 3 | G30: =COUNTIF($I30:L30,"s*")+COUNTIF($AA30:$AD30,"s*")+COUNTIF($AR30:$AU30,"s*") -> 2 | H30: =COUNTIF($I30:L30,"n*")+COUNTIF($AA30:$AD30,"n*")+COUNTIF($AR30:$AU30,"n*") -> 4 | I30: F | J30: F+ | K30: U | L30: F | M30: F | N30: .F | O30: F | P30: A | Q30: F+ | R30: F | S30: .F+ | T30: F+ | U30: F+ | V30: F | W30: F | X30: .F | Y30: F | Z30: F | AA30: S | AB30: U | AC30: S | AD30: .S | AE30: S | AF30: S | AG30: S | AH30: S | AI30: S | AJ30: S | AK30: .S | AL30: S | AM30: S | AN30: U | AO30: S | AP30: S | AQ30: S | AR30: N | AS30: N | AT30: N | AU30: N | AV30: N | AW30: N | AX30: N | AY30: N | AZ30: N | BA30: N | BB30: N | BC30: N | BD30: N | BE30: N | BF30: N | BG30: N | BH30: Mo | BI30: 2026-01-26 | BJ30: F | BK30: T | BL30: F | BM30: 5 | BN30: S | BO30: .S | BP30: F | BQ30: T | BR30: T | BS30: T
A31: =A30+1 -> 2026-01-27 | B31: Di | C31: 11 | D31: 11 | E31: 12 | F31: =COUNTIF($I31:L31,"f*")+COUNTIF($AA31:$AD31,"f*")+COUNTIF($AR31:$AU31,"f*") -> 4 | G31: =COUNTIF($I31:L31,"s*")+COUNTIF($AA31:$AD31,"s*")+COUNTIF($AR31:$AU31,"s*") -> 3 | H31: =COUNTIF($I31:L31,"n*")+COUNTIF($AA31:$AD31,"n*")+COUNTIF($AR31:$AU31,"n*") -> 4 | I31: F | J31: F | K31: F | L31: F | M31: F | N31: .F | O31: F | P31: F | Q31: F | R31: F | S31: .F | T31: F | U31: F | V31: F | W31: F | X31: .F | Y31: F | Z31: F | AA31: S | AB31: S | AC31: S | AD31: .S | AE31: S | AF31: S | AG31: S | AH31: S | AI31: S | AJ31: S | AK31: .S | AL31: S | AM31: S | AN31: U | AO31: S | AP31: S | AQ31: S | AR31: N | AS31: N | AT31: N | AU31: N | AV31: N | AW31: N | AX31: N | AY31: N | AZ31: N | BA31: N | BB31: N | BC31: N | BD31: N | BE31: N | BF31: N | BG31: N | BH31: Di | BI31: =BI30+1 -> 2026-01-27 | BJ31: F | BK31: T | BL31: F | BM31: 5 | BN31: S | BO31: .S | BP31: F | BQ31: T | BR31: T | BS31: T
A32: 2026-01-28 | B32: Mi | C32: 10 | D32: 11 | E32: 12 | F32: =COUNTIF($I32:L32,"f*")+COUNTIF($AA32:$AD32,"f*")+COUNTIF($AR32:$AU32,"f*") -> 4 | G32: =COUNTIF($I32:L32,"s*")+COUNTIF($AA32:$AD32,"s*")+COUNTIF($AR32:$AU32,"s*") -> 3 | H32: =COUNTIF($I32:L32,"n*")+COUNTIF($AA32:$AD32,"n*")+COUNTIF($AR32:$AU32,"n*") -> 4 | I32: F | J32: F | K32: F | L32: F | M32: F | N32: .F | O32: F | P32: F | Q32: F | R32: F | S32: .F | T32: F | U32: F | V32: A | W32: F | X32: .F | Y32: F | Z32: F | AA32: S | AB32: S | AC32: S | AD32: .S | AE32: S | AF32: S | AG32: S | AH32: S | AI32: S | AJ32: S | AK32: .S | AL32: S | AM32: S | AN32: A | AO32: S | AP32: S | AQ32: S | AR32: N | AS32: N | AT32: N | AU32: N | AV32: N | AW32: N | AX32: N | AY32: N | AZ32: N | BA32: N | BB32: N | BC32: N | BD32: N | BE32: N | BF32: N | BG32: N | BH32: Mi | BI32: 2026-01-28 | BJ32: F | BK32: T | BL32: F | BM32: 5 | BN32: S | BO32: .S | BP32: F | BQ32: T | BR32: T | BS32: T
A33: 2026-01-29 | B33: Do | C33: 10 | D33: 10 | E33: 12 | F33: =COUNTIF($I33:L33,"f*")+COUNTIF($AA33:$AD33,"f*")+COUNTIF($AR33:$AU33,"f*") -> 4 | G33: =COUNTIF($I33:L33,"s*")+COUNTIF($AA33:$AD33,"s*")+COUNTIF($AR33:$AU33,"s*") -> 3 | H33: =COUNTIF($I33:L33,"n*")+COUNTIF($AA33:$AD33,"n*")+COUNTIF($AR33:$AU33,"n*") -> 3 | I33: F | J33: F | K33: F | L33: F | M33: F | N33: .F | O33: F | P33: F | Q33: F | R33: F | S33: .F | T33: A | U33: F | V33: F | W33: F | X33: .F | Y33: F | Z33: F | AA33: S | AB33: S | AC33: S | AD33: .S | AE33: S | AF33: U | AG33: S | AH33: S | AI33: S | AJ33: S | AK33: .S | AL33: S | AM33: S | AN33: U | AO33: S | AP33: S | AQ33: S | AR33: N | AS33: A | AT33: N | AU33: N | AV33: N | AW33: N | AX33: N | AY33: N | AZ33: N | BA33: N | BB33: N | BC33: N | BD33: N | BE33: N | BF33: N | BG33: N | BH33: Do | BI33: 2026-01-29 | BJ33: F | BK33: T | BL33: F | BM33: 5 | BN33: S | BO33: .S | BP33: F | BQ33: T | BR33: T | BS33: T
A34: 2026-01-30 | B34: Fr | C34: 11 | D34: 12 | E34: 11 | F34: =COUNTIF($I34:L34,"f*")+COUNTIF($AA34:$AD34,"f*")+COUNTIF($AR34:$AU34,"f*") -> 4 | G34: =COUNTIF($I34:L34,"s*")+COUNTIF($AA34:$AD34,"s*")+COUNTIF($AR34:$AU34,"s*") -> 3 | H34: =COUNTIF($I34:L34,"n*")+COUNTIF($AA34:$AD34,"n*")+COUNTIF($AR34:$AU34,"n*") -> 3 | I34: F | J34: F | K34: F | L34: F | M34: F | N34: .F | O34: F | P34: F | Q34: F | R34: F | S34: .F | T34: F | U34: F | V34: F | W34: F | X34: .F | Y34: F | Z34: F | AA34: S | AB34: S | AC34: S | AD34: .S | AE34: S | AF34: S | AG34: S | AH34: S | AI34: S | AJ34: S | AK34: .S | AL34: S | AM34: S | AN34: S | AO34: S | AP34: S | AQ34: S | AR34: N | AS34: N | AT34: A | AU34: N | AV34: N | AW34: N | AX34: N | AY34: N | AZ34: N | BA34: N | BB34: N | BC34: U | BD34: N+ | BE34: N+ | BF34: N+ | BG34: N+ | BH34: Fr | BI34: 2026-01-30 | BJ34: F | BK34: T | BL34: F | BM34: 5 | BN34: S | BO34: .S | BP34: F | BQ34: T | BR34: T | BS34: T
A35: 2026-01-31 | B35: Sa | C35: 1 | D35: 0 | E35: 0 | F35: =COUNTIF($I35:L35,"f*")+COUNTIF($AA35:$AD35,"f*")+COUNTIF($AR35:$AU35,"f*") -> 0 | G35: =COUNTIF($I35:L35,"s*")+COUNTIF($AA35:$AD35,"s*")+COUNTIF($AR35:$AU35,"s*") -> 0 | H35: =COUNTIF($I35:L35,"n*")+COUNTIF($AA35:$AD35,"n*")+COUNTIF($AR35:$AU35,"n*") -> 0 | M35: F | BH35: Sa | BI35: 2026-01-31 | BM35: 6
A36: 2026-02-01 | B36: So | C36: 0 | D36: 0 | E36: 1 | F36: =COUNTIF($I36:L36,"f*")+COUNTIF($AA36:$AD36,"f*")+COUNTIF($AR36:$AU36,"f*") -> 0 | G36: =COUNTIF($I36:L36,"s*")+COUNTIF($AA36:$AD36,"s*")+COUNTIF($AR36:$AU36,"s*") -> 0 | H36: =COUNTIF($I36:L36,"n*")+COUNTIF($AA36:$AD36,"n*")+COUNTIF($AR36:$AU36,"n*") -> 0 | O36: N | BH36: So | BI36: 2026-02-01 | BM36: 6
A37: 2026-02-02 | B37: Mo | C37: 12 | D37: 11 | E37: 11 | F37: =COUNTIF($I37:L37,"f*")+COUNTIF($AA37:$AD37,"f*")+COUNTIF($AR37:$AU37,"f*") -> 3 | G37: =COUNTIF($I37:L37,"s*")+COUNTIF($AA37:$AD37,"s*")+COUNTIF($AR37:$AU37,"s*") -> 4 | H37: =COUNTIF($I37:L37,"n*")+COUNTIF($AA37:$AD37,"n*")+COUNTIF($AR37:$AU37,"n*") -> 4 | I37: N | J37: N | K37: N | L37: N | M37: N | N37: .N | O37: N | P37: N | Q37: N | R37: N | S37: .N | T37: N | U37: N | V37: N | W37: N | X37: .N | Y37: N | Z37: N | AA37: F | AB37: F+ | AC37: F | AD37: .F | AE37: F | AF37: F | AG37: F | AH37: F+ | AI37: F | AJ37: F+ | AK37: .F | AL37: F+ | AM37: F | AN37: F | AO37: F | AP37: F | AQ37: F | AR37: S | AS37: S | AT37: S | AU37: S | AV37: S | AW37: S | AX37: S | AY37: U | AZ37: S | BA37: S | BB37: S | BC37: S | BD37: S | BE37: S | BF37: S | BG37: S | BH37: Mo | BI37: 2026-02-02 | BJ37: F | BK37: T | BL37: F | BM37: 6 | BN37: F | BO37: .F | BP37: U | BQ37: T | BR37: T | BS37: T
A38: 2026-02-03 | B38: Di | C38: 12 | D38: 11 | E38: 11 | F38: =COUNTIF($I38:L38,"f*")+COUNTIF($AA38:$AD38,"f*")+COUNTIF($AR38:$AU38,"f*") -> 3 | G38: =COUNTIF($I38:L38,"s*")+COUNTIF($AA38:$AD38,"s*")+COUNTIF($AR38:$AU38,"s*") -> 4 | H38: =COUNTIF($I38:L38,"n*")+COUNTIF($AA38:$AD38,"n*")+COUNTIF($AR38:$AU38,"n*") -> 4 | I38: N | J38: N | K38: N | L38: N | M38: N | N38: .N | O38: N | P38: N | Q38: N | R38: N | S38: .N | T38: N | U38: N | V38: N | W38: N | X38: .N | Y38: N | Z38: N | AA38: F | AB38: F | AC38: F | AD38: .F | AE38: F | AF38: F | AG38: F | AH38: F | AI38: F | AJ38: F | AK38: .F | AL38: F | AM38: F | AN38: F | AO38: F | AP38: F | AQ38: F | AR38: S | AS38: S | AT38: S | AU38: S | AV38: S | AW38: S | AX38: S | AY38: U | AZ38: S | BA38: S | BB38: S | BC38: S | BD38: S | BE38: S | BF38: S | BG38: S | BH38: Di | BI38: 2026-02-03 | BJ38: F | BK38: T | BL38: F | BM38: 6 | BN38: F | BO38: .F | BP38: U | BQ38: T | BR38: T | BS38: T
A39: 2026-02-04 | B39: Mi | C39: 11 | D39: 11 | E39: 11 | F39: =COUNTIF($I39:L39,"f*")+COUNTIF($AA39:$AD39,"f*")+COUNTIF($AR39:$AU39,"f*") -> 2 | G39: =COUNTIF($I39:L39,"s*")+COUNTIF($AA39:$AD39,"s*")+COUNTIF($AR39:$AU39,"s*") -> 4 | H39: =COUNTIF($I39:L39,"n*")+COUNTIF($AA39:$AD39,"n*")+COUNTIF($AR39:$AU39,"n*") -> 4 | I39: N | J39: N | K39: N | L39: N | M39: N | N39: .N | O39: N | P39: N | Q39: N | R39: N | S39: .N | T39: N | U39: N | V39: N | W39: N | X39: .N | Y39: N | Z39: N | AA39: A | AB39: F | AC39: F | AD39: .F | AE39: F | AF39: F | AG39: F | AH39: F | AI39: F | AJ39: F | AK39: .F | AL39: F | AM39: F | AN39: F | AO39: F | AP39: A | AQ39: F | AR39: S | AS39: S | AT39: S | AU39: S | AV39: S | AW39: S | AX39: S | AY39: U | AZ39: S | BA39: S | BB39: S | BC39: S | BD39: S | BE39: S | BF39: S | BG39: S | BH39: Mi | BI39: 2026-02-04 | BJ39: A | BK39: T | BL39: F | BM39: 6 | BN39: F | BO39: .F | BP39: U | BQ39: T | BR39: T | BS39: T
A40: 2026-02-05 | B40: Do | C40: 11 | D40: 10 | E40: 10 | F40: =COUNTIF($I40:L40,"f*")+COUNTIF($AA40:$AD40,"f*")+COUNTIF($AR40:$AU40,"f*") -> 3 | G40: =COUNTIF($I40:L40,"s*")+COUNTIF($AA40:$AD40,"s*")+COUNTIF($AR40:$AU40,"s*") -> 4 | H40: =COUNTIF($I40:L40,"n*")+COUNTIF($AA40:$AD40,"n*")+COUNTIF($AR40:$AU40,"n*") -> 4 | I40: N | J40: N | K40: N | L40: N | M40: N | N40: .N | O40: N | P40: N | Q40: N | R40: N | S40: .N | T40: N | U40: N | V40: N | W40: N | X40: .N | Y40: A | Z40: N | AA40: F | AB40: F | AC40: F | AD40: .F | AE40: F | AF40: F | AG40: F | AH40: F | AI40: F | AJ40: F | AK40: .F | AL40: F | AM40: A | AN40: F | AO40: F | AP40: F | AQ40: F | AR40: S | AS40: S | AT40: S | AU40: S | AV40: S | AW40: A | AX40: S | AY40: U | AZ40: S | BA40: S | BB40: S | BC40: S | BD40: S | BE40: S | BF40: S | BG40: S | BH40: Do | BI40: 2026-02-05 | BJ40: F | BK40: T | BL40: F | BM40: 6 | BN40: F | BO40: .F | BP40: U | BQ40: T | BR40: T | BS40: T
A41: 2026-02-06 | B41: Fr | C41: 12 | D41: 11 | E41: 11 | F41: =COUNTIF($I41:L41,"f*")+COUNTIF($AA41:$AD41,"f*")+COUNTIF($AR41:$AU41,"f*") -> 3 | G41: =COUNTIF($I41:L41,"s*")+COUNTIF($AA41:$AD41,"s*")+COUNTIF($AR41:$AU41,"s*") -> 4 | H41: =COUNTIF($I41:L41,"n*")+COUNTIF($AA41:$AD41,"n*")+COUNTIF($AR41:$AU41,"n*") -> 4 | I41: N | J41: N | K41: N | L41: N | M41: N | N41: .N | O41: N | P41: N | Q41: N | R41: N | S41: .N | T41: N | U41: N | V41: N | W41: N | X41: .N | Y41: N | Z41: N | AA41: F | AB41: F | AC41: F | AD41: .F | AE41: F | AF41: F | AG41: F | AH41: F | AI41: F | AJ41: F | AK41: .F | AL41: F | AM41: F | AN41: F | AO41: F | AP41: F | AQ41: F | AR41: S | AS41: S | AT41: S | AU41: S | AV41: S | AW41: S | AX41: S | AY41: U | AZ41: S | BA41: S | BB41: S | BC41: S | BD41: S | BE41: S | BF41: S | BG41: S | BH41: Fr | BI41: 2026-02-06 | BJ41: F | BK41: T | BL41: F | BM41: 6 | BN41: F | BO41: .F | BP41: U | BQ41: T | BR41: T | BS41: T
A42: 2026-02-07 | B42: Sa | C42: 1 | D42: 0 | E42: 0 | F42: =COUNTIF($I42:L42,"f*")+COUNTIF($AA42:$AD42,"f*")+COUNTIF($AR42:$AU42,"f*") -> 0 | G42: =COUNTIF($I42:L42,"s*")+COUNTIF($AA42:$AD42,"s*")+COUNTIF($AR42:$AU42,"s*") -> 0 | H42: =COUNTIF($I42:L42,"n*")+COUNTIF($AA42:$AD42,"n*")+COUNTIF($AR42:$AU42,"n*") -> 0 | AG42: F | BH42: Sa | BI42: 2026-02-07 | BM42: 7
A43: 2026-02-08 | B43: So | C43: 0 | D43: 0 | E43: 1 | F43: =COUNTIF($I43:L43,"f*")+COUNTIF($AA43:$AD43,"f*")+COUNTIF($AR43:$AU43,"f*") -> 0 | G43: =COUNTIF($I43:L43,"s*")+COUNTIF($AA43:$AD43,"s*")+COUNTIF($AR43:$AU43,"s*") -> 0 | H43: =COUNTIF($I43:L43,"n*")+COUNTIF($AA43:$AD43,"n*")+COUNTIF($AR43:$AU43,"n*") -> 0 | AE43: N | BH43: So | BI43: 2026-02-08 | BM43: 7
A44: 2026-02-09 | B44: Mo | C44: 11 | D44: 11 | E44: 12 | F44: =COUNTIF($I44:L44,"f*")+COUNTIF($AA44:$AD44,"f*")+COUNTIF($AR44:$AU44,"f*") -> 4 | G44: =COUNTIF($I44:L44,"s*")+COUNTIF($AA44:$AD44,"s*")+COUNTIF($AR44:$AU44,"s*") -> 4 | H44: =COUNTIF($I44:L44,"n*")+COUNTIF($AA44:$AD44,"n*")+COUNTIF($AR44:$AU44,"n*") -> 3 | I44: S | J44: S | K44: S | L44: S | M44: S | N44: .S | O44: S | P44: S | Q44: S | R44: S | S44: .S | T44: S | U44: S | V44: S | W44: S | X44: .S | Y44: S | Z44: S | AA44: N | AB44: N | AC44: N | AD44: .N | AE44: N | AF44: N | AG44: N | AH44: N | AI44: N | AJ44: N | AK44: .N | AL44: N | AM44: N | AN44: N | AO44: N | AP44: N | AQ44: N | AR44: F | AS44: F+ | AT44: F | AU44: F | AV44: F | AW44: F | AX44: F | AY44: F | AZ44: F+ | BA44: F+ | BB44: A | BC44: F+ | BD44: F | BE44: F | BF44: F | BG44: F | BH44: Mo | BI44: 2026-02-09 | BJ44: F | BK44: T | BL44: F | BM44: 7 | BN44: F | BO44: .N | BP44: F | BQ44: T | BR44: T | BS44: T
A45: 2026-02-10 | B45: Di | C45: 12 | D45: 11 | E45: 12 | F45: =COUNTIF($I45:L45,"f*")+COUNTIF($AA45:$AD45,"f*")+COUNTIF($AR45:$AU45,"f*") -> 4 | G45: =COUNTIF($I45:L45,"s*")+COUNTIF($AA45:$AD45,"s*")+COUNTIF($AR45:$AU45,"s*") -> 4 | H45: =COUNTIF($I45:L45,"n*")+COUNTIF($AA45:$AD45,"n*")+COUNTIF($AR45:$AU45,"n*") -> 3 | I45: S | J45: S | K45: S | L45: S | M45: S | N45: .S | O45: S | P45: S | Q45: S | R45: S | S45: .S | T45: S | U45: S | V45: S | W45: S | X45: .S | Y45: S | Z45: S | AA45: N | AB45: N | AC45: N | AD45: .N | AE45: N | AF45: N | AG45: N | AH45: N | AI45: N | AJ45: N | AK45: .N | AL45: N | AM45: N | AN45: N | AO45: N | AP45: N | AQ45: N | AR45: F | AS45: F | AT45: F | AU45: F | AV45: F | AW45: F | AX45: F | AY45: F | AZ45: F | BA45: F | BB45: F | BC45: F | BD45: F | BE45: F | BF45: F | BG45: F | BH45: Di | BI45: 2026-02-10 | BJ45: F | BK45: T | BL45: F | BM45: 7 | BN45: F | BO45: .N | BP45: F | BQ45: A | BR45: T | BS45: T
A46: 2026-02-11 | B46: Mi | C46: 11 | D46: 11 | E46: 10 | F46: =COUNTIF($I46:L46,"f*")+COUNTIF($AA46:$AD46,"f*")+COUNTIF($AR46:$AU46,"f*") -> 4 | G46: =COUNTIF($I46:L46,"s*")+COUNTIF($AA46:$AD46,"s*")+COUNTIF($AR46:$AU46,"s*") -> 4 | H46: =COUNTIF($I46:L46,"n*")+COUNTIF($AA46:$AD46,"n*")+COUNTIF($AR46:$AU46,"n*") -> 3 | I46: S | J46: S | K46: S | L46: S | M46: S | N46: .S | O46: S | P46: S | Q46: S | R46: S | S46: .S | T46: S | U46: S | V46: S | W46: S | X46: .S | Y46: S | Z46: S | AA46: N | AB46: N | AC46: N | AD46: .N | AE46: U | AF46: N | AG46: N | AH46: N | AI46: A | AJ46: N | AK46: .N | AL46: N | AM46: N | AN46: N | AO46: N | AP46: N | AQ46: N | AR46: F | AS46: F | AT46: F | AU46: F | AV46: F | AW46: F | AX46: F | AY46: F | AZ46: F | BA46: F | BB46: F | BC46: U | BD46: F | BE46: F | BF46: F | BG46: F | BH46: Mi | BI46: 2026-02-11 | BJ46: F | BK46: T | BL46: F | BM46: 7 | BN46: F | BO46: .N | BP46: F | BQ46: T | BR46: T | BS46: T
A47: 2026-02-12 | B47: Do | C47: 11 | D47: 11 | E47: 11 | F47: =COUNTIF($I47:L47,"f*")+COUNTIF($AA47:$AD47,"f*")+COUNTIF($AR47:$AU47,"f*") -> 4 | G47: =COUNTIF($I47:L47,"s*")+COUNTIF($AA47:$AD47,"s*")+COUNTIF($AR47:$AU47,"s*") -> 4 | H47: =COUNTIF($I47:L47,"n*")+COUNTIF($AA47:$AD47,"n*")+COUNTIF($AR47:$AU47,"n*") -> 3 | I47: S | J47: S | K47: S | L47: S | M47: S | N47: .S | O47: S | P47: S | Q47: S | R47: S | S47: .S | T47: S | U47: S | V47: S | W47: S | X47: .S | Y47: S | Z47: S | AA47: N | AB47: N | AC47: N | AD47: .N | AE47: N | AF47: A | AG47: N | AH47: N | AI47: N | AJ47: N | AK47: .N | AL47: N | AM47: N | AN47: N | AO47: N | AP47: N | AQ47: N | AR47: F | AS47: F | AT47: F | AU47: F | AV47: F | AW47: F | AX47: F | AY47: F | AZ47: F | BA47: F | BB47: F | BC47: U | BD47: F | BE47: F | BF47: F | BG47: F | BH47: Do | BI47: 2026-02-12 | BJ47: F | BK47: T | BL47: F | BM47: 7 | BN47: F | BO47: .N | BP47: F | BQ47: T | BR47: T | BS47: T
A48: =A47+1 -> 2026-02-13 | B48: Fr | C48: 10 | D48: 11 | E48: 11 | F48: =COUNTIF($I48:L48,"f*")+COUNTIF($AA48:$AD48,"f*")+COUNTIF($AR48:$AU48,"f*") -> 4 | G48: =COUNTIF($I48:L48,"s*")+COUNTIF($AA48:$AD48,"s*")+COUNTIF($AR48:$AU48,"s*") -> 4 | H48: =COUNTIF($I48:L48,"n*")+COUNTIF($AA48:$AD48,"n*")+COUNTIF($AR48:$AU48,"n*") -> 3 | I48: S | J48: S | K48: S | L48: S | M48: S | N48: .S | O48: S | P48: S | Q48: S | R48: S | S48: .S | T48: S | U48: S | V48: S | W48: S | X48: .S | Y48: S | Z48: S | AA48: N | AB48: N | AC48: N | AD48: .N | AE48: N | AF48: N | AG48: N | AH48: N | AI48: N | AJ48: N | AK48: .N | AL48: N | AM48: N+ | AN48: N+ | AO48: N+ | AP48: N+ | AQ48: A | AR48: F | AS48: F | AT48: F | AU48: F | AV48: F | AW48: F | AX48: U | AY48: F | AZ48: F | BA48: F | BB48: F | BC48: U | BD48: F | BE48: F | BF48: F | BG48: F | BH48: Fr | BI48: =BI47+1 -> 2026-02-13 | BJ48: F | BK48: T | BL48: F | BM48: 7 | BN48: F | BO48: .N | BP48: F | BQ48: T | BR48: T | BS48: T
A49: 2026-02-14 | B49: Sa | C49: 1 | D49: 0 | E49: 0 | F49: =COUNTIF($I49:L49,"f*")+COUNTIF($AA49:$AD49,"f*")+COUNTIF($AR49:$AU49,"f*") -> 0 | G49: =COUNTIF($I49:L49,"s*")+COUNTIF($AA49:$AD49,"s*")+COUNTIF($AR49:$AU49,"s*") -> 0 | H49: =COUNTIF($I49:L49,"n*")+COUNTIF($AA49:$AD49,"n*")+COUNTIF($AR49:$AU49,"n*") -> 0 | AV49: F | BH49: Sa | BI49: 2026-02-14 | BM49: 8
A50: 2026-02-15 | B50: So | C50: 0 | D50: 0 | E50: 1 | F50: =COUNTIF($I50:L50,"f*")+COUNTIF($AA50:$AD50,"f*")+COUNTIF($AR50:$AU50,"f*") -> 0 | G50: =COUNTIF($I50:L50,"s*")+COUNTIF($AA50:$AD50,"s*")+COUNTIF($AR50:$AU50,"s*") -> 0 | H50: =COUNTIF($I50:L50,"n*")+COUNTIF($AA50:$AD50,"n*")+COUNTIF($AR50:$AU50,"n*") -> 0 | AW50: N | BH50: So | BI50: 2026-02-15 | BM50: 8
A51: 2026-02-16 | B51: Mo | C51: 11 | D51: 12 | E51: 11 | F51: =COUNTIF($I51:L51,"f*")+COUNTIF($AA51:$AD51,"f*")+COUNTIF($AR51:$AU51,"f*") -> 4 | G51: =COUNTIF($I51:L51,"s*")+COUNTIF($AA51:$AD51,"s*")+COUNTIF($AR51:$AU51,"s*") -> 1 | H51: =COUNTIF($I51:L51,"n*")+COUNTIF($AA51:$AD51,"n*")+COUNTIF($AR51:$AU51,"n*") -> 4 | I51: F | J51: F | K51: F+ | L51: F+ | M51: F | N51: .F | O51: F | P51: F+ | Q51: F+ | R51: F | S51: .F+ | T51: F+ | U51: F+ | V51: F | W51: F | X51: .F | Y51: F | Z51: F | AA51: U | AB51: A | AC51: S | AD51: .S | AE51: S | AF51: S | AG51: S | AH51: S | AI51: S | AJ51: S | AK51: .S | AL51: S | AM51: S | AN51: S | AO51: S | AP51: S | AQ51: S | AR51: N | AS51: N | AT51: N | AU51: N | AV51: N | AW51: N | AX51: U | AY51: N | AZ51: N | BA51: N | BB51: N | BC51: N | BD51: N | BE51: N | BF51: N | BG51: N | BH51: Mo | BI51: 2026-02-16 | BJ51: F | BK51: U | BL51: F | BM51: 8 | BN51: F | BO51: .S | BP51: N | BQ51: T | BR51: T | BS51: T
A52: 2026-02-17 | B52: Di | C52: 11 | D52: 11 | E52: 10 | F52: =COUNTIF($I52:L52,"f*")+COUNTIF($AA52:$AD52,"f*")+COUNTIF($AR52:$AU52,"f*") -> 4 | G52: =COUNTIF($I52:L52,"s*")+COUNTIF($AA52:$AD52,"s*")+COUNTIF($AR52:$AU52,"s*") -> 3 | H52: =COUNTIF($I52:L52,"n*")+COUNTIF($AA52:$AD52,"n*")+COUNTIF($AR52:$AU52,"n*") -> 4 | I52: F | J52: F | K52: F | L52: F | M52: F | N52: .F | O52: F | P52: F | Q52: F | R52: F | S52: .F | T52: F | U52: F | V52: F | W52: F | X52: .F | Y52: F | Z52: F | AA52: S | AB52: S | AC52: S | AD52: .S | AE52: S | AF52: U | AG52: S | AH52: S | AI52: S | AJ52: S | AK52: .S | AL52: S | AM52: S | AN52: S | AO52: S | AP52: S | AQ52: S | AR52: N | AS52: N | AT52: N | AU52: N | AV52: N | AW52: N | AX52: U | AY52: N | AZ52: N | BA52: N | BB52: N | BC52: N | BD52: A | BE52: N | BF52: N | BG52: N | BH52: Di | BI52: 2026-02-17 | BJ52: F | BK52: T | BL52: F | BM52: 8 | BN52: F | BO52: .S | BP52: N | BQ52: T | BR52: T | BS52: T
A53: =A52+1 -> 2026-02-18 | B53: Mi | C53: 11 | D53: 12 | E53: 12 | F53: =COUNTIF($I53:L53,"f*")+COUNTIF($AA53:$AD53,"f*")+COUNTIF($AR53:$AU53,"f*") -> 4 | G53: =COUNTIF($I53:L53,"s*")+COUNTIF($AA53:$AD53,"s*")+COUNTIF($AR53:$AU53,"s*") -> 3 | H53: =COUNTIF($I53:L53,"n*")+COUNTIF($AA53:$AD53,"n*")+COUNTIF($AR53:$AU53,"n*") -> 4 | I53: F | J53: F | K53: F | L53: F | M53: F | N53: .F | O53: F | P53: F | Q53: F | R53: F | S53: .F | T53: F | U53: F | V53: F | W53: F | X53: .F | Y53: F | Z53: F | AA53: S | AB53: S | AC53: S | AD53: .S | AE53: S | AF53: S | AG53: S | AH53: S | AI53: S | AJ53: S | AK53: .S | AL53: S | AM53: S | AN53: S | AO53: S | AP53: S | AQ53: S | AR53: N | AS53: N | AT53: N | AU53: N | AV53: N | AW53: N | AX53: N | AY53: N | AZ53: N | BA53: N | BB53: N | BC53: N | BD53: N | BE53: N | BF53: N | BG53: N | BH53: Mi | BI53: =BI52+1 -> 2026-02-18 | BJ53: F | BK53: T | BL53: F | BM53: 8 | BN53: F | BO53: .S | BP53: N | BQ53: T | BR53: T | BS53: T
A54: =A53+1 -> 2026-02-19 | B54: Do | C54: 11 | D54: 11 | E54: 11 | F54: =COUNTIF($I54:L54,"f*")+COUNTIF($AA54:$AD54,"f*")+COUNTIF($AR54:$AU54,"f*") -> 4 | G54: =COUNTIF($I54:L54,"s*")+COUNTIF($AA54:$AD54,"s*")+COUNTIF($AR54:$AU54,"s*") -> 3 | H54: =COUNTIF($I54:L54,"n*")+COUNTIF($AA54:$AD54,"n*")+COUNTIF($AR54:$AU54,"n*") -> 4 | I54: F | J54: F | K54: F | L54: F | M54: F | N54: .F | O54: F | P54: F | Q54: F | R54: F | S54: .F | T54: F | U54: F | V54: F | W54: F | X54: .F | Y54: F | Z54: F | AA54: S | AB54: S | AC54: S | AD54: .S | AE54: S | AF54: S | AG54: S | AH54: S | AI54: S | AJ54: S | AK54: .S | AL54: S | AM54: S | AN54: A | AO54: S | AP54: S | AQ54: S | AR54: N | AS54: N | AT54: N | AU54: N | AV54: U | AW54: N | AX54: N | AY54: N | AZ54: N | BA54: N | BB54: N | BC54: N | BD54: N | BE54: N | BF54: N | BG54: N | BH54: Do | BI54: =BI53+1 -> 2026-02-19 | BJ54: F | BK54: T | BL54: F | BM54: 8 | BN54: F | BO54: .S | BP54: N | BQ54: T | BR54: T | BS54: T
A55: 2026-02-20 | B55: Fr | C55: 11 | D55: 12 | E55: 11 | F55: =COUNTIF($I55:L55,"f*")+COUNTIF($AA55:$AD55,"f*")+COUNTIF($AR55:$AU55,"f*") -> 4 | G55: =COUNTIF($I55:L55,"s*")+COUNTIF($AA55:$AD55,"s*")+COUNTIF($AR55:$AU55,"s*") -> 3 | H55: =COUNTIF($I55:L55,"n*")+COUNTIF($AA55:$AD55,"n*")+COUNTIF($AR55:$AU55,"n*") -> 4 | I55: F | J55: F | K55: F | L55: F | M55: F | N55: .F | O55: F | P55: F | Q55: F | R55: F | S55: .F | T55: F | U55: F | V55: F | W55: F | X55: .F | Y55: F | Z55: F | AA55: S | AB55: S | AC55: S | AD55: .S | AE55: S | AF55: S | AG55: S | AH55: S | AI55: S | AJ55: S | AK55: .S | AL55: S | AM55: S | AN55: S | AO55: S | AP55: S | AQ55: S | AR55: N | AS55: N | AT55: N | AU55: N | AV55: U | AW55: N | AX55: N | AY55: N | AZ55: N | BA55: N | BB55: N | BC55: N | BD55: N+ | BE55: N+ | BF55: N+ | BG55: N+ | BH55: Fr | BI55: 2026-02-20 | BJ55: F | BK55: T | BL55: F | BM55: 8 | BN55: F | BO55: .S | BP55: N | BQ55: T | BR55: T | BS55: T
A56: 2026-02-21 | B56: Sa | C56: 1 | D56: 0 | E56: 0 | F56: =COUNTIF($I56:L56,"f*")+COUNTIF($AA56:$AD56,"f*")+COUNTIF($AR56:$AU56,"f*") -> 0 | G56: =COUNTIF($I56:L56,"s*")+COUNTIF($AA56:$AD56,"s*")+COUNTIF($AR56:$AU56,"s*") -> 0 | H56: =COUNTIF($I56:L56,"n*")+COUNTIF($AA56:$AD56,"n*")+COUNTIF($AR56:$AU56,"n*") -> 0 | O56: F | BH56: Sa | BI56: 2026-02-21 | BM56: 9
A57: 2026-02-22 | B57: So | C57: 0 | D57: 0 | E57: 1 | F57: =COUNTIF($I57:L57,"f*")+COUNTIF($AA57:$AD57,"f*")+COUNTIF($AR57:$AU57,"f*") -> 0 | G57: =COUNTIF($I57:L57,"s*")+COUNTIF($AA57:$AD57,"s*")+COUNTIF($AR57:$AU57,"s*") -> 0 | H57: =COUNTIF($I57:L57,"n*")+COUNTIF($AA57:$AD57,"n*")+COUNTIF($AR57:$AU57,"n*") -> 0 | M57: N | BH57: So | BI57: 2026-02-22 | BM57: 9
A58: 2026-02-23 | B58: Mo | C58: 12 | D58: 12 | E58: 11 | F58: =COUNTIF($I58:L58,"f*")+COUNTIF($AA58:$AD58,"f*")+COUNTIF($AR58:$AU58,"f*") -> 3 | G58: =COUNTIF($I58:L58,"s*")+COUNTIF($AA58:$AD58,"s*")+COUNTIF($AR58:$AU58,"s*") -> 3 | H58: =COUNTIF($I58:L58,"n*")+COUNTIF($AA58:$AD58,"n*")+COUNTIF($AR58:$AU58,"n*") -> 4 | I58: N | J58: N | K58: N | L58: N | M58: N | N58: .N | O58: N | P58: N | Q58: N | R58: N | S58: .N | T58: N | U58: N | V58: N | W58: N | X58: .N | Y58: N | Z58: N | AA58: F | AB58: F | AC58: F+ | AD58: .F+ | AE58: F | AF58: F | AG58: F | AH58: F+ | AI58: F | AJ58: F+ | AK58: .F | AL58: F+ | AM58: F | AN58: F | AO58: F | AP58: F | AQ58: F | AR58: S | AS58: S | AT58: A | AU58: S | AV58: S | AW58: S | AX58: S | AY58: S | AZ58: S | BA58: S | BB58: S | BC58: S | BD58: S | BE58: S | BF58: S | BG58: S | BH58: Mo | BI58: 2026-02-23 | BJ58: F | BK58: T | BL58: U | BM58: 9 | BN58: F | BO58: .F | BP58: S | BQ58: T | BR58: T | BS58: T
A59: 2026-02-24 | B59: Di | C59: 12 | D59: 12 | E59: 10 | F59: =COUNTIF($I59:L59,"f*")+COUNTIF($AA59:$AD59,"f*")+COUNTIF($AR59:$AU59,"f*") -> 3 | G59: =COUNTIF($I59:L59,"s*")+COUNTIF($AA59:$AD59,"s*")+COUNTIF($AR59:$AU59,"s*") -> 4 | H59: =COUNTIF($I59:L59,"n*")+COUNTIF($AA59:$AD59,"n*")+COUNTIF($AR59:$AU59,"n*") -> 4 | I59: N | J59: N | K59: N | L59: N | M59: N | N59: .N | O59: N | P59: A | Q59: N | R59: N | S59: .N | T59: N | U59: N | V59: N | W59: N | X59: .N | Y59: N | Z59: N | AA59: F | AB59: F | AC59: F | AD59: .F | AE59: F | AF59: F | AG59: F | AH59: F | AI59: F | AJ59: F | AK59: .F | AL59: F | AM59: F | AN59: F | AO59: F | AP59: F | AQ59: F | AR59: S | AS59: S | AT59: S | AU59: S | AV59: S | AW59: S | AX59: S | AY59: S | AZ59: S | BA59: S | BB59: S | BC59: S | BD59: S | BE59: S | BF59: S | BG59: S | BH59: Di | BI59: 2026-02-24 | BJ59: F | BK59: T | BL59: U | BM59: 9 | BN59: F | BO59: .F | BP59: S | BQ59: T | BR59: T | BS59: T
A60: 2026-02-25 | B60: Mi | C60: 12 | D60: 12 | E60: 11 | F60: =COUNTIF($I60:L60,"f*")+COUNTIF($AA60:$AD60,"f*")+COUNTIF($AR60:$AU60,"f*") -> 3 | G60: =COUNTIF($I60:L60,"s*")+COUNTIF($AA60:$AD60,"s*")+COUNTIF($AR60:$AU60,"s*") -> 4 | H60: =COUNTIF($I60:L60,"n*")+COUNTIF($AA60:$AD60,"n*")+COUNTIF($AR60:$AU60,"n*") -> 4 | I60: N | J60: N | K60: N | L60: N | M60: N | N60: .N | O60: N | P60: N | Q60: N | R60: N | S60: .N | T60: N | U60: N | V60: N | W60: N | X60: .N | Y60: N | Z60: N | AA60: F | AB60: F | AC60: F | AD60: .F | AE60: F | AF60: F | AG60: F | AH60: F | AI60: F | AJ60: F | AK60: .F | AL60: F | AM60: F | AN60: F | AO60: F | AP60: F | AQ60: F | AR60: S | AS60: S | AT60: S | AU60: S | AV60: S | AW60: S | AX60: S | AY60: S | AZ60: S | BA60: S | BB60: S | BC60: S | BD60: S | BE60: S | BF60: S | BG60: S | BH60: Mi | BI60: 2026-02-25 | BJ60: F | BK60: T | BL60: U | BM60: 9 | BN60: F | BO60: .F | BP60: S | BQ60: T | BR60: T | BS60: T
A61: 2026-02-26 | B61: Do | C61: 12 | D61: 12 | E61: 10 | F61: =COUNTIF($I61:L61,"f*")+COUNTIF($AA61:$AD61,"f*")+COUNTIF($AR61:$AU61,"f*") -> 3 | G61: =COUNTIF($I61:L61,"s*")+COUNTIF($AA61:$AD61,"s*")+COUNTIF($AR61:$AU61,"s*") -> 4 | H61: =COUNTIF($I61:L61,"n*")+COUNTIF($AA61:$AD61,"n*")+COUNTIF($AR61:$AU61,"n*") -> 4 | I61: N | J61: N | K61: N | L61: N | M61: N | N61: .N | O61: N | P61: N | Q61: N | R61: N | S61: .N | T61: N | U61: N | V61: A | W61: N | X61: .N | Y61: N | Z61: N | AA61: F | AB61: F | AC61: F | AD61: .F | AE61: F | AF61: F | AG61: F | AH61: F | AI61: F | AJ61: F | AK61: .F | AL61: F | AM61: F | AN61: F | AO61: F | AP61: F | AQ61: F | AR61: S | AS61: S | AT61: S | AU61: S | AV61: S | AW61: S | AX61: S | AY61: S | AZ61: S | BA61: S | BB61: S | BC61: S | BD61: S | BE61: S | BF61: S | BG61: S | BH61: Do | BI61: 2026-02-26 | BJ61: F | BK61: T | BL61: U | BM61: 9 | BN61: F | BO61: .F | BP61: S | BQ61: T | BR61: T | BS61: T
A62: 2026-02-27 | B62: Fr | C62: 12 | D62: 11 | E62: 10 | F62: =COUNTIF($I62:L62,"f*")+COUNTIF($AA62:$AD62,"f*")+COUNTIF($AR62:$AU62,"f*") -> 3 | G62: =COUNTIF($I62:L62,"s*")+COUNTIF($AA62:$AD62,"s*")+COUNTIF($AR62:$AU62,"s*") -> 3 | H62: =COUNTIF($I62:L62,"n*")+COUNTIF($AA62:$AD62,"n*")+COUNTIF($AR62:$AU62,"n*") -> 4 | I62: N | J62: N | K62: N | L62: N | M62: N | N62: .N | O62: N | P62: N | Q62: N | R62: N | S62: .N | T62: A | U62: N | V62: N | W62: N | X62: .N | Y62: N | Z62: N | AA62: F | AB62: F | AC62: F | AD62: .F | AE62: F | AF62: F | AG62: F | AH62: F | AI62: F | AJ62: F | AK62: .F | AL62: F | AM62: F | AN62: F | AO62: F | AP62: F | AQ62: F | AR62: S | AS62: A | AT62: S | AU62: S | AV62: S | AW62: S | AX62: S | AY62: S | AZ62: S | BA62: S | BB62: S | BC62: S | BD62: S | BE62: S | BF62: A | BG62: S | BH62: Fr | BI62: 2026-02-27 | BJ62: F | BK62: T | BL62: U | BM62: 9 | BN62: F | BO62: .F | BP62: S | BQ62: T | BR62: T | BS62: T
A63: 2026-02-28 | B63: Sa | C63: 1 | D63: 0 | E63: 0 | F63: =COUNTIF($I63:L63,"f*")+COUNTIF($AA63:$AD63,"f*")+COUNTIF($AR63:$AU63,"f*") -> 0 | G63: =COUNTIF($I63:L63,"s*")+COUNTIF($AA63:$AD63,"s*")+COUNTIF($AR63:$AU63,"s*") -> 0 | H63: =COUNTIF($I63:L63,"n*")+COUNTIF($AA63:$AD63,"n*")+COUNTIF($AR63:$AU63,"n*") -> 0 | AE63: F | BH63: Sa | BI63: 2026-02-28 | BM63: 10
A64: 2026-03-01 | B64: So | C64: 0 | D64: 0 | E64: 1 | F64: =COUNTIF($I64:L64,"f*")+COUNTIF($AA64:$AD64,"f*")+COUNTIF($AR64:$AU64,"f*") -> 0 | G64: =COUNTIF($I64:L64,"s*")+COUNTIF($AA64:$AD64,"s*")+COUNTIF($AR64:$AU64,"s*") -> 0 | H64: =COUNTIF($I64:L64,"n*")+COUNTIF($AA64:$AD64,"n*")+COUNTIF($AR64:$AU64,"n*") -> 0 | AG64: N | BH64: So | BI64: 2026-03-01 | BM64: 10
A65: =A64+1 -> 2026-03-02 | B65: Mo | C65: 12 | D65: 11 | E65: 12 | F65: =COUNTIF($I65:L65,"f*")+COUNTIF($AA65:$AD65,"f*")+COUNTIF($AR65:$AU65,"f*") -> 4 | G65: =COUNTIF($I65:L65,"s*")+COUNTIF($AA65:$AD65,"s*")+COUNTIF($AR65:$AU65,"s*") -> 3 | H65: =COUNTIF($I65:L65,"n*")+COUNTIF($AA65:$AD65,"n*")+COUNTIF($AR65:$AU65,"n*") -> 3 | I65: S | J65: S | K65: U | L65: S | M65: S | N65: .S | O65: S | P65: S | Q65: S | R65: S | S65: .S | T65: S | U65: S | V65: S | W65: S | X65: .S | Y65: S | Z65: S | AA65: N | AB65: N | AC65: N | AD65: .N | AE65: N | AF65: N | AG65: N | AH65: N | AI65: N | AJ65: N | AK65: .N | AL65: N | AM65: N | AN65: N | AO65: N | AP65: N | AQ65: N | AR65: F | AS65: F | AT65: F+ | AU65: F | AV65: F | AW65: F | AX65: F | AY65: F | AZ65: F+ | BA65: F+ | BB65: F+ | BC65: F+ | BD65: F | BE65: F | BF65: F | BG65: F | BH65: Mo | BI65: =BI64+1 -> 2026-03-02 | BJ65: F | BK65: T | BL65: U | BM65: 10 | BN65: F | BO65: .N | BP65: U | BQ65: T | BR65: T | BS65: T
A66: =A65+1 -> 2026-03-03 | B66: Di | C66: 12 | D66: 11 | E66: 12 | F66: =COUNTIF($I66:L66,"f*")+COUNTIF($AA66:$AD66,"f*")+COUNTIF($AR66:$AU66,"f*") -> 4 | G66: =COUNTIF($I66:L66,"s*")+COUNTIF($AA66:$AD66,"s*")+COUNTIF($AR66:$AU66,"s*") -> 3 | H66: =COUNTIF($I66:L66,"n*")+COUNTIF($AA66:$AD66,"n*")+COUNTIF($AR66:$AU66,"n*") -> 3 | I66: S | J66: S | K66: U | L66: S | M66: S | N66: .S | O66: S | P66: S | Q66: S | R66: S | S66: .S | T66: S | U66: S | V66: S | W66: S | X66: .S | Y66: S | Z66: S | AA66: N | AB66: N | AC66: N | AD66: .N | AE66: N | AF66: N | AG66: N | AH66: N | AI66: N | AJ66: N | AK66: .N | AL66: N | AM66: N | AN66: N | AO66: N | AP66: N | AQ66: N | AR66: F | AS66: F | AT66: F | AU66: F | AV66: F | AW66: F | AX66: F | AY66: F | AZ66: F | BA66: F | BB66: F | BC66: F | BD66: F | BE66: F | BF66: F | BG66: F | BH66: Di | BI66: =BI65+1 -> 2026-03-03 | BJ66: F | BK66: T | BL66: U | BM66: 10 | BN66: F | BO66: .N | BP66: U | BQ66: T | BR66: T | BS66: T
A67: =A66+1 -> 2026-03-04 | B67: Mi | C67: 12 | D67: 11 | E67: 12 | F67: =COUNTIF($I67:L67,"f*")+COUNTIF($AA67:$AD67,"f*")+COUNTIF($AR67:$AU67,"f*") -> 4 | G67: =COUNTIF($I67:L67,"s*")+COUNTIF($AA67:$AD67,"s*")+COUNTIF($AR67:$AU67,"s*") -> 3 | H67: =COUNTIF($I67:L67,"n*")+COUNTIF($AA67:$AD67,"n*")+COUNTIF($AR67:$AU67,"n*") -> 3 | I67: S | J67: S | K67: U | L67: S | M67: S | N67: .S | O67: S | P67: S | Q67: S | R67: S | S67: .S | T67: S | U67: S | V67: S | W67: S | X67: .S | Y67: S | Z67: S | AA67: N | AB67: N | AC67: N | AD67: .N | AE67: N | AF67: N | AG67: N | AH67: N | AI67: N | AJ67: N | AK67: .N | AL67: N | AM67: N | AN67: N | AO67: N | AP67: N | AQ67: N | AR67: F | AS67: F | AT67: F | AU67: F | AV67: F | AW67: F | AX67: F | AY67: F | AZ67: F | BA67: F | BB67: F | BC67: F | BD67: F | BE67: F | BF67: F | BG67: F | BH67: Mi | BI67: =BI66+1 -> 2026-03-04 | BJ67: F | BK67: T | BL67: U | BM67: 10 | BN67: F | BO67: .N | BP67: U | BQ67: T | BR67: T | BS67: T
A68: =A67+1 -> 2026-03-05 | B68: Do | C68: 12 | D68: 11 | E68: 11 | F68: =COUNTIF($I68:L68,"f*")+COUNTIF($AA68:$AD68,"f*")+COUNTIF($AR68:$AU68,"f*") -> 4 | G68: =COUNTIF($I68:L68,"s*")+COUNTIF($AA68:$AD68,"s*")+COUNTIF($AR68:$AU68,"s*") -> 3 | H68: =COUNTIF($I68:L68,"n*")+COUNTIF($AA68:$AD68,"n*")+COUNTIF($AR68:$AU68,"n*") -> 2 | I68: S | J68: S | K68: U | L68: S | M68: S | N68: .S | O68: S | P68: S | Q68: S | R68: S | S68: .S | T68: S | U68: S | V68: S | W68: S | X68: .S | Y68: S | Z68: S | AA68: A | AB68: N | AC68: N | AD68: .N | AE68: N | AF68: N | AG68: N | AH68: N | AI68: N | AJ68: N | AK68: .N | AL68: N | AM68: N | AN68: N | AO68: N | AP68: A | AQ68: N | AR68: F | AS68: F | AT68: F | AU68: F | AV68: F | AW68: F | AX68: F | AY68: F | AZ68: F | BA68: F | BB68: F | BC68: F | BD68: F | BE68: F | BF68: F | BG68: F | BH68: Do | BI68: =BI67+1 -> 2026-03-05 | BJ68: A | BK68: T | BL68: U | BM68: 10 | BN68: F | BO68: .N | BP68: U | BQ68: T | BR68: T | BS68: T
A69: =A68+1 -> 2026-03-06 | B69: Fr | C69: =COUNTIF($M69:$Z69,"f*")+COUNTIF($AE69:$AQ69,"f*")+COUNTIF($AV69:$BG69,"f*") -> 11 | D69: =COUNTIF($M69:$Z69,"s*")+COUNTIF($AE69:$AQ69,"s*")+COUNTIF($AV69:$BG69,"s*") -> 10 | E69: =COUNTIF($M69:$Z69,"n*")+COUNTIF($AE69:$AQ69,"n*")+COUNTIF($AV69:$BG69,"n*") -> 11 | F69: =COUNTIF($I69:L69,"f*")+COUNTIF($AA69:$AD69,"f*")+COUNTIF($AR69:$AU69,"f*") -> 4 | G69: =COUNTIF($I69:L69,"s*")+COUNTIF($AA69:$AD69,"s*")+COUNTIF($AR69:$AU69,"s*") -> 3 | H69: =COUNTIF($I69:L69,"n*")+COUNTIF($AA69:$AD69,"n*")+COUNTIF($AR69:$AU69,"n*") -> 3 | I69: S | J69: S | K69: U | L69: S | M69: S | N69: .S | O69: S | P69: S | Q69: S | R69: S | S69: .S | T69: S | U69: S | V69: S | W69: S | X69: .S | Y69: A | Z69: S | AA69: N | AB69: N | AC69: N | AD69: .N | AE69: N | AF69: N | AG69: N | AH69: N | AI69: N | AJ69: N | AK69: .N | AL69: N | AM69: A | AN69: N+ | AO69: N+ | AP69: N+ | AQ69: N+ | AR69: F | AS69: F | AT69: F | AU69: F | AV69: F | AW69: A | AX69: F | AY69: F | AZ69: F | BA69: F | BB69: F | BC69: F | BD69: F | BE69: F | BF69: F | BG69: F | BH69: =TEXT(A69,"TTT") -> Fr | BI69: =BI68+1 -> 2026-03-06 | BJ69: F | BK69: T | BL69: U | BM69: 10 | BN69: F | BO69: .N | BP69: U | BQ69: T | BR69: T | BS69: T
A70: 2026-03-07 | B70: Sa | C70: 1 | D70: 0 | E70: 0 | F70: =COUNTIF($I70:L70,"f*")+COUNTIF($AA70:$AD70,"f*")+COUNTIF($AR70:$AU70,"f*") -> 0 | G70: =COUNTIF($I70:L70,"s*")+COUNTIF($AA70:$AD70,"s*")+COUNTIF($AR70:$AU70,"s*") -> 0 | H70: =COUNTIF($I70:L70,"n*")+COUNTIF($AA70:$AD70,"n*")+COUNTIF($AR70:$AU70,"n*") -> 0 | AY70: F | BH70: Sa | BI70: 2026-03-07 | BM70: 11
A71: 2026-03-08 | B71: =TEXT(A71,"TTT") -> So | C71: 0 | D71: 0 | E71: 1 | F71: =COUNTIF($I71:L71,"f*")+COUNTIF($AA71:$AD71,"f*")+COUNTIF($AR71:$AU71,"f*") -> 0 | G71: =COUNTIF($I71:L71,"s*")+COUNTIF($AA71:$AD71,"s*")+COUNTIF($AR71:$AU71,"s*") -> 0 | H71: =COUNTIF($I71:L71,"n*")+COUNTIF($AA71:$AD71,"n*")+COUNTIF($AR71:$AU71,"n*") -> 0 | AX71: N | BH71: So | BI71: 2026-03-08 | BM71: 11
A72: 2026-03-09 | B72: Mo | C72: 11 | D72: 10 | E72: 12 | F72: =COUNTIF($I72:L72,"f*")+COUNTIF($AA72:$AD72,"f*")+COUNTIF($AR72:$AU72,"f*") -> 4 | G72: =COUNTIF($I72:L72,"s*")+COUNTIF($AA72:$AD72,"s*")+COUNTIF($AR72:$AU72,"s*") -> 2 | H72: =COUNTIF($I72:L72,"n*")+COUNTIF($AA72:$AD72,"n*")+COUNTIF($AR72:$AU72,"n*") -> 4 | I72: F+ | J72: F | K72: F | L72: F | M72: F | N72: .F | O72: F | P72: F+ | Q72: F+ | R72: F | S72: .F+ | T72: F+ | U72: F+ | V72: F | W72: F | X72: .F | Y72: F | Z72: F | AA72: S | AB72: A | AC72: S | AD72: .S | AE72: U | AF72: S | AG72: S | AH72: S | AI72: S | AJ72: S | AK72: .S | AL72: S | AM72: S | AN72: S | AO72: S | AP72: S | AQ72: A | AR72: N | AS72: N | AT72: N | AU72: N | AV72: N | AW72: N | AX72: N | AY72: N | AZ72: N | BA72: N | BB72: N | BC72: N | BD72: N | BE72: N | BF72: N | BG72: N | BH72: Mo | BI72: 2026-03-09 | BJ72: U | BK72: T | BL72: F | BM72: 11 | BN72: S | BO72: .S | BP72: F | BQ72: T | BR72: T | BS72: T
A73: 2026-03-10 | B73: Di | C73: 11 | D73: 10 | E73: 11 | F73: =COUNTIF($I73:L73,"f*")+COUNTIF($AA73:$AD73,"f*")+COUNTIF($AR73:$AU73,"f*") -> 4 | G73: =COUNTIF($I73:L73,"s*")+COUNTIF($AA73:$AD73,"s*")+COUNTIF($AR73:$AU73,"s*") -> 3 | H73: =COUNTIF($I73:L73,"n*")+COUNTIF($AA73:$AD73,"n*")+COUNTIF($AR73:$AU73,"n*") -> 4 | I73: F | J73: F | K73: F | L73: F | M73: F | N73: .F | O73: F | P73: F | Q73: F | R73: F | S73: .F | T73: F | U73: F | V73: F | W73: F | X73: .F | Y73: F | Z73: F | AA73: S | AB73: S | AC73: S | AD73: .S | AE73: U | AF73: S | AG73: S | AH73: S | AI73: S | AJ73: S | AK73: .S | AL73: S | AM73: S | AN73: S | AO73: S | AP73: S | AQ73: U | AR73: N | AS73: N | AT73: N | AU73: N | AV73: N | AW73: N | AX73: N | AY73: N | AZ73: N | BA73: N | BB73: A | BC73: N | BD73: N | BE73: N | BF73: N | BG73: N | BH73: Di | BI73: 2026-03-10 | BJ73: U | BK73: T | BL73: F | BM73: =WEEKNUM(BI74) -> 11 | BN73: S | BO73: .S | BP73: F | BQ73: T | BR73: T | BS73: T
A74: 2026-03-11 | B74: Mi | C74: 11 | D74: 11 | E74: 11 | F74: =COUNTIF($I74:L74,"f*")+COUNTIF($AA74:$AD74,"f*")+COUNTIF($AR74:$AU74,"f*") -> 4 | G74: =COUNTIF($I74:L74,"s*")+COUNTIF($AA74:$AD74,"s*")+COUNTIF($AR74:$AU74,"s*") -> 3 | H74: =COUNTIF($I74:L74,"n*")+COUNTIF($AA74:$AD74,"n*")+COUNTIF($AR74:$AU74,"n*") -> 4 | I74: F | J74: F | K74: F | L74: F | M74: F | N74: .F | O74: F | P74: F | Q74: F | R74: F | S74: .F | T74: F | U74: F | V74: F | W74: F | X74: .F | Y74: F | Z74: F | AA74: S | AB74: S | AC74: S | AD74: .S | AE74: S | AF74: S | AG74: S | AH74: S | AI74: S | AJ74: S | AK74: .S | AL74: S | AM74: S | AN74: S | AO74: S | AP74: S | AQ74: U | AR74: N | AS74: N | AT74: N | AU74: N | AV74: N | AW74: N | AX74: N | AY74: N | AZ74: N | BA74: N | BB74: N | BC74: N | BD74: A | BE74: N | BF74: N | BG74: N | BH74: Mi | BI74: 2026-03-11 | BJ74: U | BK74: T | BL74: F | BM74: 11 | BN74: S | BO74: .S | BP74: F | BQ74: A | BR74: T | BS74: T
A75: 2026-03-12 | B75: Do | C75: 11 | D75: 11 | E75: 12 | F75: =COUNTIF($I75:L75,"f*")+COUNTIF($AA75:$AD75,"f*")+COUNTIF($AR75:$AU75,"f*") -> 4 | G75: =COUNTIF($I75:L75,"s*")+COUNTIF($AA75:$AD75,"s*")+COUNTIF($AR75:$AU75,"s*") -> 3 | H75: =COUNTIF($I75:L75,"n*")+COUNTIF($AA75:$AD75,"n*")+COUNTIF($AR75:$AU75,"n*") -> 4 | I75: F | J75: F | K75: F | L75: F | M75: F | N75: .F | O75: F | P75: F | Q75: F | R75: F | S75: .F | T75: F | U75: F | V75: F | W75: F | X75: .F | Y75: F | Z75: F | AA75: S | AB75: S | AC75: S | AD75: .S | AE75: S | AF75: S | AG75: S | AH75: S | AI75: A | AJ75: S | AK75: S | AL75: S | AM75: S | AN75: S | AO75: S | AP75: S | AQ75: U | AR75: N | AS75: N | AT75: N | AU75: N | AV75: N | AW75: N | AX75: N | AY75: N | AZ75: N | BA75: N | BB75: N | BC75: N | BD75: N | BE75: N | BF75: N | BG75: N | BH75: Do | BI75: 2026-03-12 | BJ75: U | BK75: T | BL75: F | BM75: 11 | BN75: S | BO75: .S | BP75: F | BQ75: T | BR75: T | BS75: T
A76: 2026-03-13 | B76: Fr | C76: 11 | D76: 10 | E76: 11 | F76: =COUNTIF($I76:L76,"f*")+COUNTIF($AA76:$AD76,"f*")+COUNTIF($AR76:$AU76,"f*") -> 4 | G76: =COUNTIF($I76:L76,"s*")+COUNTIF($AA76:$AD76,"s*")+COUNTIF($AR76:$AU76,"s*") -> 3 | H76: =COUNTIF($I76:L76,"n*")+COUNTIF($AA76:$AD76,"n*")+COUNTIF($AR76:$AU76,"n*") -> 4 | I76: F | J76: F | K76: F | L76: F | M76: F | N76: .F | O76: F | P76: F | Q76: F | R76: F | S76: .F | T76: F | U76: F | V76: F | W76: F | X76: .F | Y76: F | Z76: F | AA76: S | AB76: S | AC76: S | AD76: .S | AE76: S | AF76: A | AG76: S | AH76: S | AI76: S | AJ76: S | AK76: .S | AL76: S | AM76: S | AN76: S | AO76: S | AP76: S | AQ76: U | AR76: N | AS76: N | AT76: N | AU76: N | AV76: N | AW76: N | AX76: N | AY76: N | AZ76: N | BA76: N | BB76: N | BC76: U | BD76: N+ | BE76: N+ | BF76: N+ | BG76: N+ | BH76: Fr | BI76: 2026-03-13 | BJ76: U | BK76: T | BL76: F | BM76: 11 | BN76: S | BO76: .S | BP76: F | BQ76: T | BR76: T | BS76: T
A77: 2026-03-14 | B77: Sa | C77: 1 | D77: 0 | E77: 0 | F77: =COUNTIF($I77:L77,"f*")+COUNTIF($AA77:$AD77,"f*")+COUNTIF($AR77:$AU77,"f*") -> 0 | G77: =COUNTIF($I77:L77,"s*")+COUNTIF($AA77:$AD77,"s*")+COUNTIF($AR77:$AU77,"s*") -> 0 | H77: =COUNTIF($I77:L77,"n*")+COUNTIF($AA77:$AD77,"n*")+COUNTIF($AR77:$AU77,"n*") -> 0 | M77: F | BH77: Sa | BI77: 2026-03-14 | BM77: 12
A78: 2026-03-15 | B78: So | C78: 0 | D78: 0 | E78: 1 | F78: =COUNTIF($I78:L78,"f*")+COUNTIF($AA78:$AD78,"f*")+COUNTIF($AR78:$AU78,"f*") -> 0 | G78: =COUNTIF($I78:L78,"s*")+COUNTIF($AA78:$AD78,"s*")+COUNTIF($AR78:$AU78,"s*") -> 0 | H78: =COUNTIF($I78:L78,"n*")+COUNTIF($AA78:$AD78,"n*")+COUNTIF($AR78:$AU78,"n*") -> 0 | O78: N | BH78: So | BI78: 2026-03-15 | BM78: 12
A79: 2026-03-16 | B79: Mo | C79: 11 | D79: 11 | E79: 10 | F79: =COUNTIF($I79:L79,"f*")+COUNTIF($AA79:$AD79,"f*")+COUNTIF($AR79:$AU79,"f*") -> 2 | G79: =COUNTIF($I79:L79,"s*")+COUNTIF($AA79:$AD79,"s*")+COUNTIF($AR79:$AU79,"s*") -> 4 | H79: =COUNTIF($I79:L79,"n*")+COUNTIF($AA79:$AD79,"n*")+COUNTIF($AR79:$AU79,"n*") -> 4 | I79: N | J79: N | K79: N | L79: N | M79: N | N79: .N | O79: N | P79: N | Q79: N | R79: N | S79: .N | T79: N | U79: N | V79: N | W79: U | X79: .N | Y79: N | Z79: N | AA79: F+ | AB79: F | AC79: U | AD79: .F | AE79: F | AF79: F | AG79: F | AH79: F+ | AI79: F | AJ79: F+ | AK79: .F | AL79: F+ | AM79: F | AN79: F | AO79: U | AP79: F | AQ79: F | AR79: S | AS79: S | AT79: S | AU79: S | AV79: S | AW79: S | AX79: S | AY79: S | AZ79: S | BA79: S | BB79: S | BC79: S | BD79: S | BE79: S | BF79: S | BG79: U | BH79: Mo | BI79: 2026-03-16 | BJ79: U | BK79: T | BL79: F | BM79: 12 | BN79: F | BO79: .F | BP79: S | BQ79: T | BR79: T | BS79: T
A80: 2026-03-17 | B80: Di | C80: 11 | D80: 11 | E80: 10 | F80: =COUNTIF($I80:L80,"f*")+COUNTIF($AA80:$AD80,"f*")+COUNTIF($AR80:$AU80,"f*") -> 2 | G80: =COUNTIF($I80:L80,"s*")+COUNTIF($AA80:$AD80,"s*")+COUNTIF($AR80:$AU80,"s*") -> 4 | H80: =COUNTIF($I80:L80,"n*")+COUNTIF($AA80:$AD80,"n*")+COUNTIF($AR80:$AU80,"n*") -> 4 | I80: N | J80: N | K80: N | L80: N | M80: N | N80: .N | O80: N | P80: N | Q80: N | R80: N | S80: .N | T80: N | U80: N | V80: N | W80: U | X80: .N | Y80: N | Z80: N | AA80: F | AB80: F | AC80: U | AD80: .F | AE80: F | AF80: F | AG80: F | AH80: F | AI80: F | AJ80: F | AK80: .F | AL80: F | AM80: F | AN80: F | AO80: U | AP80: F | AQ80: F | AR80: S | AS80: S | AT80: S | AU80: S | AV80: S | AW80: S | AX80: S | AY80: S | AZ80: S | BA80: S | BB80: S | BC80: S | BD80: S | BE80: S | BF80: S | BG80: U | BH80: Di | BI80: 2026-03-17 | BJ80: U | BK80: T | BL80: F | BM80: 12 | BN80: F | BO80: .F | BP80: S | BQ80: T | BR80: T | BS80: T
A81: 2026-03-18 | B81: Mi | C81: 11 | D81: 10 | E81: 10 | F81: =COUNTIF($I81:L81,"f*")+COUNTIF($AA81:$AD81,"f*")+COUNTIF($AR81:$AU81,"f*") -> 2 | G81: =COUNTIF($I81:L81,"s*")+COUNTIF($AA81:$AD81,"s*")+COUNTIF($AR81:$AU81,"s*") -> 4 | H81: =COUNTIF($I81:L81,"n*")+COUNTIF($AA81:$AD81,"n*")+COUNTIF($AR81:$AU81,"n*") -> 4 | I81: N | J81: N | K81: N | L81: N | M81: N | N81: .N | O81: N | P81: N | Q81: N | R81: N | S81: .N | T81: N | U81: N | V81: N | W81: U | X81: .N | Y81: N | Z81: N | AA81: F | AB81: F | AC81: U | AD81: .F | AE81: F | AF81: F | AG81: F | AH81: F | AI81: F | AJ81: F | AK81: .F | AL81: F | AM81: F | AN81: F | AO81: U | AP81: F | AQ81: F | AR81: S | AS81: S | AT81: S | AU81: S | AV81: S | AW81: S | AX81: S | AY81: S | AZ81: S | BA81: S | BB81: S | BC81: S | BD81: S | BE81: S | BF81: A | BG81: U | BH81: Mi | BI81: 2026-03-18 | BJ81: U | BK81: T | BL81: F | BM81: 12 | BN81: F | BO81: .F | BP81: S | BQ81: T | BR81: T | BS81: T
A82: 2026-03-19 | B82: Do | C82: 11 | D82: 11 | E82: 10 | F82: =COUNTIF($I82:L82,"f*")+COUNTIF($AA82:$AD82,"f*")+COUNTIF($AR82:$AU82,"f*") -> 2 | G82: =COUNTIF($I82:L82,"s*")+COUNTIF($AA82:$AD82,"s*")+COUNTIF($AR82:$AU82,"s*") -> 4 | H82: =COUNTIF($I82:L82,"n*")+COUNTIF($AA82:$AD82,"n*")+COUNTIF($AR82:$AU82,"n*") -> 4 | I82: N | J82: N | K82: N | L82: N | M82: N | N82: .N | O82: N | P82: N | Q82: N | R82: N | S82: .N | T82: N | U82: N | V82: N | W82: U | X82: .N | Y82: N | Z82: N | AA82: F | AB82: F | AC82: U | AD82: .F | AE82: F | AF82: F | AG82: F | AH82: F | AI82: F | AJ82: F | AK82: .F | AL82: F | AM82: F | AN82: F | AO82: U | AP82: F | AQ82: F | AR82: S | AS82: S | AT82: S | AU82: S | AV82: S | AW82: S | AX82: S | AY82: S | AZ82: S | BA82: S | BB82: S | BC82: S | BD82: S | BE82: S | BF82: S | BG82: U | BH82: Do | BI82: 2026-03-19 | BJ82: U | BK82: T | BL82: F | BM82: 12 | BN82: F | BO82: .F | BP82: S | BQ82: T | BR82: T | BS82: T
A83: 2026-03-20 | B83: Fr | C83: 10 | D83: 11 | E83: 10 | F83: =COUNTIF($I83:L83,"f*")+COUNTIF($AA83:$AD83,"f*")+COUNTIF($AR83:$AU83,"f*") -> 2 | G83: =COUNTIF($I83:L83,"s*")+COUNTIF($AA83:$AD83,"s*")+COUNTIF($AR83:$AU83,"s*") -> 4 | H83: =COUNTIF($I83:L83,"n*")+COUNTIF($AA83:$AD83,"n*")+COUNTIF($AR83:$AU83,"n*") -> 4 | I83: N | J83: N | K83: N | L83: N | M83: N | N83: .N | O83: N | P83: N | Q83: N | R83: N | S83: .N | T83: N | U83: N | V83: N | W83: U | X83: .N | Y83: N | Z83: N | AA83: F | AB83: F | AC83: U | AD83: .F | AE83: F | AF83: F | AG83: F | AH83: F | AI83: F | AJ83: F | AK83: .F | AL83: F | AM83: F | AN83: A | AO83: U | AP83: F | AQ83: F | AR83: S | AS83: S | AT83: S | AU83: S | AV83: S | AW83: S | AX83: S | AY83: S | AZ83: S | BA83: S | BB83: S | BC83: S | BD83: S | BE83: S | BF83: S | BG83: U | BH83: Fr | BI83: 2026-03-20 | BJ83: U | BK83: U | BL83: F | BM83: 12 | BN83: F | BO83: .F | BP83: S | BQ83: T | BR83: T | BS83: T
A84: 2026-03-21 | B84: Sa | C84: 1 | D84: 0 | E84: 0 | F84: =COUNTIF($I84:L84,"f*")+COUNTIF($AA84:$AD84,"f*")+COUNTIF($AR84:$AU84,"f*") -> 0 | G84: =COUNTIF($I84:L84,"s*")+COUNTIF($AA84:$AD84,"s*")+COUNTIF($AR84:$AU84,"s*") -> 0 | H84: =COUNTIF($I84:L84,"n*")+COUNTIF($AA84:$AD84,"n*")+COUNTIF($AR84:$AU84,"n*") -> 0 | AF84: F | BH84: Sa | BI84: 2026-03-21 | BM84: 13
A85: 2026-03-22 | B85: So | C85: 0 | D85: 0 | E85: 1 | F85: =COUNTIF($I85:L85,"f*")+COUNTIF($AA85:$AD85,"f*")+COUNTIF($AR85:$AU85,"f*") -> 0 | G85: =COUNTIF($I85:L85,"s*")+COUNTIF($AA85:$AD85,"s*")+COUNTIF($AR85:$AU85,"s*") -> 0 | H85: =COUNTIF($I85:L85,"n*")+COUNTIF($AA85:$AD85,"n*")+COUNTIF($AR85:$AU85,"n*") -> 0 | AG85: N | BH85: So | BI85: 2026-03-22 | BM85: 13
A86: 2026-03-23 | B86: Mo | C86: 12 | D86: 9 | E86: 12 | F86: =COUNTIF($I86:L86,"f*")+COUNTIF($AA86:$AD86,"f*")+COUNTIF($AR86:$AU86,"f*") -> 4 | G86: =COUNTIF($I86:L86,"s*")+COUNTIF($AA86:$AD86,"s*")+COUNTIF($AR86:$AU86,"s*") -> 4 | H86: =COUNTIF($I86:L86,"n*")+COUNTIF($AA86:$AD86,"n*")+COUNTIF($AR86:$AU86,"n*") -> 2 | I86: S | J86: S | K86: S | L86: S | M86: S | N86: .S | O86: S | P86: S | Q86: S | R86: S | S86: .S | T86: A | U86: S | V86: U | W86: S | X86: .S | Y86: S | Z86: S | AA86: N | AB86: N | AC86: U | AD86: .N | AE86: N | AF86: N | AG86: N | AH86: N | AI86: N | AJ86: N | AK86: .N | AL86: N | AM86: N | AN86: N | AO86: N | AP86: N | AQ86: N | AR86: F | AS86: F | AT86: F | AU86: F+ | AV86: F | AW86: F | AX86: F | AY86: F | AZ86: F+ | BA86: F+ | BB86: F+ | BC86: F+ | BD86: F | BE86: F | BF86: F | BG86: F | BH86: Mo | BI86: 2026-03-23 | BJ86: F | BK86: U | BL86: F | BM86: 13 | BN86: S | BO86: .N | BP86: F | BQ86: T | BR86: T | BS86: T
A87: 2026-03-24 | B87: Di | C87: 12 | D87: 10 | E87: 12 | F87: =COUNTIF($I87:L87,"f*")+COUNTIF($AA87:$AD87,"f*")+COUNTIF($AR87:$AU87,"f*") -> 4 | G87: =COUNTIF($I87:L87,"s*")+COUNTIF($AA87:$AD87,"s*")+COUNTIF($AR87:$AU87,"s*") -> 4 | H87: =COUNTIF($I87:L87,"n*")+COUNTIF($AA87:$AD87,"n*")+COUNTIF($AR87:$AU87,"n*") -> 3 | I87: S | J87: S | K87: S | L87: S | M87: S | N87: .S | O87: S | P87: S | Q87: S | R87: S | S87: .S | T87: S | U87: S | V87: U | W87: S | X87: .S | Y87: S | Z87: S | AA87: N | AB87: N | AC87: N | AD87: .N | AE87: N | AF87: N | AG87: N | AH87: N | AI87: N | AJ87: N | AK87: .N | AL87: N | AM87: N | AN87: N | AO87: N | AP87: N | AQ87: N | AR87: F | AS87: F | AT87: F | AU87: F | AV87: F | AW87: F | AX87: F | AY87: F | AZ87: F | BA87: F | BB87: F | BC87: F | BD87: F | BE87: F | BF87: F | BG87: F | BH87: Di | BI87: 2026-03-24 | BJ87: F | BK87: T | BL87: F | BM87: 13 | BN87: S | BO87: .N | BP87: F | BQ87: T | BR87: T | BS87: T
A88: 2026-03-25 | B88: Mi | C88: 12 | D88: 9 | E88: 12 | F88: =COUNTIF($I88:L88,"f*")+COUNTIF($AA88:$AD88,"f*")+COUNTIF($AR88:$AU88,"f*") -> 4 | G88: =COUNTIF($I88:L88,"s*")+COUNTIF($AA88:$AD88,"s*")+COUNTIF($AR88:$AU88,"s*") -> 4 | H88: =COUNTIF($I88:L88,"n*")+COUNTIF($AA88:$AD88,"n*")+COUNTIF($AR88:$AU88,"n*") -> 3 | I88: S | J88: S | K88: S | L88: S | M88: S | N88: .S | O88: S | P88: A | Q88: S | R88: S | S88: .S | T88: S | U88: S | V88: U | W88: S | X88: .S | Y88: S | Z88: S | AA88: N | AB88: N | AC88: N | AD88: .N | AE88: N | AF88: N | AG88: N | AH88: N | AI88: N | AJ88: N | AK88: .N | AL88: N | AM88: N | AN88: N | AO88: N | AP88: N | AQ88: N | AR88: F | AS88: F | AT88: F | AU88: F | AV88: F | AW88: F | AX88: F | AY88: F | AZ88: F | BA88: F | BB88: F | BC88: F | BD88: F | BE88: F | BF88: F | BG88: F | BH88: Mi | BI88: 2026-03-25 | BJ88: F | BK88: T | BL88: F | BM88: 13 | BN88: S | BO88: .N | BP88: F | BQ88: T | BR88: T | BS88: T
A89: 2026-03-26 | B89: Do | C89: 12 | D89: 10 | E89: 12 | F89: =COUNTIF($I89:L89,"f*")+COUNTIF($AA89:$AD89,"f*")+COUNTIF($AR89:$AU89,"f*") -> 4 | G89: =COUNTIF($I89:L89,"s*")+COUNTIF($AA89:$AD89,"s*")+COUNTIF($AR89:$AU89,"s*") -> 4 | H89: =COUNTIF($I89:L89,"n*")+COUNTIF($AA89:$AD89,"n*")+COUNTIF($AR89:$AU89,"n*") -> 3 | I89: S | J89: S | K89: S | L89: S | M89: S | N89: .S | O89: S | P89: S | Q89: S | R89: S | S89: .S | T89: S | U89: S | V89: U | W89: S | X89: .S | Y89: S | Z89: S | AA89: N | AB89: N | AC89: N | AD89: .N | AE89: N | AF89: N | AG89: N | AH89: N | AI89: N | AJ89: N | AK89: .N | AL89: N | AM89: N | AN89: N | AO89: N | AP89: N | AQ89: N | AR89: F | AS89: F | AT89: F | AU89: F | AV89: F | AW89: F | AX89: F | AY89: F | AZ89: F | BA89: F | BB89: F | BC89: F | BD89: F | BE89: F | BF89: F | BG89: F | BH89: Do | BI89: 2026-03-26 | BJ89: F | BK89: T | BL89: F | BM89: 13 | BN89: S | BO89: .N | BP89: F | BQ89: T | BR89: T | BS89: T
A90: 2026-03-27 | B90: Fr | C90: 12 | D90: 9 | E90: 11 | F90: =COUNTIF($I90:L90,"f*")+COUNTIF($AA90:$AD90,"f*")+COUNTIF($AR90:$AU90,"f*") -> 4 | G90: =COUNTIF($I90:L90,"s*")+COUNTIF($AA90:$AD90,"s*")+COUNTIF($AR90:$AU90,"s*") -> 4 | H90: =COUNTIF($I90:L90,"n*")+COUNTIF($AA90:$AD90,"n*")+COUNTIF($AR90:$AU90,"n*") -> 3 | I90: S | J90: S | K90: S | L90: S | M90: S | N90: .S | O90: S | P90: S | Q90: S | R90: S | S90: .S | T90: S | U90: S | V90: A | W90: S | X90: .S | Y90: A | Z90: S | AA90: N | AB90: N | AC90: N | AD90: .N | AE90: N | AF90: N | AG90: N | AH90: N | AI90: N | AJ90: U | AK90: .N | AL90: N | AM90: N+ | AN90: N+ | AO90: N+ | AP90: N+ | AQ90: N+ | AR90: F | AS90: F | AT90: F | AU90: F | AV90: F | AW90: F | AX90: F | AY90: F | AZ90: F | BA90: F | BB90: F | BC90: F | BD90: F | BE90: F | BF90: F | BG90: F | BH90: Fr | BI90: 2026-03-27 | BJ90: F | BK90: T | BL90: F | BM90: 13 | BN90: S | BO90: .N | BP90: F | BQ90: T | BR90: T | BS90: T
A91: 2026-03-28 | B91: Sa | C91: 1 | D91: 0 | E91: 0 | F91: =COUNTIF($I91:L91,"f*")+COUNTIF($AA91:$AD91,"f*")+COUNTIF($AR91:$AU91,"f*") -> 0 | G91: =COUNTIF($I91:L91,"s*")+COUNTIF($AA91:$AD91,"s*")+COUNTIF($AR91:$AU91,"s*") -> 0 | H91: =COUNTIF($I91:L91,"n*")+COUNTIF($AA91:$AD91,"n*")+COUNTIF($AR91:$AU91,"n*") -> 0 | AW91: F | BH91: Sa | BI91: 2026-03-28 | BM91: 14
A92: 2026-03-29 | B92: So | C92: 0 | D92: 0 | E92: 1 | F92: =COUNTIF($I92:L92,"f*")+COUNTIF($AA92:$AD92,"f*")+COUNTIF($AR92:$AU92,"f*") -> 0 | G92: =COUNTIF($I92:L92,"s*")+COUNTIF($AA92:$AD92,"s*")+COUNTIF($AR92:$AU92,"s*") -> 0 | H92: =COUNTIF($I92:L92,"n*")+COUNTIF($AA92:$AD92,"n*")+COUNTIF($AR92:$AU92,"n*") -> 0 | AV92: N | BH92: So | BI92: 2026-03-29 | BM92: 14
A93: 2026-03-30 | B93: Mo | C93: 9 | D93: 10 | E93: 12 | F93: =COUNTIF($I93:L93,"f*")+COUNTIF($AA93:$AD93,"f*")+COUNTIF($AR93:$AU93,"f*") -> 4 | G93: =COUNTIF($I93:L93,"s*")+COUNTIF($AA93:$AD93,"s*")+COUNTIF($AR93:$AU93,"s*") -> 3 | H93: =COUNTIF($I93:L93,"n*")+COUNTIF($AA93:$AD93,"n*")+COUNTIF($AR93:$AU93,"n*") -> 4 | I93: F | J93: F+ | K93: F | L93: F | M93: U | N93: .F | O93: F | P93: F+ | Q93: F+ | R93: F | S93: .F+ | T93: F | U93: F+ | V93: F | W93: U | X93: .F | Y93: F | Z93: F | AA93: S | AB93: S | AC93: S | AD93: .S | AE93: S | AF93: S | AG93: S | AH93: S | AI93: S | AJ93: U | AK93: .S | AL93: S | AM93: S | AN93: A | AO93: S | AP93: S | AQ93: S | AR93: N | AS93: N | AT93: N | AU93: N | AV93: N | AW93: N | AX93: N | AY93: N | AZ93: N | BA93: N | BB93: N | BC93: N | BD93: N | BE93: N | BF93: N | BG93: N | BH93: Mo | BI93: 2026-03-30 | BJ93: F | BK93: T | BL93: F | BM93: 14 | BN93: F | BO93: .S | BP93: S | BQ93: T | BR93: T | BS93: T
A94: 2026-03-31 | B94: Di | C94: 9 | D94: 12 | E94: 12 | F94: =COUNTIF($I94:L94,"f*")+COUNTIF($AA94:$AD94,"f*")+COUNTIF($AR94:$AU94,"f*") -> 4 | G94: =COUNTIF($I94:L94,"s*")+COUNTIF($AA94:$AD94,"s*")+COUNTIF($AR94:$AU94,"s*") -> 3 | H94: =COUNTIF($I94:L94,"n*")+COUNTIF($AA94:$AD94,"n*")+COUNTIF($AR94:$AU94,"n*") -> 4 | I94: F | J94: F | K94: F | L94: F | M94: U | N94: .F | O94: F | P94: F | Q94: F | R94: F | S94: .F | T94: F | U94: F | V94: F | W94: U | X94: .F | Y94: F | Z94: F | AA94: S | AB94: S | AC94: S | AD94: .S | AE94: S | AF94: S | AG94: S | AH94: S | AI94: S | AJ94: S | AK94: .S | AL94: S | AM94: S | AN94: S | AO94: S | AP94: S | AQ94: S | AR94: N | AS94: N | AT94: N | AU94: N | AV94: N | AW94: N | AX94: N | AY94: N | AZ94: N | BA94: N | BB94: N | BC94: N | BD94: N | BE94: N | BF94: N | BG94: N | BH94: Di | BI94: 2026-03-31 | BJ94: F | BK94: T | BL94: F | BM94: 14 | BN94: F | BO94: .S | BP94: S | BQ94: T | BR94: T | BS94: T
A95: 2026-04-01 | B95: Mi | C95: 9 | D95: 12 | E95: 12 | F95: =COUNTIF($I95:L95,"f*")+COUNTIF($AA95:$AD95,"f*")+COUNTIF($AR95:$AU95,"f*") -> 4 | G95: =COUNTIF($I95:L95,"s*")+COUNTIF($AA95:$AD95,"s*")+COUNTIF($AR95:$AU95,"s*") -> 3 | H95: =COUNTIF($I95:L95,"n*")+COUNTIF($AA95:$AD95,"n*")+COUNTIF($AR95:$AU95,"n*") -> 4 | I95: F | J95: F | K95: F | L95: F | M95: U | N95: .F | O95: F | P95: F | Q95: F | R95: F | S95: .F | T95: F | U95: F | V95: F | W95: U | X95: .F | Y95: F | Z95: F | AA95: S | AB95: S | AC95: S | AD95: .S | AE95: S | AF95: S | AG95: S | AH95: S | AI95: S | AJ95: S | AK95: .S | AL95: S | AM95: S | AN95: S | AO95: S | AP95: S | AQ95: S | AR95: N | AS95: N | AT95: N | AU95: N | AV95: N | AW95: N | AX95: N | AY95: N | AZ95: N | BA95: N | BB95: N | BC95: N | BD95: N | BE95: N | BF95: N | BG95: N | BH95: Mi | BI95: 2026-04-01 | BJ95: F | BK95: U | BL95: F | BM95: 14 | BN95: F | BO95: .S | BP95: S | BQ95: T | BR95: T | BS95: T
A96: 2026-04-02 | B96: Do | C96: 9 | D96: 12 | E96: 11 | F96: =COUNTIF($I96:L96,"f*")+COUNTIF($AA96:$AD96,"f*")+COUNTIF($AR96:$AU96,"f*") -> 4 | G96: =COUNTIF($I96:L96,"s*")+COUNTIF($AA96:$AD96,"s*")+COUNTIF($AR96:$AU96,"s*") -> 3 | H96: =COUNTIF($I96:L96,"n*")+COUNTIF($AA96:$AD96,"n*")+COUNTIF($AR96:$AU96,"n*") -> 4 | I96: F | J96: F | K96: F | L96: F | M96: U | N96: .F | O96: F | P96: F | Q96: F | R96: F | S96: .F | T96: F | U96: F | V96: F | W96: U | X96: .F | Y96: F | Z96: F | AA96: S | AB96: S | AC96: S | AD96: .S | AE96: S | AF96: S | AG96: S | AH96: S | AI96: S | AJ96: S | AK96: .S | AL96: S | AM96: S | AN96: S | AO96: S | AP96: S | AQ96: S | AR96: N | AS96: N | AT96: N | AU96: N | AV96: N | AW96: N | AX96: N | AY96: N | AZ96: N | BA96: N | BB96: N | BC96: N | BD96: A | BE96: N | BF96: N | BG96: N | BH96: Do | BI96: 2026-04-02 | BJ96: F | BK96: U | BL96: F | BM96: 14 | BN96: F | BO96: .S | BP96: S | BQ96: T | BR96: T | BS96: T
A97: 2026-04-03 | B97: Fr | C97: 9 | D97: 12 | E97: 12 | F97: =COUNTIF($I97:L97,"f*")+COUNTIF($AA97:$AD97,"f*")+COUNTIF($AR97:$AU97,"f*") -> 4 | G97: =COUNTIF($I97:L97,"s*")+COUNTIF($AA97:$AD97,"s*")+COUNTIF($AR97:$AU97,"s*") -> 3 | H97: =COUNTIF($I97:L97,"n*")+COUNTIF($AA97:$AD97,"n*")+COUNTIF($AR97:$AU97,"n*") -> 4 | I97: F | J97: F | K97: F | L97: F | M97: U | N97: .F | O97: F | P97: F | Q97: F | R97: F | S97: .F | T97: F | U97: F | V97: F | W97: U | X97: .F | Y97: F | Z97: F | AA97: S | AB97: S | AC97: S | AD97: .S | AE97: S | AF97: S | AG97: S | AH97: S | AI97: S | AJ97: S | AK97: .S | AL97: S | AM97: S | AN97: S | AO97: S | AP97: S | AQ97: S | AR97: N | AS97: N | AT97: N | AU97: N | AV97: N | AW97: N | AX97: N | AY97: N | AZ97: N | BA97: N | BB97: N | BC97: N | BD97: N+ | BE97: N+ | BF97: N+ | BG97: N+ | BH97: Fr | BI97: 2026-04-03 | BJ97: H | BK97: H | BL97: H | BM97: 14 | BN97: F | BO97: .S | BP97: S | BQ97: H | BR97: H | BS97: H
A98: 2026-04-04 | B98: Sa | C98: 1 | D98: 0 | E98: 0 | F98: =COUNTIF($I98:L98,"f*")+COUNTIF($AA98:$AD98,"f*")+COUNTIF($AR98:$AU98,"f*") -> 0 | G98: =COUNTIF($I98:L98,"s*")+COUNTIF($AA98:$AD98,"s*")+COUNTIF($AR98:$AU98,"s*") -> 0 | H98: =COUNTIF($I98:L98,"n*")+COUNTIF($AA98:$AD98,"n*")+COUNTIF($AR98:$AU98,"n*") -> 0 | O98: F | BH98: Sa | BI98: 2026-04-04 | BM98: 15
A99: 2026-04-05 | B99: So | C99: 0 | D99: 0 | E99: 1 | F99: =COUNTIF($I99:L99,"f*")+COUNTIF($AA99:$AD99,"f*")+COUNTIF($AR99:$AU99,"f*") -> 0 | G99: =COUNTIF($I99:L99,"s*")+COUNTIF($AA99:$AD99,"s*")+COUNTIF($AR99:$AU99,"s*") -> 0 | H99: =COUNTIF($I99:L99,"n*")+COUNTIF($AA99:$AD99,"n*")+COUNTIF($AR99:$AU99,"n*") -> 0 | O99: N | BH99: So | BI99: 2026-04-05 | BM99: 15
A100: 2026-04-06 | B100: Mo | C100: 11 | D100: 9 | E100: 10 | F100: =COUNTIF($I100:L100,"f*")+COUNTIF($AA100:$AD100,"f*")+COUNTIF($AR100:$AU100,"f*") -> 3 | G100: =COUNTIF($I100:L100,"s*")+COUNTIF($AA100:$AD100,"s*")+COUNTIF($AR100:$AU100,"s*") -> 3 | H100: =COUNTIF($I100:L100,"n*")+COUNTIF($AA100:$AD100,"n*")+COUNTIF($AR100:$AU100,"n*") -> 4 | I100: N | J100: N | K100: N | L100: N | M100: N | N100: .N | O100: N | P100: N | Q100: N | R100: N | S100: .N | T100: N | U100: N | V100: N | W100: U | X100: .N | Y100: N | Z100: N | AA100: F | AB100: F+ | AC100: F | AD100: .F | AE100: F | AF100: F | AG100: F | AH100: F+ | AI100: F | AJ100: F+ | AK100: .F | AL100: F+ | AM100: A | AN100: F | AO100: F | AP100: F | AQ100: F | AR100: S | AS100: A | AT100: S | AU100: S | AV100: S | AW100: A | AX100: S | AY100: S | AZ100: S | BA100: S | BB100: S | BC100: S | BD100: S | BE100: U | BF100: A | BG100: S | BH100: Mo | BI100: 2026-04-06 | BJ100: H | BK100: H | BL100: H | BM100: 15 | BN100: S | BO100: .F | BP100: F | BQ100: H | BR100: H | BS100: H
A101: 2026-04-07 | B101: Di | C101: 11 | D101: 9 | E101: 9 | F101: =COUNTIF($I101:L101,"f*")+COUNTIF($AA101:$AD101,"f*")+COUNTIF($AR101:$AU101,"f*") -> 3 | G101: =COUNTIF($I101:L101,"s*")+COUNTIF($AA101:$AD101,"s*")+COUNTIF($AR101:$AU101,"s*") -> 3 | H101: =COUNTIF($I101:L101,"n*")+COUNTIF($AA101:$AD101,"n*")+COUNTIF($AR101:$AU101,"n*") -> 4 | I101: N | J101: N | K101: N | L101: N | M101: N | N101: .N | O101: N | P101: N | Q101: N | R101: U | S101: .N | T101: N | U101: N | V101: N | W101: U | X101: .N | Y101: N | Z101: N | AA101: F | AB101: F | AC101: F | AD101: .F | AE101: F | AF101: F | AG101: F | AH101: F | AI101: F | AJ101: F | AK101: .F | AL101: F | AM101: U | AN101: F | AO101: F | AP101: F | AQ101: F | AR101: S | AS101: S | AT101: A | AU101: S | AV101: S | AW101: S | AX101: S | AY101: U | AZ101: S | BA101: U | BB101: S | BC101: S | BD101: S | BE101: U | BF101: S | BG101: S | BH101: Di | BI101: 2026-04-07 | BJ101: F | BK101: U | BL101: F | BM101: 15 | BN101: S | BO101: .F | BP101: F | BQ101: T | BR101: U | BS101: T
A102: 2026-04-08 | B102: Mi | C102: 11 | D102: 9 | E102: 9 | F102: =COUNTIF($I102:L102,"f*")+COUNTIF($AA102:$AD102,"f*")+COUNTIF($AR102:$AU102,"f*") -> 3 | G102: =COUNTIF($I102:L102,"s*")+COUNTIF($AA102:$AD102,"s*")+COUNTIF($AR102:$AU102,"s*") -> 4 | H102: =COUNTIF($I102:L102,"n*")+COUNTIF($AA102:$AD102,"n*")+COUNTIF($AR102:$AU102,"n*") -> 4 | I102: N | J102: N | K102: N | L102: N | M102: N | N102: .N | O102: N | P102: N | Q102: N | R102: U | S102: .N | T102: N | U102: N | V102: N | W102: U | X102: .N | Y102: N | Z102: N | AA102: F | AB102: F | AC102: F | AD102: .F | AE102: F | AF102: F | AG102: F | AH102: F | AI102: F | AJ102: F | AK102: .F | AL102: F | AM102: U | AN102: F | AO102: F | AP102: F | AQ102: F | AR102: S | AS102: S | AT102: S | AU102: S | AV102: S | AW102: S | AX102: S | AY102: U | AZ102: S | BA102: U | BB102: S | BC102: S | BD102: S | BE102: U | BF102: S | BG102: S | BH102: Mi | BI102: 2026-04-08 | BJ102: F | BK102: U | BL102: F | BM102: 15 | BN102: S | BO102: .F | BP102: F | BQ102: T | BR102: U | BS102: T
A103: 2026-04-09 | B103: Do | C103: 11 | D103: 9 | E103: 9 | F103: =COUNTIF($I103:L103,"f*")+COUNTIF($AA103:$AD103,"f*")+COUNTIF($AR103:$AU103,"f*") -> 3 | G103: =COUNTIF($I103:L103,"s*")+COUNTIF($AA103:$AD103,"s*")+COUNTIF($AR103:$AU103,"s*") -> 4 | H103: =COUNTIF($I103:L103,"n*")+COUNTIF($AA103:$AD103,"n*")+COUNTIF($AR103:$AU103,"n*") -> 4 | I103: N | J103: N | K103: N | L103: N | M103: N | N103: .N | O103: N | P103: N | Q103: N | R103: U | S103: .N | T103: N | U103: N | V103: N | W103: U | X103: .N | Y103: N | Z103: N | AA103: F | AB103: F | AC103: F | AD103: .F | AE103: F | AF103: F | AG103: F | AH103: F | AI103: F | AJ103: F | AK103: .F | AL103: F | AM103: U | AN103: F | AO103: F | AP103: F | AQ103: F | AR103: S | AS103: S | AT103: S | AU103: S | AV103: S | AW103: S | AX103: S | AY103: U | AZ103: S | BA103: U | BB103: S | BC103: S | BD103: S | BE103: U | BF103: S | BG103: S | BH103: Do | BI103: 2026-04-09 | BJ103: F | BK103: U | BL103: F | BM103: 15 | BN103: S | BO103: .F | BP103: F | BQ103: T | BR103: U | BS103: T
A104: 2026-04-10 | B104: Fr | C104: 9 | D104: 9 | E104: 9 | F104: =COUNTIF($I104:L104,"f*")+COUNTIF($AA104:$AD104,"f*")+COUNTIF($AR104:$AU104,"f*") -> 2 | G104: =COUNTIF($I104:L104,"s*")+COUNTIF($AA104:$AD104,"s*")+COUNTIF($AR104:$AU104,"s*") -> 4 | H104: =COUNTIF($I104:L104,"n*")+COUNTIF($AA104:$AD104,"n*")+COUNTIF($AR104:$AU104,"n*") -> 4 | I104: N | J104: N | K104: N | L104: N | M104: N | N104: .N | O104: N | P104: N | Q104: N | R104: U | S104: .N | T104: N | U104: N | V104: N | W104: U | X104: .N | Y104: N | Z104: N | AA104: A | AB104: F | AC104: F | AD104: .F | AE104: F | AF104: F | AG104: F | AH104: F | AI104: A | AJ104: F | AK104: .F | AL104: F | AM104: U | AN104: F | AO104: F | AP104: A | AQ104: F | AR104: S | AS104: S | AT104: S | AU104: S | AV104: S | AW104: S | AX104: S | AY104: U | AZ104: S | BA104: U | BB104: S | BC104: S | BD104: S | BE104: U | BF104: S | BG104: S | BH104: Fr | BI104: 2026-04-10 | BJ104: F | BK104: U | BL104: F | BM104: 15 | BN104: S | BO104: .F | BP104: F | BQ104: T | BR104: U | BS104: T
A105: 2026-04-11 | B105: Sa | C105: 1 | D105: 0 | E105: 0 | F105: =COUNTIF($I105:L105,"f*")+COUNTIF($AA105:$AD105,"f*")+COUNTIF($AR105:$AU105,"f*") -> 0 | G105: =COUNTIF($I105:L105,"s*")+COUNTIF($AA105:$AD105,"s*")+COUNTIF($AR105:$AU105,"s*") -> 0 | H105: =COUNTIF($I105:L105,"n*")+COUNTIF($AA105:$AD105,"n*")+COUNTIF($AR105:$AU105,"n*") -> 0 | AE105: F | BH105: Sa | BI105: 2026-04-11 | BM105: 16
A106: 2026-04-12 | B106: So | C106: 0 | D106: 0 | E106: 1 | F106: =COUNTIF($I106:L106,"f*")+COUNTIF($AA106:$AD106,"f*")+COUNTIF($AR106:$AU106,"f*") -> 0 | G106: =COUNTIF($I106:L106,"s*")+COUNTIF($AA106:$AD106,"s*")+COUNTIF($AR106:$AU106,"s*") -> 0 | H106: =COUNTIF($I106:L106,"n*")+COUNTIF($AA106:$AD106,"n*")+COUNTIF($AR106:$AU106,"n*") -> 0 | AG106: N | BH106: So | BI106: 2026-04-12 | BM106: 16
A107: 2026-04-13 | B107: Mo | C107: 11 | D107: 10 | E107: 11 | F107: =COUNTIF($I107:L107,"f*")+COUNTIF($AA107:$AD107,"f*")+COUNTIF($AR107:$AU107,"f*") -> 4 | G107: =COUNTIF($I107:L107,"s*")+COUNTIF($AA107:$AD107,"s*")+COUNTIF($AR107:$AU107,"s*") -> 3 | H107: =COUNTIF($I107:L107,"n*")+COUNTIF($AA107:$AD107,"n*")+COUNTIF($AR107:$AU107,"n*") -> 2 | I107: S | J107: S | K107: U | L107: S | M107: S | N107: .S | O107: S | P107: U | Q107: S | R107: S | S107: .S | T107: S | U107: S | V107: S | W107: S | X107: .S | Y107: S | Z107: S | AA107: U | AB107: N | AC107: N | AD107: .N | AE107: N | AF107: A | AG107: N | AH107: N | AI107: N | AJ107: N | AK107: .N | AL107: N | AM107: N | AN107: N | AO107: N | AP107: N | AQ107: N | AR107: F+ | AS107: F | AT107: F | AU107: F | AV107: F | AW107: F | AX107: F | AY107: F | AZ107: F+ | BA107: F+ | BB107: F+ | BC107: F+ | BD107: F | BE107: U | BF107: F | BG107: F | BH107: Mo | BI107: 2026-04-13 | BJ107: F | BK107: T | BL107: F | BM107: 16 | BN107: F | BO107: .N | BP107: S | BQ107: T | BR107: T | BS107: T
A108: 2026-04-14 | B108: Di | C108: 11 | D108: 10 | E108: 11 | F108: =COUNTIF($I108:L108,"f*")+COUNTIF($AA108:$AD108,"f*")+COUNTIF($AR108:$AU108,"f*") -> 4 | G108: =COUNTIF($I108:L108,"s*")+COUNTIF($AA108:$AD108,"s*")+COUNTIF($AR108:$AU108,"s*") -> 3 | H108: =COUNTIF($I108:L108,"n*")+COUNTIF($AA108:$AD108,"n*")+COUNTIF($AR108:$AU108,"n*") -> 2 | I108: S | J108: S | K108: U | L108: S | M108: S | N108: .S | O108: S | P108: U | Q108: S | R108: S | S108: .S | T108: S | U108: S | V108: S | W108: S | X108: .S | Y108: S | Z108: S | AA108: U | AB108: N | AC108: N | AD108: .N | AE108: N | AF108: N | AG108: N | AH108: N | AI108: N | AJ108: N | AK108: .N | AL108: N | AM108: N | AN108: N | AO108: N | AP108: N | AQ108: A | AR108: F | AS108: F | AT108: F | AU108: F | AV108: F | AW108: F | AX108: F | AY108: F | AZ108: F | BA108: F | BB108: F | BC108: F | BD108: F | BE108: U | BF108: F | BG108: F | BH108: Di | BI108: 2026-04-14 | BJ108: F | BK108: T | BL108: F | BM108: 16 | BN108: F | BO108: .N | BP108: S | BQ108: T | BR108: T | BS108: T
A109: 2026-04-15 | B109: Mi | C109: 10 | D109: 10 | E109: 12 | F109: =COUNTIF($I109:L109,"f*")+COUNTIF($AA109:$AD109,"f*")+COUNTIF($AR109:$AU109,"f*") -> 4 | G109: =COUNTIF($I109:L109,"s*")+COUNTIF($AA109:$AD109,"s*")+COUNTIF($AR109:$AU109,"s*") -> 3 | H109: =COUNTIF($I109:L109,"n*")+COUNTIF($AA109:$AD109,"n*")+COUNTIF($AR109:$AU109,"n*") -> 2 | I109: S | J109: S | K109: U | L109: S | M109: S | N109: .S | O109: S | P109: U | Q109: S | R109: S | S109: .S | T109: S | U109: S | V109: S | W109: S | X109: .S | Y109: S | Z109: S | AA109: U | AB109: N | AC109: N | AD109: .N | AE109: N | AF109: N | AG109: N | AH109: N | AI109: N | AJ109: N | AK109: .N | AL109: N | AM109: N | AN109: N | AO109: N | AP109: N | AQ109: N | AR109: F | AS109: F | AT109: F | AU109: F | AV109: F | AW109: F | AX109: F | AY109: F | AZ109: F | BA109: F | BB109: A | BC109: F | BD109: F | BE109: U | BF109: F | BG109: F | BH109: Mi | BI109: 2026-04-15 | BJ109: F | BK109: T | BL109: F | BM109: 16 | BN109: F | BO109: .N | BP109: S | BQ109: T | BR109: T | BS109: T
A110: 2026-04-16 | B110: Do | C110: 11 | D110: 10 | E110: 11 | F110: =COUNTIF($I110:L110,"f*")+COUNTIF($AA110:$AD110,"f*")+COUNTIF($AR110:$AU110,"f*") -> 4 | G110: =COUNTIF($I110:L110,"s*")+COUNTIF($AA110:$AD110,"s*")+COUNTIF($AR110:$AU110,"s*") -> 3 | H110: =COUNTIF($I110:L110,"n*")+COUNTIF($AA110:$AD110,"n*")+COUNTIF($AR110:$AU110,"n*") -> 2 | I110: S | J110: S | K110: U | L110: S | M110: S | N110: .S | O110: S | P110: U | Q110: S | R110: S | S110: .S | T110: S | U110: S | V110: S | W110: S | X110: .S | Y110: S | Z110: S | AA110: U | AB110: N | AC110: N | AD110: .N | AE110: N | AF110: U | AG110: N | AH110: N | AI110: N | AJ110: N | AK110: .N | AL110: N | AM110: N | AN110: N | AO110: N | AP110: N | AQ110: N | AR110: F | AS110: F | AT110: F | AU110: F | AV110: F | AW110: F | AX110: F | AY110: F | AZ110: F | BA110: F | BB110: F | BC110: F | BD110: F | BE110: U | BF110: F | BG110: F | BH110: Do | BI110: 2026-04-16 | BJ110: A | BK110: T | BL110: F | BM110: 16 | BN110: F | BO110: .N | BP110: S | BQ110: A | BR110: T | BS110: T
A111: 2026-04-17 | B111: Fr | C111: 11 | D111: 10 | E111: 11 | F111: =COUNTIF($I111:L111,"f*")+COUNTIF($AA111:$AD111,"f*")+COUNTIF($AR111:$AU111,"f*") -> 4 | G111: =COUNTIF($I111:L111,"s*")+COUNTIF($AA111:$AD111,"s*")+COUNTIF($AR111:$AU111,"s*") -> 3 | H111: =COUNTIF($I111:L111,"n*")+COUNTIF($AA111:$AD111,"n*")+COUNTIF($AR111:$AU111,"n*") -> 2 | I111: S | J111: S | K111: U | L111: S | M111: S | N111: .S | O111: S | P111: U | Q111: S | R111: S | S111: .S | T111: S | U111: S | V111: S | W111: S | X111: .S | Y111: S | Z111: S | AA111: U | AB111: N | AC111: N | AD111: .N | AE111: N | AF111: U | AG111: N | AH111: N | AI111: N | AJ111: N | AK111: .N | AL111: N | AM111: N+ | AN111: N+ | AO111: N+ | AP111: N+ | AQ111: N+ | AR111: F | AS111: F | AT111: F | AU111: F | AV111: F | AW111: F | AX111: F | AY111: F | AZ111: F | BA111: F | BB111: F | BC111: F | BD111: F | BE111: U | BF111: F | BG111: F | BH111: Fr | BI111: 2026-04-17 | BJ111: F | BK111: T | BL111: F | BM111: 16 | BN111: F | BO111: .N | BP111: S | BQ111: T | BR111: T | BS111: T
A112: 2026-04-18 | B112: Sa | C112: 1 | D112: 0 | E112: 0 | F112: =COUNTIF($I112:L112,"f*")+COUNTIF($AA112:$AD112,"f*")+COUNTIF($AR112:$AU112,"f*") -> 0 | G112: =COUNTIF($I112:L112,"s*")+COUNTIF($AA112:$AD112,"s*")+COUNTIF($AR112:$AU112,"s*") -> 0 | H112: =COUNTIF($I112:L112,"n*")+COUNTIF($AA112:$AD112,"n*")+COUNTIF($AR112:$AU112,"n*") -> 0 | AX112: F | BH112: Sa | BI112: 2026-04-18 | BM112: 17
A113: 2026-04-19 | B113: So | C113: 0 | D113: 0 | E113: 1 | F113: =COUNTIF($I113:L113,"f*")+COUNTIF($AA113:$AD113,"f*")+COUNTIF($AR113:$AU113,"f*") -> 0 | G113: =COUNTIF($I113:L113,"s*")+COUNTIF($AA113:$AD113,"s*")+COUNTIF($AR113:$AU113,"s*") -> 0 | H113: =COUNTIF($I113:L113,"n*")+COUNTIF($AA113:$AD113,"n*")+COUNTIF($AR113:$AU113,"n*") -> 0 | AY113: N | BH113: So | BI113: 2026-04-19 | BM113: 17
A114: 2026-04-20 | B114: Mo | C114: 11 | D114: 11 | E114: 12 | F114: =COUNTIF($I114:L114,"f*")+COUNTIF($AA114:$AD114,"f*")+COUNTIF($AR114:$AU114,"f*") -> 3 | G114: =COUNTIF($I114:L114,"s*")+COUNTIF($AA114:$AD114,"s*")+COUNTIF($AR114:$AU114,"s*") -> 2 | H114: =COUNTIF($I114:L114,"n*")+COUNTIF($AA114:$AD114,"n*")+COUNTIF($AR114:$AU114,"n*") -> 4 | I114: F | J114: F | K114: F+ | L114: U | M114: F | N114: .F | O114: F | P114: F+ | Q114: F+ | R114: F | S114: .F+ | T114: F+ | U114: F+ | V114: F | W114: F | X114: .F | Y114: F | Z114: F | AA114: S | AB114: U | AC114: S | AD114: .S | AE114: S | AF114: U | AG114: S | AH114: S | AI114: S | AJ114: S | AK114: .S | AL114: S | AM114: S | AN114: S | AO114: S | AP114: S | AQ114: S | AR114: N | AS114: N | AT114: N | AU114: N | AV114: N | AW114: N | AX114: N | AY114: N | AZ114: N | BA114: N | BB114: N | BC114: N | BD114: N | BE114: N | BF114: N | BG114: N | BH114: Mo | BI114: 2026-04-20 | BJ114: F | BK114: T | BL114: F | BM114: 17 | BN114: S | BO114: .S | BP114: F | BQ114: T | BR114: T | BS114: T
A115: 2026-04-21 | B115: Di | C115: 9 | D115: 11 | E115: 12 | F115: =COUNTIF($I115:L115,"f*")+COUNTIF($AA115:$AD115,"f*")+COUNTIF($AR115:$AU115,"f*") -> 3 | G115: =COUNTIF($I115:L115,"s*")+COUNTIF($AA115:$AD115,"s*")+COUNTIF($AR115:$AU115,"s*") -> 2 | H115: =COUNTIF($I115:L115,"n*")+COUNTIF($AA115:$AD115,"n*")+COUNTIF($AR115:$AU115,"n*") -> 4 | I115: F | J115: F | K115: F | L115: U | M115: F | N115: .F | O115: F | P115: F | Q115: U | R115: F | S115: .F | T115: A | U115: F | V115: F | W115: F | X115: .F | Y115: F | Z115: F | AA115: S | AB115: U | AC115: S | AD115: .S | AE115: S | AF115: U | AG115: S | AH115: S | AI115: S | AJ115: S | AK115: .S | AL115: S | AM115: S | AN115: S | AO115: S | AP115: S | AQ115: S | AR115: N | AS115: N | AT115: N | AU115: N | AV115: N | AW115: N | AX115: N | AY115: N | AZ115: N | BA115: N | BB115: N | BC115: N | BD115: N | BE115: N | BF115: N | BG115: N | BH115: Di | BI115: 2026-04-21 | BJ115: F | BK115: T | BL115: F | BM115: 17 | BN115: S | BO115: .S | BP115: F | BQ115: T | BR115: T | BS115: T
A116: 2026-04-22 | B116: Mi | C116: 10 | D116: 11 | E116: 12 | F116: =COUNTIF($I116:L116,"f*")+COUNTIF($AA116:$AD116,"f*")+COUNTIF($AR116:$AU116,"f*") -> 3 | G116: =COUNTIF($I116:L116,"s*")+COUNTIF($AA116:$AD116,"s*")+COUNTIF($AR116:$AU116,"s*") -> 2 | H116: =COUNTIF($I116:L116,"n*")+COUNTIF($AA116:$AD116,"n*")+COUNTIF($AR116:$AU116,"n*") -> 4 | I116: F | J116: F | K116: F | L116: U | M116: F | N116: .F | O116: F | P116: F | Q116: U | R116: F | S116: .F | T116: F | U116: F | V116: F | W116: F | X116: .F | Y116: F | Z116: F | AA116: S | AB116: U | AC116: S | AD116: .S | AE116: S | AF116: U | AG116: S | AH116: S | AI116: S | AJ116: S | AK116: .S | AL116: S | AM116: S | AN116: S | AO116: S | AP116: S | AQ116: S | AR116: N | AS116: N | AT116: N | AU116: N | AV116: N | AW116: N | AX116: N | AY116: N | AZ116: N | BA116: N | BB116: N | BC116: N | BD116: N | BE116: N | BF116: N | BG116: N | BH116: Mi | BI116: 2026-04-22 | BJ116: F | BK116: T | BL116: F | BM116: 17 | BN116: S | BO116: .S | BP116: F | BQ116: T | BR116: T | BS116: T
A117: 2026-04-23 | B117: Do | C117: 9 | D117: 11 | E117: 12 | F117: =COUNTIF($I117:L117,"f*")+COUNTIF($AA117:$AD117,"f*")+COUNTIF($AR117:$AU117,"f*") -> 3 | G117: =COUNTIF($I117:L117,"s*")+COUNTIF($AA117:$AD117,"s*")+COUNTIF($AR117:$AU117,"s*") -> 2 | H117: =COUNTIF($I117:L117,"n*")+COUNTIF($AA117:$AD117,"n*")+COUNTIF($AR117:$AU117,"n*") -> 4 | I117: F | J117: F | K117: F | L117: U | M117: F | N117: .F | O117: F | P117: A | Q117: U | R117: F | S117: .F | T117: F | U117: F | V117: F | W117: F | X117: .F | Y117: F | Z117: F | AA117: S | AB117: A | AC117: S | AD117: .S | AE117: S | AF117: U | AG117: S | AH117: S | AI117: S | AJ117: S | AK117: .S | AL117: S | AM117: S | AN117: S | AO117: S | AP117: S | AQ117: S | AR117: N | AS117: N | AT117: N | AU117: N | AV117: N | AW117: N | AX117: N | AY117: N | AZ117: N | BA117: N | BB117: N | BC117: N | BD117: N | BE117: N | BF117: N | BG117: N | BH117: Do | BI117: 2026-04-23 | BJ117: F | BK117: T | BL117: F | BM117: 17 | BN117: S | BO117: .S | BP117: F | BQ117: T | BR117: T | BS117: T
A118: 2026-04-24 | B118: Fr | C118: 10 | D118: 11 | E118: 11 | F118: =COUNTIF($I118:L118,"f*")+COUNTIF($AA118:$AD118,"f*")+COUNTIF($AR118:$AU118,"f*") -> 3 | G118: =COUNTIF($I118:L118,"s*")+COUNTIF($AA118:$AD118,"s*")+COUNTIF($AR118:$AU118,"s*") -> 2 | H118: =COUNTIF($I118:L118,"n*")+COUNTIF($AA118:$AD118,"n*")+COUNTIF($AR118:$AU118,"n*") -> 4 | I118: F | J118: F | K118: F | L118: U | M118: F | N118: .F | O118: F | P118: F | Q118: U | R118: F | S118: .F | T118: F | U118: F | V118: F | W118: F | X118: .F | Y118: F | Z118: F | AA118: S | AB118: U | AC118: S | AD118: .S | AE118: S | AF118: U | AG118: S | AH118: S | AI118: S | AJ118: S | AK118: .S | AL118: S | AM118: S | AN118: S | AO118: S | AP118: S | AQ118: S | AR118: N | AS118: N | AT118: N | AU118: N | AV118: N | AW118: N | AX118: N | AY118: N | AZ118: N | BA118: N | BB118: N | BC118: U | BD118: N+ | BE118: N+ | BF118: N+ | BG118: N+ | BH118: Fr | BI118: 2026-04-24 | BJ118: F | BK118: T | BL118: F | BM118: 17 | BN118: S | BO118: .S | BP118: F | BQ118: T | BR118: T | BS118: T
A119: 2026-04-25 | B119: Sa | C119: 1 | D119: 0 | E119: 0 | F119: =COUNTIF($I119:L119,"f*")+COUNTIF($AA119:$AD119,"f*")+COUNTIF($AR119:$AU119,"f*") -> 0 | G119: =COUNTIF($I119:L119,"s*")+COUNTIF($AA119:$AD119,"s*")+COUNTIF($AR119:$AU119,"s*") -> 0 | H119: =COUNTIF($I119:L119,"n*")+COUNTIF($AA119:$AD119,"n*")+COUNTIF($AR119:$AU119,"n*") -> 0 | M119: F | BH119: Sa | BI119: 2026-04-25 | BM119: 18
A120: 2026-04-26 | B120: So | C120: 0 | D120: 0 | E120: 1 | F120: =COUNTIF($I120:L120,"f*")+COUNTIF($AA120:$AD120,"f*")+COUNTIF($AR120:$AU120,"f*") -> 0 | G120: =COUNTIF($I120:L120,"s*")+COUNTIF($AA120:$AD120,"s*")+COUNTIF($AR120:$AU120,"s*") -> 0 | H120: =COUNTIF($I120:L120,"n*")+COUNTIF($AA120:$AD120,"n*")+COUNTIF($AR120:$AU120,"n*") -> 0 | O120: N | BH120: So | BI120: 2026-04-26 | BM120: 18
A121: 2026-04-27 | B121: Mo | C121: 11 | D121: 12 | E121: 10 | F121: =COUNTIF($I121:L121,"f*")+COUNTIF($AA121:$AD121,"f*")+COUNTIF($AR121:$AU121,"f*") -> 3 | G121: =COUNTIF($I121:L121,"s*")+COUNTIF($AA121:$AD121,"s*")+COUNTIF($AR121:$AU121,"s*") -> 4 | H121: =COUNTIF($I121:L121,"n*")+COUNTIF($AA121:$AD121,"n*")+COUNTIF($AR121:$AU121,"n*") -> 4 | I121: N | J121: N | K121: N | L121: N | M121: N | N121: .N | O121: N | P121: N | Q121: N | R121: N | S121: .N | T121: N | U121: N | V121: A | W121: N | X121: .N | Y121: N | Z121: N | AA121: F | AB121: F | AC121: F+ | AD121: .F+ | AE121: F | AF121: U | AG121: F | AH121: F+ | AI121: F | AJ121: F+ | AK121: .F | AL121: F+ | AM121: F | AN121: F | AO121: F | AP121: F | AQ121: F | AR121: S | AS121: S | AT121: S | AU121: S | AV121: S | AW121: S | AX121: S | AY121: S | AZ121: S | BA121: S | BB121: S | BC121: S | BD121: S | BE121: S | BF121: S | BG121: S | BH121: Mo | BI121: 2026-04-27 | BJ121: F | BK121: T | BL121: F | BM121: 18 | BN121: F | BO121: .F | BP121: S | BQ121: T | BR121: T | BS121: T
A122: 2026-04-28 | B122: Di | C122: 10 | D122: 12 | E122: 10 | F122: =COUNTIF($I122:L122,"f*")+COUNTIF($AA122:$AD122,"f*")+COUNTIF($AR122:$AU122,"f*") -> 3 | G122: =COUNTIF($I122:L122,"s*")+COUNTIF($AA122:$AD122,"s*")+COUNTIF($AR122:$AU122,"s*") -> 4 | H122: =COUNTIF($I122:L122,"n*")+COUNTIF($AA122:$AD122,"n*")+COUNTIF($AR122:$AU122,"n*") -> 4 | I122: N | J122: N | K122: N | L122: N | M122: N | N122: .N | O122: N | P122: N | Q122: N | R122: N | S122: .N | T122: N | U122: N | V122: N | W122: N | X122: .N | Y122: A | Z122: N | AA122: F | AB122: F | AC122: F | AD122: .F | AE122: F | AF122: U | AG122: F | AH122: F | AI122: F | AJ122: F | AK122: .F | AL122: F | AM122: A | AN122: F | AO122: F | AP122: F | AQ122: F | AR122: S | AS122: S | AT122: S | AU122: S | AV122: S | AW122: S | AX122: S | AY122: S | AZ122: S | BA122: S | BB122: S | BC122: S | BD122: S | BE122: S | BF122: S | BG122: S | BH122: Di | BI122: 2026-04-28 | BJ122: F | BK122: T | BL122: F | BM122: 18 | BN122: F | BO122: .F | BP122: S | BQ122: T | BR122: T | BS122: T
A123: 2026-04-29 | B123: Mi | C123: 12 | D123: 12 | E123: 11 | F123: =COUNTIF($I123:L123,"f*")+COUNTIF($AA123:$AD123,"f*")+COUNTIF($AR123:$AU123,"f*") -> 3 | G123: =COUNTIF($I123:L123,"s*")+COUNTIF($AA123:$AD123,"s*")+COUNTIF($AR123:$AU123,"s*") -> 4 | H123: =COUNTIF($I123:L123,"n*")+COUNTIF($AA123:$AD123,"n*")+COUNTIF($AR123:$AU123,"n*") -> 4 | I123: N | J123: N | K123: N | L123: N | M123: N | N123: .N | O123: N | P123: N | Q123: N | R123: N | S123: .N | T123: N | U123: N | V123: N | W123: N | X123: .N | Y123: N | Z123: N | AA123: F | AB123: F | AC123: F | AD123: .F | AE123: F | AF123: F | AG123: F | AH123: F | AI123: F | AJ123: F | AK123: .F | AL123: F | AM123: F | AN123: F | AO123: F | AP123: F | AQ123: F | AR123: S | AS123: S | AT123: S | AU123: S | AV123: S | AW123: S | AX123: S | AY123: S | AZ123: S | BA123: S | BB123: S | BC123: S | BD123: S | BE123: S | BF123: S | BG123: S | BH123: Mi | BI123: 2026-04-29 | BJ123: F | BK123: T | BL123: F | BM123: 18 | BN123: F | BO123: .F | BP123: S | BQ123: T | BR123: T | BS123: T
A124: 2026-04-30 | B124: Do | C124: 12 | D124: 12 | E124: 11 | F124: =COUNTIF($I124:L124,"f*")+COUNTIF($AA124:$AD124,"f*")+COUNTIF($AR124:$AU124,"f*") -> 3 | G124: =COUNTIF($I124:L124,"s*")+COUNTIF($AA124:$AD124,"s*")+COUNTIF($AR124:$AU124,"s*") -> 4 | H124: =COUNTIF($I124:L124,"n*")+COUNTIF($AA124:$AD124,"n*")+COUNTIF($AR124:$AU124,"n*") -> 4 | I124: N | J124: N | K124: N | L124: N | M124: N | N124: .N | O124: N | P124: N | Q124: N | R124: N | S124: .N | T124: N | U124: N | V124: N | W124: N | X124: .N | Y124: N | Z124: N | AA124: F | AB124: F | AC124: F | AD124: .F | AE124: F | AF124: F | AG124: F | AH124: F | AI124: F | AJ124: F | AK124: .F | AL124: F | AM124: F | AN124: F | AO124: F | AP124: F | AQ124: F | AR124: S | AS124: S | AT124: S | AU124: S | AV124: S | AW124: S | AX124: S | AY124: S | AZ124: S | BA124: S | BB124: S | BC124: S | BD124: S | BE124: S | BF124: S | BG124: S | BH124: Do | BI124: 2026-04-30 | BJ124: F | BK124: T | BL124: F | BM124: 18 | BN124: F | BO124: .F | BP124: S | BQ124: T | BR124: T | BS124: T
A125: 2026-05-01 | B125: Fr | C125: 12 | D125: 12 | E125: 11 | F125: =COUNTIF($I125:L125,"f*")+COUNTIF($AA125:$AD125,"f*")+COUNTIF($AR125:$AU125,"f*") -> 3 | G125: =COUNTIF($I125:L125,"s*")+COUNTIF($AA125:$AD125,"s*")+COUNTIF($AR125:$AU125,"s*") -> 4 | H125: =COUNTIF($I125:L125,"n*")+COUNTIF($AA125:$AD125,"n*")+COUNTIF($AR125:$AU125,"n*") -> 4 | I125: N | J125: N | K125: N | L125: N | M125: N | N125: .N | O125: N | P125: N | Q125: N | R125: N | S125: .N | T125: N | U125: N | V125: N | W125: N | X125: .N | Y125: N | Z125: N | AA125: F | AB125: F | AC125: F | AD125: .F | AE125: F | AF125: F | AG125: F | AH125: F | AI125: F | AJ125: F | AK125: .F | AL125: F | AM125: F | AN125: F | AO125: F | AP125: F | AQ125: F | AR125: S | AS125: S | AT125: S | AU125: S | AV125: S | AW125: S | AX125: S | AY125: S | AZ125: S | BA125: S | BB125: S | BC125: S | BD125: S | BE125: S | BF125: S | BG125: S | BH125: Fr | BI125: 2026-05-01 | BJ125: H | BK125: H | BL125: H | BM125: 18 | BN125: F | BO125: .F | BP125: S | BQ125: H | BR125: H | BS125: H
A126: 2026-05-02 | B126: Sa | C126: 1 | D126: 0 | E126: 0 | F126: =COUNTIF($I126:L126,"f*")+COUNTIF($AA126:$AD126,"f*")+COUNTIF($AR126:$AU126,"f*") -> 0 | G126: =COUNTIF($I126:L126,"s*")+COUNTIF($AA126:$AD126,"s*")+COUNTIF($AR126:$AU126,"s*") -> 0 | H126: =COUNTIF($I126:L126,"n*")+COUNTIF($AA126:$AD126,"n*")+COUNTIF($AR126:$AU126,"n*") -> 0 | AF126: F | BH126: Sa | BI126: 2026-05-02 | BM126: 19
A127: 2026-05-03 | B127: So | C127: 0 | D127: 0 | E127: 1 | F127: =COUNTIF($I127:L127,"f*")+COUNTIF($AA127:$AD127,"f*")+COUNTIF($AR127:$AU127,"f*") -> 0 | G127: =COUNTIF($I127:L127,"s*")+COUNTIF($AA127:$AD127,"s*")+COUNTIF($AR127:$AU127,"s*") -> 0 | H127: =COUNTIF($I127:L127,"n*")+COUNTIF($AA127:$AD127,"n*")+COUNTIF($AR127:$AU127,"n*") -> 0 | AE127: N | BH127: So | BI127: 2026-05-03 | BM127: 19
A128: 2026-05-04 | B128: Mo | C128: 12 | D128: 11 | E128: 10 | F128: =COUNTIF($I128:L128,"f*")+COUNTIF($AA128:$AD128,"f*")+COUNTIF($AR128:$AU128,"f*") -> 4 | G128: =COUNTIF($I128:L128,"s*")+COUNTIF($AA128:$AD128,"s*")+COUNTIF($AR128:$AU128,"s*") -> 4 | H128: =COUNTIF($I128:L128,"n*")+COUNTIF($AA128:$AD128,"n*")+COUNTIF($AR128:$AU128,"n*") -> 2 | I128: S | J128: S | K128: S | L128: S | M128: S | N128: .S | O128: S | P128: S | Q128: S | R128: S | S128: .S | T128: S | U128: S | V128: S | W128: S | X128: .S | Y128: S | Z128: S | AA128: A | AB128: N | AC128: N | AD128: .N | AE128: N | AF128: N | AG128: N | AH128: N | AI128: A | AJ128: N | AK128: .N | AL128: N | AM128: N | AN128: N | AO128: N | AP128: A | AQ128: N | AR128: F | AS128: F+ | AT128: F | AU128: F | AV128: F | AW128: F | AX128: F | AY128: F | AZ128: F+ | BA128: F+ | BB128: F+ | BC128: F+ | BD128: F | BE128: F | BF128: F | BG128: F | BH128: Mo | BI128: 2026-05-04 | BJ128: F | BK128: T | BL128: F | BM128: 19 | BN128: S | BO128: .N | BP128: F | BQ128: T | BR128: T | BS128: T
A129: 2026-05-05 | B129: Di | C129: 11 | D129: 10 | E129: 11 | F129: =COUNTIF($I129:L129,"f*")+COUNTIF($AA129:$AD129,"f*")+COUNTIF($AR129:$AU129,"f*") -> 3 | G129: =COUNTIF($I129:L129,"s*")+COUNTIF($AA129:$AD129,"s*")+COUNTIF($AR129:$AU129,"s*") -> 4 | H129: =COUNTIF($I129:L129,"n*")+COUNTIF($AA129:$AD129,"n*")+COUNTIF($AR129:$AU129,"n*") -> 3 | I129: S | J129: S | K129: S | L129: S | M129: S | N129: .S | O129: U | P129: S | Q129: S | R129: S | S129: .S | T129: S | U129: S | V129: S | W129: S | X129: .S | Y129: S | Z129: S | AA129: N | AB129: N | AC129: N | AD129: .N | AE129: N | AF129: A | AG129: N | AH129: N | AI129: N | AJ129: N | AK129: .N | AL129: N | AM129: N | AN129: N | AO129: N | AP129: N | AQ129: N | AR129: F | AS129: A | AT129: F | AU129: F | AV129: F | AW129: F | AX129: F | AY129: F | AZ129: F | BA129: F | BB129: F | BC129: F | BD129: F | BE129: F | BF129: A | BG129: F | BH129: Di | BI129: 2026-05-05 | BJ129: F | BK129: T | BL129: F | BM129: 19 | BN129: S | BO129: .N | BP129: F | BQ129: T | BR129: T | BS129: T
A130: 2026-05-06 | B130: Mi | C130: 12 | D130: 10 | E130: 11 | F130: =COUNTIF($I130:L130,"f*")+COUNTIF($AA130:$AD130,"f*")+COUNTIF($AR130:$AU130,"f*") -> 3 | G130: =COUNTIF($I130:L130,"s*")+COUNTIF($AA130:$AD130,"s*")+COUNTIF($AR130:$AU130,"s*") -> 4 | H130: =COUNTIF($I130:L130,"n*")+COUNTIF($AA130:$AD130,"n*")+COUNTIF($AR130:$AU130,"n*") -> 3 | I130: S | J130: S | K130: S | L130: S | M130: S | N130: .S | O130: U | P130: S | Q130: S | R130: S | S130: .S | T130: S | U130: S | V130: S | W130: S | X130: .S | Y130: S | Z130: S | AA130: N | AB130: N | AC130: N | AD130: .N | AE130: N | AF130: N | AG130: N | AH130: N | AI130: N | AJ130: N | AK130: .N | AL130: N | AM130: N | AN130: N | AO130: N | AP130: N | AQ130: A | AR130: F | AS130: F | AT130: A | AU130: F | AV130: F | AW130: F | AX130: F | AY130: F | AZ130: F | BA130: F | BB130: F | BC130: F | BD130: F | BE130: F | BF130: F | BG130: F | BH130: Mi | BI130: 2026-05-06 | BJ130: F | BK130: T | BL130: F | BM130: 19 | BN130: S | BO130: .N | BP130: F | BQ130: T | BR130: T | BS130: T
A131: 2026-05-07 | B131: Do | C131: 12 | D131: 10 | E131: 12 | F131: =COUNTIF($I131:L131,"f*")+COUNTIF($AA131:$AD131,"f*")+COUNTIF($AR131:$AU131,"f*") -> 4 | G131: =COUNTIF($I131:L131,"s*")+COUNTIF($AA131:$AD131,"s*")+COUNTIF($AR131:$AU131,"s*") -> 4 | H131: =COUNTIF($I131:L131,"n*")+COUNTIF($AA131:$AD131,"n*")+COUNTIF($AR131:$AU131,"n*") -> 3 | I131: S | J131: S | K131: S | L131: S | M131: S | N131: .S | O131: U | P131: S | Q131: S | R131: S | S131: .S | T131: S | U131: S | V131: S | W131: S | X131: .S | Y131: S | Z131: S | AA131: N | AB131: N | AC131: N | AD131: .N | AE131: N | AF131: N | AG131: N | AH131: N | AI131: N | AJ131: N | AK131: .N | AL131: N | AM131: N | AN131: N | AO131: N | AP131: N | AQ131: N | AR131: F | AS131: F | AT131: F | AU131: F | AV131: F | AW131: F | AX131: F | AY131: F | AZ131: F | BA131: F | BB131: F | BC131: F | BD131: F | BE131: F | BF131: F | BG131: F | BH131: Do | BI131: 2026-05-07 | BJ131: F | BK131: T | BL131: F | BM131: 19 | BN131: S | BO131: .N | BP131: F | BQ131: T | BR131: T | BS131: T
A132: 2026-05-08 | B132: Fr | C132: 11 | D132: 10 | E132: 12 | F132: =COUNTIF($I132:L132,"f*")+COUNTIF($AA132:$AD132,"f*")+COUNTIF($AR132:$AU132,"f*") -> 4 | G132: =COUNTIF($I132:L132,"s*")+COUNTIF($AA132:$AD132,"s*")+COUNTIF($AR132:$AU132,"s*") -> 4 | H132: =COUNTIF($I132:L132,"n*")+COUNTIF($AA132:$AD132,"n*")+COUNTIF($AR132:$AU132,"n*") -> 2 | I132: S | J132: S | K132: S | L132: S | M132: S | N132: .S | O132: U | P132: S | Q132: S | R132: S | S132: .S | T132: S | U132: S | V132: S | W132: S | X132: .S | Y132: S | Z132: S | AA132: N | AB132: A | AC132: N | AD132: .N | AE132: N | AF132: N | AG132: N | AH132: N | AI132: N | AJ132: N | AK132: .N | AL132: N | AM132: N+ | AN132: N+ | AO132: N+ | AP132: N+ | AQ132: N+ | AR132: F | AS132: F | AT132: F | AU132: F | AV132: F | AW132: F | AX132: U | AY132: F | AZ132: F | BA132: F | BB132: F | BC132: F | BD132: F | BE132: F | BF132: F | BG132: F | BH132: Fr | BI132: 2026-05-08 | BJ132: F | BK132: T | BL132: F | BM132: 19 | BN132: S | BO132: .N | BP132: F | BQ132: T | BR132: T | BS132: T
A133: =A132+1 -> 2026-05-09 | B133: Sa | C133: =COUNTIF($M133:$Z133,"f*")+COUNTIF($AE133:$AQ133,"f*")+COUNTIF($AV133:$BG133,"f*") -> 1 | D133: =COUNTIF($M133:$Z133,"s*")+COUNTIF($AE133:$AQ133,"s*")+COUNTIF($AV133:$BG133,"s*") -> 0 | E133: =COUNTIF($M133:$Z133,"n*")+COUNTIF($AE133:$AQ133,"n*")+COUNTIF($AV133:$BG133,"n*") -> 0 | F133: =COUNTIF($I133:L133,"f*")+COUNTIF($AA133:$AD133,"f*")+COUNTIF($AR133:$AU133,"f*") -> 0 | G133: =COUNTIF($I133:L133,"s*")+COUNTIF($AA133:$AD133,"s*")+COUNTIF($AR133:$AU133,"s*") -> 0 | H133: =COUNTIF($I133:L133,"n*")+COUNTIF($AA133:$AD133,"n*")+COUNTIF($AR133:$AU133,"n*") -> 0 | AV133: F | BH133: =TEXT(A133,"TTT") -> Sa | BI133: =BI132+1 -> 2026-05-09 | BM133: 20
A134: 2026-05-10 | B134: So | C134: 0 | D134: 0 | E134: 1 | F134: =COUNTIF($I134:L134,"f*")+COUNTIF($AA134:$AD134,"f*")+COUNTIF($AR134:$AU134,"f*") -> 0 | G134: =COUNTIF($I134:L134,"s*")+COUNTIF($AA134:$AD134,"s*")+COUNTIF($AR134:$AU134,"s*") -> 0 | H134: =COUNTIF($I134:L134,"n*")+COUNTIF($AA134:$AD134,"n*")+COUNTIF($AR134:$AU134,"n*") -> 0 | AW134: N | BH134: So | BI134: 2026-05-10 | BM134: 20
A135: 2026-05-11 | B135: =TEXT(A135,"TTT") -> Mo | C135: 9 | D135: 12 | E135: 11 | F135: =COUNTIF($I135:L135,"f*")+COUNTIF($AA135:$AD135,"f*")+COUNTIF($AR135:$AU135,"f*") -> 4 | G135: =COUNTIF($I135:L135,"s*")+COUNTIF($AA135:$AD135,"s*")+COUNTIF($AR135:$AU135,"s*") -> 3 | H135: =COUNTIF($I135:L135,"n*")+COUNTIF($AA135:$AD135,"n*")+COUNTIF($AR135:$AU135,"n*") -> 4 | I135: F+ | J135: F | K135: F | L135: F | M135: F | N135: .F | O135: U | P135: F+ | Q135: F+ | R135: F | S135: .F+ | T135: F+ | U135: F+ | V135: F | W135: F | X135: .F | Y135: U | Z135: F | AA135: S | AB135: S | AC135: S | AD135: .S | AE135: S | AF135: S | AG135: S | AH135: S | AI135: S | AJ135: S | AK135: .S | AL135: S | AM135: S | AN135: S | AO135: S | AP135: S | AQ135: S | AR135: N | AS135: N | AT135: N | AU135: N | AV135: N | AW135: N | AX135: U | AY135: N | AZ135: N | BA135: N | BB135: N | BC135: N | BD135: N | BE135: N | BF135: N | BG135: N | BH135: Mo | BI135: 2026-05-11 | BJ135: A | BK135: U | BL135: F | BM135: 20 | BN135: F | BO135: .S | BP135: S | BQ135: T | BR135: T | BS135: T
A136: 2026-05-12 | B136: Di | C136: 9 | D136: 11 | E136: 10 | F136: =COUNTIF($I136:L136,"f*")+COUNTIF($AA136:$AD136,"f*")+COUNTIF($AR136:$AU136,"f*") -> 4 | G136: =COUNTIF($I136:L136,"s*")+COUNTIF($AA136:$AD136,"s*")+COUNTIF($AR136:$AU136,"s*") -> 3 | H136: =COUNTIF($I136:L136,"n*")+COUNTIF($AA136:$AD136,"n*")+COUNTIF($AR136:$AU136,"n*") -> 4 | I136: F | J136: F | K136: F | L136: F | M136: F | N136: .F | O136: U | P136: F | Q136: F | R136: F | S136: .F | T136: F | U136: F | V136: F | W136: F | X136: .F | Y136: U | Z136: F | AA136: S | AB136: S | AC136: S | AD136: .S | AE136: S | AF136: S | AG136: S | AH136: S | AI136: S | AJ136: S | AK136: .S | AL136: S | AM136: S | AN136: A | AO136: S | AP136: S | AQ136: S | AR136: N | AS136: N | AT136: N | AU136: N | AV136: N | AW136: A | AX136: U | AY136: N | AZ136: N | BA136: N | BB136: N | BC136: N | BD136: N | BE136: N | BF136: N | BG136: N | BH136: Di | BI136: 2026-05-12 | BJ136: F | BK136: U | BL136: F | BM136: 20 | BN136: F | BO136: .S | BP136: S | BQ136: T | BR136: T | BS136: T
A137: 2026-05-13 | B137: Mi | C137: 9 | D137: 12 | E137: 11 | F137: =COUNTIF($I137:L137,"f*")+COUNTIF($AA137:$AD137,"f*")+COUNTIF($AR137:$AU137,"f*") -> 4 | G137: =COUNTIF($I137:L137,"s*")+COUNTIF($AA137:$AD137,"s*")+COUNTIF($AR137:$AU137,"s*") -> 3 | H137: =COUNTIF($I137:L137,"n*")+COUNTIF($AA137:$AD137,"n*")+COUNTIF($AR137:$AU137,"n*") -> 4 | I137: F | J137: F | K137: F | L137: F | M137: F | N137: .F | O137: U | P137: F | Q137: F | R137: F | S137: .F | T137: F | U137: F | V137: F | W137: F | X137: .F | Y137: U | Z137: F | AA137: S | AB137: S | AC137: S | AD137: .S | AE137: S | AF137: S | AG137: S | AH137: S | AI137: S | AJ137: S | AK137: .S | AL137: S | AM137: S | AN137: S | AO137: S | AP137: S | AQ137: S | AR137: N | AS137: N | AT137: N | AU137: N | AV137: N | AW137: N | AX137: U | AY137: N | AZ137: N | BA137: N | BB137: N | BC137: N | BD137: N | BE137: N | BF137: N | BG137: N | BH137: Mi | BI137: 2026-05-13 | BJ137: F | BK137: U | BL137: F | BM137: =WEEKNUM(BI138) -> 20 | BN137: F | BO137: .S | BP137: S | BQ137: T | BR137: T | BS137: T
A138: 2026-05-14 | B138: Do | C138: 9 | D138: 12 | E138: 11 | F138: =COUNTIF($I138:L138,"f*")+COUNTIF($AA138:$AD138,"f*")+COUNTIF($AR138:$AU138,"f*") -> 4 | G138: =COUNTIF($I138:L138,"s*")+COUNTIF($AA138:$AD138,"s*")+COUNTIF($AR138:$AU138,"s*") -> 3 | H138: =COUNTIF($I138:L138,"n*")+COUNTIF($AA138:$AD138,"n*")+COUNTIF($AR138:$AU138,"n*") -> 4 | I138: F | J138: F | K138: F | L138: F | M138: F | N138: .F | O138: U | P138: F | Q138: F | R138: F | S138: .F | T138: F | U138: F | V138: F | W138: F | X138: .F | Y138: U | Z138: F | AA138: S | AB138: S | AC138: S | AD138: .S | AE138: S | AF138: S | AG138: S | AH138: S | AI138: S | AJ138: S | AK138: .S | AL138: S | AM138: S | AN138: S | AO138: S | AP138: S | AQ138: S | AR138: N | AS138: N | AT138: N | AU138: N | AV138: N | AW138: N | AX138: U | AY138: N | AZ138: N | BA138: N | BB138: N | BC138: N | BD138: N | BE138: N | BF138: N | BG138: N | BH138: Do | BI138: 2026-05-14 | BJ138: H | BK138: H | BL138: H | BM138: 20 | BN138: U | BO138: .S | BP138: S | BQ138: H | BR138: H | BS138: H
A139: 2026-05-15 | B139: Fr | C139: 9 | D139: 12 | E139: 11 | F139: =COUNTIF($I139:L139,"f*")+COUNTIF($AA139:$AD139,"f*")+COUNTIF($AR139:$AU139,"f*") -> 4 | G139: =COUNTIF($I139:L139,"s*")+COUNTIF($AA139:$AD139,"s*")+COUNTIF($AR139:$AU139,"s*") -> 3 | H139: =COUNTIF($I139:L139,"n*")+COUNTIF($AA139:$AD139,"n*")+COUNTIF($AR139:$AU139,"n*") -> 4 | I139: F | J139: F | K139: F | L139: F | M139: F | N139: .F | O139: U | P139: F | Q139: F | R139: F | S139: .F | T139: F | U139: F | V139: F | W139: F | X139: .F | Y139: U | Z139: F | AA139: S | AB139: S | AC139: S | AD139: .S | AE139: S | AF139: S | AG139: S | AH139: S | AI139: S | AJ139: S | AK139: .S | AL139: S | AM139: S | AN139: S | AO139: S | AP139: S | AQ139: S | AR139: N | AS139: N | AT139: N | AU139: N | AV139: N | AW139: N | AX139: U | AY139: N | AZ139: N | BA139: N | BB139: N | BC139: N | BD139: N+ | BE139: N+ | BF139: N+ | BG139: N+ | BH139: Fr | BI139: 2026-05-15 | BJ139: F | BK139: U | BL139: F | BM139: 20 | BN139: U | BO139: .S | BP139: S | BQ139: T | BR139: T | BS139: T
A140: =A139+1 -> 2026-05-16 | B140: Sa | C140: 1 | D140: 0 | E140: 0 | F140: =COUNTIF($I140:L140,"f*")+COUNTIF($AA140:$AD140,"f*")+COUNTIF($AR140:$AU140,"f*") -> 0 | G140: =COUNTIF($I140:L140,"s*")+COUNTIF($AA140:$AD140,"s*")+COUNTIF($AR140:$AU140,"s*") -> 0 | H140: =COUNTIF($I140:L140,"n*")+COUNTIF($AA140:$AD140,"n*")+COUNTIF($AR140:$AU140,"n*") -> 0 | M140: F | BH140: Sa | BI140: 2026-05-16 | BM140: 21
A141: 2026-05-17 | B141: So | C141: 0 | D141: 0 | E141: 1 | F141: =COUNTIF($I141:L141,"f*")+COUNTIF($AA141:$AD141,"f*")+COUNTIF($AR141:$AU141,"f*") -> 0 | G141: =COUNTIF($I141:L141,"s*")+COUNTIF($AA141:$AD141,"s*")+COUNTIF($AR141:$AU141,"s*") -> 0 | H141: =COUNTIF($I141:L141,"n*")+COUNTIF($AA141:$AD141,"n*")+COUNTIF($AR141:$AU141,"n*") -> 0 | M141: N | BH141: So | BI141: 2026-05-17 | BM141: 21
A142: 2026-05-18 | B142: Mo | C142: 12 | D142: 11 | E142: 11 | F142: =COUNTIF($I142:L142,"f*")+COUNTIF($AA142:$AD142,"f*")+COUNTIF($AR142:$AU142,"f*") -> 3 | G142: =COUNTIF($I142:L142,"s*")+COUNTIF($AA142:$AD142,"s*")+COUNTIF($AR142:$AU142,"s*") -> 3 | H142: =COUNTIF($I142:L142,"n*")+COUNTIF($AA142:$AD142,"n*")+COUNTIF($AR142:$AU142,"n*") -> 4 | I142: N | J142: N | K142: N | L142: N | M142: N | N142: .N | O142: N | P142: N | Q142: N | R142: N | S142: .N | T142: N | U142: N | V142: N | W142: N | X142: .N | Y142: N | Z142: N | AA142: F+ | AB142: F | AC142: F | AD142: .F | AE142: F | AF142: F | AG142: F | AH142: F+ | AI142: F | AJ142: F+ | AK142: .F | AL142: F+ | AM142: F | AN142: F | AO142: F | AP142: F | AQ142: F | AR142: S | AS142: S | AT142: u | AU142: S | AV142: S | AW142: S | AX142: S | AY142: S | AZ142: S | BA142: S | BB142: S | BC142: S | BD142: A | BE142: S | BF142: S | BG142: S | BH142: Mo | BI142: 2026-05-18 | BJ142: F | BK142: U | BL142: F | BM142: 21 | BN142: S | BO142: .F | BP142: F | BQ142: T | BR142: T | BS142: T
A143: 2026-05-19 | B143: Di | C143: 12 | D143: 12 | E143: 11 | F143: =COUNTIF($I143:L143,"f*")+COUNTIF($AA143:$AD143,"f*")+COUNTIF($AR143:$AU143,"f*") -> 3 | G143: =COUNTIF($I143:L143,"s*")+COUNTIF($AA143:$AD143,"s*")+COUNTIF($AR143:$AU143,"s*") -> 3 | H143: =COUNTIF($I143:L143,"n*")+COUNTIF($AA143:$AD143,"n*")+COUNTIF($AR143:$AU143,"n*") -> 4 | I143: N | J143: N | K143: N | L143: N | M143: N | N143: .N | O143: N | P143: N | Q143: N | R143: N | S143: .N | T143: N | U143: N | V143: N | W143: N | X143: .N | Y143: N | Z143: N | AA143: F | AB143: F | AC143: F | AD143: .F | AE143: F | AF143: F | AG143: F | AH143: F | AI143: F | AJ143: F | AK143: .F | AL143: F | AM143: F | AN143: F | AO143: F | AP143: F | AQ143: F | AR143: S | AS143: S | AT143: u | AU143: S | AV143: S | AW143: S | AX143: S | AY143: S | AZ143: S | BA143: S | BB143: S | BC143: S | BD143: S | BE143: S | BF143: S | BG143: S | BH143: Di | BI143: 2026-05-19 | BJ143: F | BK143: T | BL143: F | BM143: 21 | BN143: S | BO143: .F | BP143: F | BQ143: T | BR143: T | BS143: T
A144: 2026-05-20 | B144: Mi | C144: 12 | D144: 12 | E144: 11 | F144: =COUNTIF($I144:L144,"f*")+COUNTIF($AA144:$AD144,"f*")+COUNTIF($AR144:$AU144,"f*") -> 3 | G144: =COUNTIF($I144:L144,"s*")+COUNTIF($AA144:$AD144,"s*")+COUNTIF($AR144:$AU144,"s*") -> 3 | H144: =COUNTIF($I144:L144,"n*")+COUNTIF($AA144:$AD144,"n*")+COUNTIF($AR144:$AU144,"n*") -> 4 | I144: N | J144: N | K144: N | L144: N | M144: N | N144: .N | O144: N | P144: N | Q144: N | R144: N | S144: .N | T144: N | U144: N | V144: N | W144: N | X144: .N | Y144: N | Z144: N | AA144: F | AB144: F | AC144: F | AD144: .F | AE144: F | AF144: F | AG144: F | AH144: F | AI144: F | AJ144: F | AK144: .F | AL144: F | AM144: F | AN144: F | AO144: F | AP144: F | AQ144: F | AR144: S | AS144: S | AT144: u | AU144: S | AV144: S | AW144: S | AX144: S | AY144: S | AZ144: S | BA144: S | BB144: S | BC144: S | BD144: S | BE144: S | BF144: S | BG144: S | BH144: Mi | BI144: 2026-05-20 | BJ144: F | BK144: T | BL144: F | BM144: 21 | BN144: S | BO144: .F | BP144: F | BQ144: T | BR144: T | BS144: T
A145: 2026-05-21 | B145: Do | C145: 12 | D145: 11 | E145: 11 | F145: =COUNTIF($I145:L145,"f*")+COUNTIF($AA145:$AD145,"f*")+COUNTIF($AR145:$AU145,"f*") -> 3 | G145: =COUNTIF($I145:L145,"s*")+COUNTIF($AA145:$AD145,"s*")+COUNTIF($AR145:$AU145,"s*") -> 3 | H145: =COUNTIF($I145:L145,"n*")+COUNTIF($AA145:$AD145,"n*")+COUNTIF($AR145:$AU145,"n*") -> 4 | I145: N | J145: N | K145: N | L145: N | M145: N | N145: .N | O145: N | P145: N | Q145: N | R145: N | S145: .N | T145: N | U145: N | V145: N | W145: N | X145: .N | Y145: N | Z145: N | AA145: F | AB145: F | AC145: F | AD145: .F | AE145: F | AF145: F | AG145: F | AH145: F | AI145: F | AJ145: F | AK145: .F | AL145: F | AM145: F | AN145: F | AO145: F | AP145: F | AQ145: F | AR145: S | AS145: S | AT145: u | AU145: S | AV145: S | AW145: S | AX145: S | AY145: S | AZ145: S | BA145: S | BB145: A | BC145: S | BD145: S | BE145: S | BF145: S | BG145: S | BH145: Do | BI145: 2026-05-21 | BJ145: F | BK145: T | BL145: F | BM145: 21 | BN145: S | BO145: .F | BP145: F | BQ145: T | BR145: T | BS145: T
A146: 2026-05-22 | B146: Fr | C146: 12 | D146: 12 | E146: 11 | F146: =COUNTIF($I146:L146,"f*")+COUNTIF($AA146:$AD146,"f*")+COUNTIF($AR146:$AU146,"f*") -> 3 | G146: =COUNTIF($I146:L146,"s*")+COUNTIF($AA146:$AD146,"s*")+COUNTIF($AR146:$AU146,"s*") -> 3 | H146: =COUNTIF($I146:L146,"n*")+COUNTIF($AA146:$AD146,"n*")+COUNTIF($AR146:$AU146,"n*") -> 4 | I146: N | J146: N | K146: N | L146: N | M146: N | N146: .N | O146: N | P146: N | Q146: N | R146: N | S146: .N | T146: N | U146: N | V146: N | W146: N | X146: .N | Y146: N | Z146: N | AA146: F | AB146: F | AC146: F | AD146: .F | AE146: F | AF146: F | AG146: F | AH146: F | AI146: F | AJ146: F | AK146: .F | AL146: F | AM146: F | AN146: F | AO146: F | AP146: F | AQ146: F | AR146: S | AS146: S | AT146: u | AU146: S | AV146: S | AW146: S | AX146: S | AY146: S | AZ146: S | BA146: S | BB146: S | BC146: S | BD146: S | BE146: S | BF146: S | BG146: S | BH146: Fr | BI146: 2026-05-22 | BJ146: F | BK146: T | BL146: F | BM146: 21 | BN146: S | BO146: .F | BP146: F | BQ146: A | BR146: T | BS146: T
A147: 2026-05-23 | B147: Sa | C147: 1 | D147: 0 | E147: 0 | F147: =COUNTIF($I147:L147,"f*")+COUNTIF($AA147:$AD147,"f*")+COUNTIF($AR147:$AU147,"f*") -> 0 | G147: =COUNTIF($I147:L147,"s*")+COUNTIF($AA147:$AD147,"s*")+COUNTIF($AR147:$AU147,"s*") -> 0 | H147: =COUNTIF($I147:L147,"n*")+COUNTIF($AA147:$AD147,"n*")+COUNTIF($AR147:$AU147,"n*") -> 0 | AF147: F | BH147: Sa | BI147: 2026-05-23 | BM147: 22
A148: 2026-05-24 | B148: So | C148: 0 | D148: 0 | E148: 1 | F148: =COUNTIF($I148:L148,"f*")+COUNTIF($AA148:$AD148,"f*")+COUNTIF($AR148:$AU148,"f*") -> 0 | G148: =COUNTIF($I148:L148,"s*")+COUNTIF($AA148:$AD148,"s*")+COUNTIF($AR148:$AU148,"s*") -> 0 | H148: =COUNTIF($I148:L148,"n*")+COUNTIF($AA148:$AD148,"n*")+COUNTIF($AR148:$AU148,"n*") -> 0 | AG148: N | BH148: So | BI148: 2026-05-24 | BM148: 22
A149: 2026-05-25 | B149: Mo | C149: 12 | D149: 11 | E149: 12 | F149: =COUNTIF($I149:L149,"f*")+COUNTIF($AA149:$AD149,"f*")+COUNTIF($AR149:$AU149,"f*") -> 3 | G149: =COUNTIF($I149:L149,"s*")+COUNTIF($AA149:$AD149,"s*")+COUNTIF($AR149:$AU149,"s*") -> 4 | H149: =COUNTIF($I149:L149,"n*")+COUNTIF($AA149:$AD149,"n*")+COUNTIF($AR149:$AU149,"n*") -> 3 | I149: S | J149: S | K149: S | L149: S | M149: S | N149: .S | O149: S | P149: S | Q149: S | R149: S | S149: .S | T149: S | U149: S | V149: S | W149: S | X149: .S | Y149: S | Z149: S | AA149: N | AB149: N | AC149: N | AD149: .N | AE149: N | AF149: N | AG149: N | AH149: N | AI149: N | AJ149: N | AK149: .N | AL149: N | AM149: N | AN149: N | AO149: N | AP149: N | AQ149: N | AR149: F | AS149: F | AT149: u | AU149: F | AV149: F | AW149: F | AX149: F | AY149: F | AZ149: F+ | BA149: F+ | BB149: F+ | BC149: F+ | BD149: F | BE149: F | BF149: F | BG149: F | BH149: Mo | BI149: 2026-05-25 | BJ149: H | BK149: H | BL149: H | BM149: 22 | BN149: F | BO149: .N | BP149: S | BQ149: H | BR149: H | BS149: H
A150: 2026-05-26 | B150: Di | C150: 11 | D150: 10 | E150: 12 | F150: =COUNTIF($I150:L150,"f*")+COUNTIF($AA150:$AD150,"f*")+COUNTIF($AR150:$AU150,"f*") -> 3 | G150: =COUNTIF($I150:L150,"s*")+COUNTIF($AA150:$AD150,"s*")+COUNTIF($AR150:$AU150,"s*") -> 4 | H150: =COUNTIF($I150:L150,"n*")+COUNTIF($AA150:$AD150,"n*")+COUNTIF($AR150:$AU150,"n*") -> 3 | I150: S | J150: S | K150: S | L150: S | M150: S | N150: .S | O150: S | P150: S | Q150: S | R150: S | S150: .S | T150: S | U150: S | V150: A | W150: S | X150: .S | Y150: S | Z150: S | AA150: N | AB150: N | AC150: N | AD150: .N | AE150: N | AF150: N | AG150: N | AH150: N | AI150: N | AJ150: N | AK150: .N | AL150: N | AM150: N | AN150: N | AO150: N | AP150: N | AQ150: N | AR150: F | AS150: F | AT150: u | AU150: F | AV150: U | AW150: F | AX150: F | AY150: F | AZ150: F | BA150: F | BB150: F | BC150: F | BD150: F | BE150: F | BF150: F | BG150: F | BH150: Di | BI150: 2026-05-26 | BJ150: F | BK150: T | BL150: F | BM150: 22 | BN150: F | BO150: .N | BP150: S | BQ150: T | BR150: T | BS150: T
A151: 2026-05-27 | B151: Mi | C151: 10 | D151: 10 | E151: 12 | F151: =COUNTIF($I151:L151,"f*")+COUNTIF($AA151:$AD151,"f*")+COUNTIF($AR151:$AU151,"f*") -> 3 | G151: =COUNTIF($I151:L151,"s*")+COUNTIF($AA151:$AD151,"s*")+COUNTIF($AR151:$AU151,"s*") -> 4 | H151: =COUNTIF($I151:L151,"n*")+COUNTIF($AA151:$AD151,"n*")+COUNTIF($AR151:$AU151,"n*") -> 3 | I151: S | J151: S | K151: S | L151: S | M151: S | N151: .S | O151: S | P151: S | Q151: S | R151: S | S151: .S | T151: A | U151: S | V151: S | W151: S | X151: .S | Y151: S | Z151: S | AA151: N | AB151: N | AC151: N | AD151: .N | AE151: N | AF151: N | AG151: N | AH151: N | AI151: N | AJ151: N | AK151: .N | AL151: N | AM151: N | AN151: N | AO151: N | AP151: N | AQ151: N | AR151: F | AS151: F | AT151: u | AU151: F | AV151: U | AW151: F | AX151: F | AY151: F | AZ151: F | BA151: F | BB151: F | BC151: F | BD151: F | BE151: F | BF151: F | BG151: U | BH151: Mi | BI151: 2026-05-27 | BJ151: F | BK151: T | BL151: F | BM151: 22 | BN151: F | BO151: .N | BP151: S | BQ151: T | BR151: T | BS151: T
A152: 2026-05-28 | B152: Do | C152: 11 | D152: 11 | E152: 12 | F152: =COUNTIF($I152:L152,"f*")+COUNTIF($AA152:$AD152,"f*")+COUNTIF($AR152:$AU152,"f*") -> 3 | G152: =COUNTIF($I152:L152,"s*")+COUNTIF($AA152:$AD152,"s*")+COUNTIF($AR152:$AU152,"s*") -> 4 | H152: =COUNTIF($I152:L152,"n*")+COUNTIF($AA152:$AD152,"n*")+COUNTIF($AR152:$AU152,"n*") -> 3 | I152: S | J152: S | K152: S | L152: S | M152: S | N152: .S | O152: S | P152: S | Q152: S | R152: S | S152: .S | T152: S | U152: S | V152: S | W152: S | X152: .S | Y152: S | Z152: S | AA152: N | AB152: N | AC152: N | AD152: .N | AE152: N | AF152: N | AG152: N | AH152: N | AI152: N | AJ152: N | AK152: .N | AL152: N | AM152: N | AN152: N | AO152: N | AP152: N | AQ152: N | AR152: F | AS152: F | AT152: u | AU152: F | AV152: U | AW152: F | AX152: F | AY152: F | AZ152: F | BA152: F | BB152: F | BC152: F | BD152: F | BE152: F | BF152: F | BG152: F | BH152: Do | BI152: 2026-05-28 | BJ152: F | BK152: T | BL152: F | BM152: 22 | BN152: F | BO152: .N | BP152: S | BQ152: T | BR152: T | BS152: T
A153: 2026-05-29 | B153: Fr | C153: 11 | D153: 10 | E153: 12 | F153: =COUNTIF($I153:L153,"f*")+COUNTIF($AA153:$AD153,"f*")+COUNTIF($AR153:$AU153,"f*") -> 3 | G153: =COUNTIF($I153:L153,"s*")+COUNTIF($AA153:$AD153,"s*")+COUNTIF($AR153:$AU153,"s*") -> 4 | H153: =COUNTIF($I153:L153,"n*")+COUNTIF($AA153:$AD153,"n*")+COUNTIF($AR153:$AU153,"n*") -> 3 | I153: S | J153: S | K153: S | L153: S | M153: S | N153: .S | O153: S | P153: A | Q153: S | R153: S | S153: .S | T153: S | U153: S | V153: S | W153: S | X153: .S | Y153: S | Z153: S | AA153: N | AB153: N | AC153: N | AD153: .N | AE153: N | AF153: N | AG153: N | AH153: N | AI153: N | AJ153: N | AK153: .N | AL153: N | AM153: N+ | AN153: N+ | AO153: N+ | AP153: N+ | AQ153: N+ | AR153: F | AS153: F | AT153: u | AU153: F | AV153: U | AW153: F | AX153: F | AY153: F | AZ153: F | BA153: F | BB153: F | BC153: F | BD153: F | BE153: F | BF153: F | BG153: F | BH153: Fr | BI153: 2026-05-29 | BJ153: F | BK153: T | BL153: F | BM153: 22 | BN153: F | BO153: .N | BP153: S | BQ153: T | BR153: T | BS153: T
A154: 2026-05-30 | B154: Sa | C154: 1 | D154: 0 | E154: 0 | F154: =COUNTIF($I154:L154,"f*")+COUNTIF($AA154:$AD154,"f*")+COUNTIF($AR154:$AU154,"f*") -> 0 | G154: =COUNTIF($I154:L154,"s*")+COUNTIF($AA154:$AD154,"s*")+COUNTIF($AR154:$AU154,"s*") -> 0 | H154: =COUNTIF($I154:L154,"n*")+COUNTIF($AA154:$AD154,"n*")+COUNTIF($AR154:$AU154,"n*") -> 0 | AY154: F | BH154: Sa | BI154: 2026-05-30 | BM154: 23
A155: 2026-05-31 | B155: So | C155: 0 | D155: 0 | E155: 1 | F155: =COUNTIF($I155:L155,"f*")+COUNTIF($AA155:$AD155,"f*")+COUNTIF($AR155:$AU155,"f*") -> 0 | G155: =COUNTIF($I155:L155,"s*")+COUNTIF($AA155:$AD155,"s*")+COUNTIF($AR155:$AU155,"s*") -> 0 | H155: =COUNTIF($I155:L155,"n*")+COUNTIF($AA155:$AD155,"n*")+COUNTIF($AR155:$AU155,"n*") -> 0 | AX155: N | BH155: So | BI155: 2026-05-31 | BM155: 23
A156: 2026-06-01 | B156: Mo | C156: 11 | D156: 12 | E156: 12 | F156: =COUNTIF($I156:L156,"f*")+COUNTIF($AA156:$AD156,"f*")+COUNTIF($AR156:$AU156,"f*") -> 4 | G156: =COUNTIF($I156:L156,"s*")+COUNTIF($AA156:$AD156,"s*")+COUNTIF($AR156:$AU156,"s*") -> 2 | H156: =COUNTIF($I156:L156,"n*")+COUNTIF($AA156:$AD156,"n*")+COUNTIF($AR156:$AU156,"n*") -> 3 | I156: F | J156: F+ | K156: F | L156: F | M156: F | N156: .F | O156: F | P156: F+ | Q156: F+ | R156: F | S156: .F+ | T156: F+ | U156: F+ | V156: F | W156: F | X156: .F | Y156: F | Z156: F | AA156: S | AB156: A | AC156: S | AD156: .S | AE156: S | AF156: S | AG156: S | AH156: S | AI156: S | AJ156: S | AK156: .S | AL156: S | AM156: S | AN156: S | AO156: S | AP156: S | AQ156: S | AR156: N | AS156: u | AT156: N | AU156: N | AV156: N | AW156: N | AX156: N | AY156: N | AZ156: N | BA156: N | BB156: N | BC156: N | BD156: N | BE156: N | BF156: N | BG156: N | BH156: Mo | BI156: 2026-06-01 | BJ156: F | BK156: T | BL156: F | BM156: 23 | BN156: S | BO156: .S | BP156: F | BQ156: T | BR156: T | BS156: T
A157: 2026-06-02 | B157: Di | C157: 11 | D157: 10 | E157: 12 | F157: =COUNTIF($I157:L157,"f*")+COUNTIF($AA157:$AD157,"f*")+COUNTIF($AR157:$AU157,"f*") -> 4 | G157: =COUNTIF($I157:L157,"s*")+COUNTIF($AA157:$AD157,"s*")+COUNTIF($AR157:$AU157,"s*") -> 2 | H157: =COUNTIF($I157:L157,"n*")+COUNTIF($AA157:$AD157,"n*")+COUNTIF($AR157:$AU157,"n*") -> 3 | I157: F | J157: F | K157: F | L157: F | M157: F | N157: .F | O157: F | P157: F | Q157: F | R157: F | S157: .F | T157: F | U157: F | V157: F | W157: F | X157: .F | Y157: F | Z157: F | AA157: A | AB157: S | AC157: S | AD157: .S | AE157: S | AF157: S | AG157: S | AH157: S | AI157: A | AJ157: S | AK157: .S | AL157: S | AM157: S | AN157: S | AO157: S | AP157: A | AQ157: S | AR157: N | AS157: u | AT157: N | AU157: N | AV157: N | AW157: N | AX157: N | AY157: N | AZ157: N | BA157: N | BB157: N | BC157: N | BD157: N | BE157: N | BF157: N | BG157: N | BH157: Di | BI157: 2026-06-02 | BJ157: F | BK157: T | BL157: F | BM157: 23 | BN157: S | BO157: .S | BP157: F | BQ157: T | BR157: T | BS157: T
A158: 2026-06-03 | B158: Mi | C158: 10 | D158: 11 | E158: 11 | F158: =COUNTIF($I158:L158,"f*")+COUNTIF($AA158:$AD158,"f*")+COUNTIF($AR158:$AU158,"f*") -> 4 | G158: =COUNTIF($I158:L158,"s*")+COUNTIF($AA158:$AD158,"s*")+COUNTIF($AR158:$AU158,"s*") -> 3 | H158: =COUNTIF($I158:L158,"n*")+COUNTIF($AA158:$AD158,"n*")+COUNTIF($AR158:$AU158,"n*") -> 3 | I158: F | J158: F | K158: F | L158: F | M158: F | N158: .F | O158: F | P158: F | Q158: F | R158: F | S158: .F | T158: F | U158: F | V158: F | W158: F | X158: .F | Y158: A | Z158: F | AA158: S | AB158: S | AC158: S | AD158: .S | AE158: S | AF158: S | AG158: S | AH158: S | AI158: S | AJ158: S | AK158: .S | AL158: S | AM158: A | AN158: S | AO158: S | AP158: S | AQ158: S | AR158: N | AS158: A | AT158: N | AU158: N | AV158: N | AW158: N | AX158: N | AY158: N | AZ158: N | BA158: N | BB158: N | BC158: N | BD158: N | BE158: N | BF158: A | BG158: N | BH158: Mi | BI158: 2026-06-03 | BJ158: F | BK158: T | BL158: F | BM158: 23 | BN158: S | BO158: .S | BP158: F | BQ158: T | BR158: T | BS158: T
A159: 2026-06-04 | B159: Do | C159: 10 | D159: 12 | E159: 12 | F159: =COUNTIF($I159:L159,"f*")+COUNTIF($AA159:$AD159,"f*")+COUNTIF($AR159:$AU159,"f*") -> 4 | G159: =COUNTIF($I159:L159,"s*")+COUNTIF($AA159:$AD159,"s*")+COUNTIF($AR159:$AU159,"s*") -> 3 | H159: =COUNTIF($I159:L159,"n*")+COUNTIF($AA159:$AD159,"n*")+COUNTIF($AR159:$AU159,"n*") -> 2 | I159: F | J159: F | K159: F | L159: F | M159: F | N159: .F | O159: F | P159: F | Q159: F | R159: F | S159: .F | T159: F | U159: F | V159: F | W159: F | X159: .F | Y159: U | Z159: F | AA159: S | AB159: S | AC159: S | AD159: .S | AE159: S | AF159: S | AG159: S | AH159: S | AI159: S | AJ159: S | AK159: .S | AL159: S | AM159: S | AN159: S | AO159: S | AP159: S | AQ159: S | AR159: N | AS159: u | AT159: A | AU159: N | AV159: N | AW159: N | AX159: N | AY159: N | AZ159: N | BA159: N | BB159: N | BC159: N | BD159: N | BE159: N | BF159: N | BG159: N | BH159: Do | BI159: 2026-06-04 | BJ159: H | BK159: H | BL159: H | BM159: 23 | BN159: S | BO159: .S | BP159: F | BQ159: H | BR159: H | BS159: H
A160: 2026-06-05 | B160: Fr | C160: 10 | D160: 12 | E160: 12 | F160: =COUNTIF($I160:L160,"f*")+COUNTIF($AA160:$AD160,"f*")+COUNTIF($AR160:$AU160,"f*") -> 4 | G160: =COUNTIF($I160:L160,"s*")+COUNTIF($AA160:$AD160,"s*")+COUNTIF($AR160:$AU160,"s*") -> 3 | H160: =COUNTIF($I160:L160,"n*")+COUNTIF($AA160:$AD160,"n*")+COUNTIF($AR160:$AU160,"n*") -> 3 | I160: F | J160: F | K160: F | L160: F | M160: F | N160: .F | O160: F | P160: F | Q160: F | R160: F | S160: .F | T160: F | U160: F | V160: F | W160: F | X160: .F | Y160: U | Z160: F | AA160: S | AB160: S | AC160: S | AD160: .S | AE160: S | AF160: S | AG160: S | AH160: S | AI160: S | AJ160: S | AK160: .S | AL160: S | AM160: S | AN160: S | AO160: S | AP160: S | AQ160: S | AR160: N | AS160: u | AT160: N | AU160: N | AV160: N | AW160: N | AX160: N | AY160: N | AZ160: N | BA160: N | BB160: N | BC160: N | BD160: N+ | BE160: N+ | BF160: N+ | BG160: N+ | BH160: Fr | BI160: 2026-06-05 | BJ160: F | BK160: U | BL160: F | BM160: 23 | BN160: S | BO160: .S | BP160: U | BQ160: T | BR160: T | BS160: T
A161: 2026-06-06 | B161: Sa | C161: 1 | D161: 0 | E161: 0 | F161: =COUNTIF($I161:L161,"f*")+COUNTIF($AA161:$AD161,"f*")+COUNTIF($AR161:$AU161,"f*") -> 0 | G161: =COUNTIF($I161:L161,"s*")+COUNTIF($AA161:$AD161,"s*")+COUNTIF($AR161:$AU161,"s*") -> 0 | H161: =COUNTIF($I161:L161,"n*")+COUNTIF($AA161:$AD161,"n*")+COUNTIF($AR161:$AU161,"n*") -> 0 | M161: F | BH161: Sa | BI161: 2026-06-06 | BM161: 24
A162: 2026-06-07 | B162: So | C162: 0 | D162: 0 | E162: 1 | F162: =COUNTIF($I162:L162,"f*")+COUNTIF($AA162:$AD162,"f*")+COUNTIF($AR162:$AU162,"f*") -> 0 | G162: =COUNTIF($I162:L162,"s*")+COUNTIF($AA162:$AD162,"s*")+COUNTIF($AR162:$AU162,"s*") -> 0 | H162: =COUNTIF($I162:L162,"n*")+COUNTIF($AA162:$AD162,"n*")+COUNTIF($AR162:$AU162,"n*") -> 0 | O162: N | BH162: So | BI162: 2026-06-07 | BM162: 24
A163: 2026-06-08 | B163: Mo | C163: 11 | D163: 12 | E163: 11 | F163: =COUNTIF($I163:L163,"f*")+COUNTIF($AA163:$AD163,"f*")+COUNTIF($AR163:$AU163,"f*") -> 3 | G163: =COUNTIF($I163:L163,"s*")+COUNTIF($AA163:$AD163,"s*")+COUNTIF($AR163:$AU163,"s*") -> 3 | H163: =COUNTIF($I163:L163,"n*")+COUNTIF($AA163:$AD163,"n*")+COUNTIF($AR163:$AU163,"n*") -> 4 | I163: N | J163: N | K163: N | L163: N | M163: N | N163: .N | O163: N | P163: N | Q163: N | R163: N | S163: .N | T163: N | U163: N | V163: N | W163: N | X163: .N | Y163: N | Z163: N | AA163: F | AB163: F+ | AC163: F | AD163: .F | AE163: F | AF163: F | AG163: F | AH163: F+ | AI163: F | AJ163: U | AK163: .F | AL163: F+ | AM163: F | AN163: F | AO163: F | AP163: F | AQ163: F | AR163: S | AS163: u | AT163: S | AU163: S | AV163: S | AW163: S | AX163: S | AY163: S | AZ163: S | BA163: S | BB163: S | BC163: S | BD163: S | BE163: S | BF163: S | BG163: S | BH163: Mo | BI163: 2026-06-08 | BJ163: F | BK163: U | BL163: U | BM163: 24 | BN163: U | BO163: .F | BP163: S | BQ163: T | BR163: T | BS163: T
A164: 2026-06-09 | B164: Di | C164: 12 | D164: 12 | E164: 11 | F164: =COUNTIF($I164:L164,"f*")+COUNTIF($AA164:$AD164,"f*")+COUNTIF($AR164:$AU164,"f*") -> 3 | G164: =COUNTIF($I164:L164,"s*")+COUNTIF($AA164:$AD164,"s*")+COUNTIF($AR164:$AU164,"s*") -> 3 | H164: =COUNTIF($I164:L164,"n*")+COUNTIF($AA164:$AD164,"n*")+COUNTIF($AR164:$AU164,"n*") -> 4 | I164: N | J164: N | K164: N | L164: N | M164: N | N164: .N | O164: N | P164: N | Q164: N | R164: N | S164: .N | T164: N | U164: N | V164: N | W164: N | X164: .N | Y164: N | Z164: N | AA164: F | AB164: F | AC164: F | AD164: .F | AE164: F | AF164: F | AG164: F | AH164: F | AI164: F | AJ164: F | AK164: .F | AL164: F | AM164: F | AN164: F | AO164: F | AP164: F | AQ164: F | AR164: S | AS164: u | AT164: S | AU164: S | AV164: S | AW164: S | AX164: S | AY164: S | AZ164: S | BA164: S | BB164: S | BC164: S | BD164: S | BE164: S | BF164: S | BG164: S | BH164: Di | BI164: 2026-06-09 | BJ164: A | BK164: T | BL164: U | BM164: 24 | BN164: U | BO164: .F | BP164: S | BQ164: T | BR164: T | BS164: T
A165: 2026-06-10 | B165: Mi | C165: 11 | D165: 11 | E165: 11 | F165: =COUNTIF($I165:L165,"f*")+COUNTIF($AA165:$AD165,"f*")+COUNTIF($AR165:$AU165,"f*") -> 3 | G165: =COUNTIF($I165:L165,"s*")+COUNTIF($AA165:$AD165,"s*")+COUNTIF($AR165:$AU165,"s*") -> 3 | H165: =COUNTIF($I165:L165,"n*")+COUNTIF($AA165:$AD165,"n*")+COUNTIF($AR165:$AU165,"n*") -> 4 | I165: N | J165: N | K165: N | L165: N | M165: N | N165: .N | O165: N | P165: N | Q165: N | R165: N | S165: .N | T165: N | U165: N | V165: N | W165: N | X165: .N | Y165: N | Z165: N | AA165: F | AB165: F | AC165: F | AD165: .F | AE165: F | AF165: A | AG165: F | AH165: F | AI165: F | AJ165: F | AK165: .F | AL165: F | AM165: F | AN165: F | AO165: F | AP165: F | AQ165: F | AR165: S | AS165: u | AT165: S | AU165: S | AV165: S | AW165: A | AX165: S | AY165: S | AZ165: S | BA165: S | BB165: S | BC165: S | BD165: S | BE165: S | BF165: S | BG165: S | BH165: Mi | BI165: 2026-06-10 | BJ165: F | BK165: T | BL165: U | BM165: 24 | BN165: U | BO165: .F | BP165: S | BQ165: T | BR165: T | BS165: T
A166: =A165+1 -> 2026-06-11 | B166: Do | C166: 11 | D166: 12 | E166: 11 | F166: =COUNTIF($I166:L166,"f*")+COUNTIF($AA166:$AD166,"f*")+COUNTIF($AR166:$AU166,"f*") -> 3 | G166: =COUNTIF($I166:L166,"s*")+COUNTIF($AA166:$AD166,"s*")+COUNTIF($AR166:$AU166,"s*") -> 3 | H166: =COUNTIF($I166:L166,"n*")+COUNTIF($AA166:$AD166,"n*")+COUNTIF($AR166:$AU166,"n*") -> 4 | I166: N | J166: N | K166: N | L166: N | M166: N | N166: .N | O166: N | P166: N | Q166: N | R166: N | S166: .N | T166: N | U166: N | V166: N | W166: N | X166: .N | Y166: N | Z166: N | AA166: F | AB166: F | AC166: F | AD166: .F | AE166: F | AF166: F | AG166: F | AH166: F | AI166: F | AJ166: F | AK166: .F | AL166: F | AM166: F | AN166: F | AO166: F | AP166: F | AQ166: A | AR166: S | AS166: u | AT166: S | AU166: S | AV166: S | AW166: S | AX166: S | AY166: S | AZ166: S | BA166: S | BB166: S | BC166: S | BD166: S | BE166: S | BF166: S | BG166: S | BH166: Do | BI166: 2026-06-11 | BJ166: F | BK166: T | BL166: U | BM166: 24 | BN166: U | BO166: .F | BP166: S | BQ166: T | BR166: T | BS166: T
A167: 2026-06-12 | B167: Fr | C167: 12 | D167: 12 | E167: 11 | F167: =COUNTIF($I167:L167,"f*")+COUNTIF($AA167:$AD167,"f*")+COUNTIF($AR167:$AU167,"f*") -> 3 | G167: =COUNTIF($I167:L167,"s*")+COUNTIF($AA167:$AD167,"s*")+COUNTIF($AR167:$AU167,"s*") -> 3 | H167: =COUNTIF($I167:L167,"n*")+COUNTIF($AA167:$AD167,"n*")+COUNTIF($AR167:$AU167,"n*") -> 4 | I167: N | J167: N | K167: N | L167: N | M167: N | N167: .N | O167: N | P167: N | Q167: N | R167: N | S167: .N | T167: N | U167: N | V167: N | W167: N | X167: .N | Y167: N | Z167: N | AA167: F | AB167: F | AC167: F | AD167: .F | AE167: F | AF167: F | AG167: F | AH167: F | AI167: F | AJ167: F | AK167: .F | AL167: F | AM167: F | AN167: F | AO167: F | AP167: F | AQ167: F | AR167: S | AS167: u | AT167: S | AU167: S | AV167: S | AW167: S | AX167: S | AY167: S | AZ167: S | BA167: S | BB167: S | BC167: S | BD167: S | BE167: S | BF167: S | BG167: S | BH167: Fr | BI167: 2026-06-12 | BJ167: F | BK167: T | BL167: U | BM167: 24 | BN167: U | BO167: .F | BP167: S | BQ167: T | BR167: T | BS167: T
A168: 2026-06-13 | B168: Sa | C168: 1 | D168: 0 | E168: 0 | F168: =COUNTIF($I168:L168,"f*")+COUNTIF($AA168:$AD168,"f*")+COUNTIF($AR168:$AU168,"f*") -> 0 | G168: =COUNTIF($I168:L168,"s*")+COUNTIF($AA168:$AD168,"s*")+COUNTIF($AR168:$AU168,"s*") -> 0 | H168: =COUNTIF($I168:L168,"n*")+COUNTIF($AA168:$AD168,"n*")+COUNTIF($AR168:$AU168,"n*") -> 0 | AF168: F | BH168: Sa | BI168: 2026-06-13 | BM168: 25
A169: 2026-06-14 | B169: So | C169: 0 | D169: 0 | E169: 1 | F169: =COUNTIF($I169:L169,"f*")+COUNTIF($AA169:$AD169,"f*")+COUNTIF($AR169:$AU169,"f*") -> 0 | G169: =COUNTIF($I169:L169,"s*")+COUNTIF($AA169:$AD169,"s*")+COUNTIF($AR169:$AU169,"s*") -> 0 | H169: =COUNTIF($I169:L169,"n*")+COUNTIF($AA169:$AD169,"n*")+COUNTIF($AR169:$AU169,"n*") -> 0 | AG169: N | BH169: So | BI169: 2026-06-14 | BM169: 25
A170: 2026-06-15 | B170: Mo | C170: 12 | D170: 11 | E170: 11 | F170: =COUNTIF($I170:L170,"f*")+COUNTIF($AA170:$AD170,"f*")+COUNTIF($AR170:$AU170,"f*") -> 3 | G170: =COUNTIF($I170:L170,"s*")+COUNTIF($AA170:$AD170,"s*")+COUNTIF($AR170:$AU170,"s*") -> 2 | H170: =COUNTIF($I170:L170,"n*")+COUNTIF($AA170:$AD170,"n*")+COUNTIF($AR170:$AU170,"n*") -> 3 | I170: S | J170: S | K170: U | L170: U | M170: S | N170: .S | O170: S | P170: S | Q170: S | R170: S | S170: .S | T170: S | U170: S | V170: S | W170: S | X170: .S | Y170: S | Z170: S | AA170: N | AB170: N | AC170: N | AD170: .N | AE170: N | AF170: N | AG170: N | AH170: N | AI170: N | AJ170: N | AK170: .N | AL170: N | AM170: N | AN170: U | AO170: N | AP170: N | AQ170: N | AR170: F | AS170: u | AT170: F | AU170: F+ | AV170: F | AW170: F | AX170: F | AY170: F | AZ170: F+ | BA170: F+ | BB170: F+ | BC170: F+ | BD170: F | BE170: F | BF170: F | BG170: F | BH170: Mo | BI170: 2026-06-15 | BJ170: F | BK170: T | BL170: U | BM170: 25 | BN170: U | BO170: .N | BP170: F | BQ170: A | BR170: T | BS170: T
A171: 2026-06-16 | B171: Di | C171: 11 | D171: 11 | E171: 11 | F171: =COUNTIF($I171:L171,"f*")+COUNTIF($AA171:$AD171,"f*")+COUNTIF($AR171:$AU171,"f*") -> 3 | G171: =COUNTIF($I171:L171,"s*")+COUNTIF($AA171:$AD171,"s*")+COUNTIF($AR171:$AU171,"s*") -> 2 | H171: =COUNTIF($I171:L171,"n*")+COUNTIF($AA171:$AD171,"n*")+COUNTIF($AR171:$AU171,"n*") -> 3 | I171: S | J171: S | K171: U | L171: U | M171: S | N171: .S | O171: S | P171: S | Q171: S | R171: S | S171: .S | T171: S | U171: S | V171: S | W171: S | X171: .S | Y171: S | Z171: S | AA171: N | AB171: N | AC171: N | AD171: .N | AE171: N | AF171: N | AG171: N | AH171: N | AI171: N | AJ171: N | AK171: .N | AL171: N | AM171: N | AN171: U | AO171: N | AP171: N | AQ171: N | AR171: F | AS171: u | AT171: F | AU171: F | AV171: F | AW171: F | AX171: F | AY171: F | AZ171: F | BA171: F | BB171: F | BC171: F | BD171: A | BE171: F | BF171: F | BG171: F | BH171: Di | BI171: 2026-06-16 | BJ171: F | BK171: T | BL171: U | BM171: 25 | BN171: U | BO171: .N | BP171: F | BQ171: T | BR171: T | BS171: T
A172: 2026-06-17 | B172: Mi | C172: 12 | D172: 11 | E172: 11 | F172: =COUNTIF($I172:L172,"f*")+COUNTIF($AA172:$AD172,"f*")+COUNTIF($AR172:$AU172,"f*") -> 3 | G172: =COUNTIF($I172:L172,"s*")+COUNTIF($AA172:$AD172,"s*")+COUNTIF($AR172:$AU172,"s*") -> 2 | H172: =COUNTIF($I172:L172,"n*")+COUNTIF($AA172:$AD172,"n*")+COUNTIF($AR172:$AU172,"n*") -> 3 | I172: S | J172: S | K172: U | L172: U | M172: S | N172: .S | O172: S | P172: S | Q172: S | R172: S | S172: .S | T172: S | U172: S | V172: S | W172: S | X172: .S | Y172: S | Z172: S | AA172: N | AB172: N | AC172: N | AD172: .N | AE172: N | AF172: N | AG172: N | AH172: N | AI172: N | AJ172: N | AK172: .N | AL172: N | AM172: N | AN172: A | AO172: N | AP172: N | AQ172: N | AR172: F | AS172: u | AT172: F | AU172: F | AV172: F | AW172: F | AX172: F | AY172: F | AZ172: F | BA172: F | BB172: F | BC172: F | BD172: F | BE172: F | BF172: F | BG172: F | BH172: Mi | BI172: 2026-06-17 | BJ172: F | BK172: T | BL172: U | BM172: 25 | BN172: U | BO172: .N | BP172: F | BQ172: T | BR172: T | BS172: T
A173: 2026-06-18 | B173: Do | C173: 12 | D173: 11 | E173: 11 | F173: =COUNTIF($I173:L173,"f*")+COUNTIF($AA173:$AD173,"f*")+COUNTIF($AR173:$AU173,"f*") -> 3 | G173: =COUNTIF($I173:L173,"s*")+COUNTIF($AA173:$AD173,"s*")+COUNTIF($AR173:$AU173,"s*") -> 2 | H173: =COUNTIF($I173:L173,"n*")+COUNTIF($AA173:$AD173,"n*")+COUNTIF($AR173:$AU173,"n*") -> 3 | I173: S | J173: S | K173: U | L173: U | M173: S | N173: .S | O173: S | P173: S | Q173: S | R173: S | S173: .S | T173: S | U173: S | V173: S | W173: S | X173: .S | Y173: S | Z173: S | AA173: N | AB173: N | AC173: N | AD173: .N | AE173: N | AF173: N | AG173: N | AH173: N | AI173: N | AJ173: N | AK173: .N | AL173: N | AM173: N | AN173: U | AO173: N | AP173: N | AQ173: N | AR173: F | AS173: u | AT173: F | AU173: F | AV173: F | AW173: F | AX173: F | AY173: F | AZ173: F | BA173: F | BB173: F | BC173: F | BD173: F | BE173: F | BF173: F | BG173: F | BH173: Do | BI173: 2026-06-18 | BJ173: F | BK173: T | BL173: U | BM173: 25 | BN173: U | BO173: .N | BP173: F | BQ173: T | BR173: T | BS173: T
A174: 2026-06-19 | B174: Fr | C174: 11 | D174: 11 | E174: 10 | F174: =COUNTIF($I174:L174,"f*")+COUNTIF($AA174:$AD174,"f*")+COUNTIF($AR174:$AU174,"f*") -> 3 | G174: =COUNTIF($I174:L174,"s*")+COUNTIF($AA174:$AD174,"s*")+COUNTIF($AR174:$AU174,"s*") -> 2 | H174: =COUNTIF($I174:L174,"n*")+COUNTIF($AA174:$AD174,"n*")+COUNTIF($AR174:$AU174,"n*") -> 3 | I174: S | J174: S | K174: U | L174: U | M174: S | N174: .S | O174: S | P174: S | Q174: S | R174: S | S174: .S | T174: S | U174: S | V174: S | W174: S | X174: .S | Y174: S | Z174: S | AA174: N | AB174: N | AC174: N | AD174: .N | AE174: U | AF174: N | AG174: N | AH174: N | AI174: N | AJ174: N | AK174: .N | AL174: N | AM174: N+ | AN174: U | AO174: N+ | AP174: N+ | AQ174: N+ | AR174: F | AS174: u | AT174: F | AU174: F | AV174: F | AW174: F | AX174: F | AY174: F | AZ174: F | BA174: F | BB174: A | BC174: F | BD174: F | BE174: F | BF174: F | BG174: F | BH174: Fr | BI174: 2026-06-19 | BJ174: F | BK174: T | BL174: U | BM174: 25 | BN174: U | BO174: .N | BP174: F | BQ174: T | BR174: T | BS174: T
A175: 2026-06-20 | B175: Sa | C175: 1 | D175: 0 | E175: 0 | F175: =COUNTIF($I175:L175,"f*")+COUNTIF($AA175:$AD175,"f*")+COUNTIF($AR175:$AU175,"f*") -> 0 | G175: =COUNTIF($I175:L175,"s*")+COUNTIF($AA175:$AD175,"s*")+COUNTIF($AR175:$AU175,"s*") -> 0 | H175: =COUNTIF($I175:L175,"n*")+COUNTIF($AA175:$AD175,"n*")+COUNTIF($AR175:$AU175,"n*") -> 0 | AW175: F | BH175: Sa | BI175: 2026-06-20 | BM175: 26
A176: 2026-06-21 | B176: So | C176: 0 | D176: 0 | E176: 1 | F176: =COUNTIF($I176:L176,"f*")+COUNTIF($AA176:$AD176,"f*")+COUNTIF($AR176:$AU176,"f*") -> 0 | G176: =COUNTIF($I176:L176,"s*")+COUNTIF($AA176:$AD176,"s*")+COUNTIF($AR176:$AU176,"s*") -> 0 | H176: =COUNTIF($I176:L176,"n*")+COUNTIF($AA176:$AD176,"n*")+COUNTIF($AR176:$AU176,"n*") -> 0 | AV176: N | BH176: So | BI176: 2026-06-21 | BM176: 26
A177: 2026-06-22 | B177: Mo | C177: 10 | D177: 10 | E177: 12 | F177: =COUNTIF($I177:L177,"f*")+COUNTIF($AA177:$AD177,"f*")+COUNTIF($AR177:$AU177,"f*") -> 3 | G177: =COUNTIF($I177:L177,"s*")+COUNTIF($AA177:$AD177,"s*")+COUNTIF($AR177:$AU177,"s*") -> 3 | H177: =COUNTIF($I177:L177,"n*")+COUNTIF($AA177:$AD177,"n*")+COUNTIF($AR177:$AU177,"n*") -> 4 | I177: F | J177: F | K177: F+ | L177: U | M177: F | N177: .F | O177: F | P177: F+ | Q177: U | R177: F | S177: .F+ | T177: F+ | U177: F+ | V177: F | W177: F | X177: .F | Y177: F | Z177: F | AA177: S | AB177: S | AC177: S | AD177: .S | AE177: U | AF177: S | AG177: S | AH177: S | AI177: S | AJ177: S | AK177: .S | AL177: S | AM177: S | AN177: U | AO177: S | AP177: S | AQ177: S | AR177: N | AS177: N | AT177: N | AU177: N | AV177: N | AW177: N | AX177: N | AY177: N | AZ177: N | BA177: N | BB177: N | BC177: N | BD177: N | BE177: N | BF177: N | BG177: N | BH177: Mo | BI177: 2026-06-22 | BJ177: F | BK177: T | BL177: F | BM177: 26 | BN177: F | BO177: .S | BP177: S | BQ177: T | BR177: T | BS177: T
A178: 2026-06-23 | B178: Di | C178: 10 | D178: 11 | E178: 11 | F178: =COUNTIF($I178:L178,"f*")+COUNTIF($AA178:$AD178,"f*")+COUNTIF($AR178:$AU178,"f*") -> 3 | G178: =COUNTIF($I178:L178,"s*")+COUNTIF($AA178:$AD178,"s*")+COUNTIF($AR178:$AU178,"s*") -> 2 | H178: =COUNTIF($I178:L178,"n*")+COUNTIF($AA178:$AD178,"n*")+COUNTIF($AR178:$AU178,"n*") -> 4 | I178: F | J178: F | K178: F | L178: U | M178: F | N178: .F | O178: F | P178: F | Q178: U | R178: F | S178: .F | T178: F | U178: F | V178: F | W178: F | X178: .F | Y178: F | Z178: F | AA178: S | AB178: A | AC178: S | AD178: .S | AE178: U | AF178: S | AG178: S | AH178: S | AI178: S | AJ178: S | AK178: .S | AL178: S | AM178: S | AN178: S | AO178: S | AP178: S | AQ178: S | AR178: N | AS178: N | AT178: N | AU178: N | AV178: N | AW178: N | AX178: U | AY178: N | AZ178: N | BA178: N | BB178: N | BC178: N | BD178: N | BE178: N | BF178: N | BG178: N | BH178: Di | BI178: 2026-06-23 | BJ178: F | BK178: T | BL178: F | BM178: 26 | BN178: F | BO178: .S | BP178: S | BQ178: T | BR178: T | BS178: T
A179: 2026-06-24 | B179: Mi | C179: 10 | D179: 11 | E179: 11 | F179: =COUNTIF($I179:L179,"f*")+COUNTIF($AA179:$AD179,"f*")+COUNTIF($AR179:$AU179,"f*") -> 3 | G179: =COUNTIF($I179:L179,"s*")+COUNTIF($AA179:$AD179,"s*")+COUNTIF($AR179:$AU179,"s*") -> 3 | H179: =COUNTIF($I179:L179,"n*")+COUNTIF($AA179:$AD179,"n*")+COUNTIF($AR179:$AU179,"n*") -> 4 | I179: F | J179: F | K179: F | L179: U | M179: F | N179: .F | O179: F | P179: F | Q179: U | R179: F | S179: .F | T179: F | U179: F | V179: F | W179: F | X179: .F | Y179: F | Z179: F | AA179: S | AB179: S | AC179: S | AD179: .S | AE179: U | AF179: S | AG179: S | AH179: S | AI179: S | AJ179: S | AK179: .S | AL179: S | AM179: S | AN179: S | AO179: S | AP179: S | AQ179: S | AR179: N | AS179: N | AT179: N | AU179: N | AV179: N | AW179: N | AX179: U | AY179: N | AZ179: N | BA179: N | BB179: N | BC179: N | BD179: N | BE179: N | BF179: N | BG179: N | BH179: Mi | BI179: 2026-06-24 | BJ179: F | BK179: T | BL179: F | BM179: 26 | BN179: F | BO179: .S | BP179: S | BQ179: T | BR179: T | BS179: T
A180: 2026-06-25 | B180: Do | C180: 10 | D180: 11 | E180: 11 | F180: =COUNTIF($I180:L180,"f*")+COUNTIF($AA180:$AD180,"f*")+COUNTIF($AR180:$AU180,"f*") -> 3 | G180: =COUNTIF($I180:L180,"s*")+COUNTIF($AA180:$AD180,"s*")+COUNTIF($AR180:$AU180,"s*") -> 3 | H180: =COUNTIF($I180:L180,"n*")+COUNTIF($AA180:$AD180,"n*")+COUNTIF($AR180:$AU180,"n*") -> 4 | I180: F | J180: F | K180: F | L180: U | M180: F | N180: .F | O180: F | P180: F | Q180: U | R180: F | S180: .F | T180: F | U180: F | V180: F | W180: F | X180: .F | Y180: F | Z180: F | AA180: S | AB180: S | AC180: S | AD180: .S | AE180: U | AF180: S | AG180: S | AH180: S | AI180: S | AJ180: S | AK180: .S | AL180: S | AM180: S | AN180: S | AO180: S | AP180: S | AQ180: S | AR180: N | AS180: N | AT180: N | AU180: N | AV180: N | AW180: N | AX180: U | AY180: N | AZ180: N | BA180: N | BB180: N | BC180: N | BD180: N | BE180: N | BF180: N | BG180: N | BH180: Do | BI180: 2026-06-25 | BJ180: F | BK180: T | BL180: F | BM180: 26 | BN180: F | BO180: .S | BP180: S | BQ180: T | BR180: T | BS180: T
A181: 2026-06-26 | B181: Fr | C181: 10 | D181: 11 | E181: 11 | F181: =COUNTIF($I181:L181,"f*")+COUNTIF($AA181:$AD181,"f*")+COUNTIF($AR181:$AU181,"f*") -> 3 | G181: =COUNTIF($I181:L181,"s*")+COUNTIF($AA181:$AD181,"s*")+COUNTIF($AR181:$AU181,"s*") -> 3 | H181: =COUNTIF($I181:L181,"n*")+COUNTIF($AA181:$AD181,"n*")+COUNTIF($AR181:$AU181,"n*") -> 4 | I181: F | J181: F | K181: F | L181: U | M181: F | N181: .F | O181: F | P181: F | Q181: U | R181: F | S181: .F | T181: F | U181: F | V181: F | W181: F | X181: .F | Y181: F | Z181: F | AA181: S | AB181: S | AC181: S | AD181: .S | AE181: U | AF181: S | AG181: S | AH181: S | AI181: S | AJ181: S | AK181: .S | AL181: S | AM181: S | AN181: S | AO181: S | AP181: S | AQ181: S | AR181: N | AS181: N | AT181: N | AU181: N | AV181: N | AW181: N | AX181: U | AY181: N | AZ181: N | BA181: N | BB181: N | BC181: N | BD181: N+ | BE181: N+ | BF181: N+ | BG181: N+ | BH181: Fr | BI181: 2026-06-26 | BJ181: F | BK181: T | BL181: F | BM181: 26 | BN181: F | BO181: .S | BP181: S | BQ181: T | BR181: T | BS181: T
A182: 2026-06-27 | B182: Sa | C182: 1 | D182: 0 | E182: 0 | F182: =COUNTIF($I182:L182,"f*")+COUNTIF($AA182:$AD182,"f*")+COUNTIF($AR182:$AU182,"f*") -> 0 | G182: =COUNTIF($I182:L182,"s*")+COUNTIF($AA182:$AD182,"s*")+COUNTIF($AR182:$AU182,"s*") -> 0 | H182: =COUNTIF($I182:L182,"n*")+COUNTIF($AA182:$AD182,"n*")+COUNTIF($AR182:$AU182,"n*") -> 0 | O182: F | BH182: Sa | BI182: 2026-06-27 | BM182: 27
A183: 2026-06-28 | B183: So | C183: 0 | D183: 0 | E183: 1 | F183: =COUNTIF($I183:L183,"f*")+COUNTIF($AA183:$AD183,"f*")+COUNTIF($AR183:$AU183,"f*") -> 0 | G183: =COUNTIF($I183:L183,"s*")+COUNTIF($AA183:$AD183,"s*")+COUNTIF($AR183:$AU183,"s*") -> 0 | H183: =COUNTIF($I183:L183,"n*")+COUNTIF($AA183:$AD183,"n*")+COUNTIF($AR183:$AU183,"n*") -> 0 | M183: N | BH183: So | BI183: 2026-06-28 | BM183: 27
A184: 2026-06-29 | B184: Mo | C184: 11 | D184: 10 | E184: 9 | F184: =COUNTIF($I184:L184,"f*")+COUNTIF($AA184:$AD184,"f*")+COUNTIF($AR184:$AU184,"f*") -> 3 | G184: =COUNTIF($I184:L184,"s*")+COUNTIF($AA184:$AD184,"s*")+COUNTIF($AR184:$AU184,"s*") -> 4 | H184: =COUNTIF($I184:L184,"n*")+COUNTIF($AA184:$AD184,"n*")+COUNTIF($AR184:$AU184,"n*") -> 4 | I184: N | J184: N | K184: N | L184: N | M184: N | N184: .N | O184: N | P184: A | Q184: U | R184: N | S184: .N | T184: N | U184: N | V184: N | W184: N | X184: .N | Y184: N | Z184: N | AA184: F | AB184: F | AC184: F+ | AD184: .F+ | AE184: U | AF184: F | AG184: F | AH184: F+ | AI184: F | AJ184: F+ | AK184: .F | AL184: F+ | AM184: F | AN184: F | AO184: F | AP184: F | AQ184: F | AR184: S | AS184: S | AT184: S | AU184: S | AV184: S | AW184: S | AX184: U | AY184: U | AZ184: S | BA184: S | BB184: S | BC184: S | BD184: S | BE184: S | BF184: S | BG184: S | BH184: Mo | BI184: 2026-06-29 | BJ184: U | BK184: T | BL184: F | BM184: 27 | BN184: S | BO184: .F | BP184: F | BQ184: T | BR184: T | BS184: T
A185: 2026-06-30 | B185: Di | C185: 11 | D185: 10 | E185: 10 | F185: =COUNTIF($I185:L185,"f*")+COUNTIF($AA185:$AD185,"f*")+COUNTIF($AR185:$AU185,"f*") -> 3 | G185: =COUNTIF($I185:L185,"s*")+COUNTIF($AA185:$AD185,"s*")+COUNTIF($AR185:$AU185,"s*") -> 4 | H185: =COUNTIF($I185:L185,"n*")+COUNTIF($AA185:$AD185,"n*")+COUNTIF($AR185:$AU185,"n*") -> 4 | I185: N | J185: N | K185: N | L185: N | M185: N | N185: .N | O185: N | P185: N | Q185: U | R185: N | S185: .N | T185: N | U185: N | V185: N | W185: N | X185: .N | Y185: N | Z185: N | AA185: F | AB185: F | AC185: F | AD185: .F | AE185: U | AF185: F | AG185: F | AH185: F | AI185: F | AJ185: F | AK185: .F | AL185: F | AM185: F | AN185: F | AO185: F | AP185: F | AQ185: F | AR185: S | AS185: S | AT185: S | AU185: S | AV185: S | AW185: S | AX185: U | AY185: U | AZ185: S | BA185: S | BB185: S | BC185: S | BD185: S | BE185: S | BF185: S | BG185: S | BH185: Di | BI185: 2026-06-30 | BJ185: U | BK185: T | BL185: F | BM185: 27 | BN185: S | BO185: .F | BP185: F | BQ185: T | BR185: T | BS185: T
A186: 2026-07-01 | B186: Mi | C186: 10 | D186: 10 | E186: 9 | F186: =COUNTIF($I186:L186,"f*")+COUNTIF($AA186:$AD186,"f*")+COUNTIF($AR186:$AU186,"f*") -> 3 | G186: =COUNTIF($I186:L186,"s*")+COUNTIF($AA186:$AD186,"s*")+COUNTIF($AR186:$AU186,"s*") -> 4 | H186: =COUNTIF($I186:L186,"n*")+COUNTIF($AA186:$AD186,"n*")+COUNTIF($AR186:$AU186,"n*") -> 4 | I186: N | J186: N | K186: N | L186: N | M186: N | N186: .N | O186: N | P186: N | Q186: U | R186: N | S186: .N | T186: N | U186: N | V186: A | W186: N | X186: .N | Y186: N | Z186: N | AA186: F | AB186: F | AC186: F | AD186: .F | AE186: U | AF186: F | AG186: F | AH186: F | AI186: A | AJ186: F | AK186: .F | AL186: F | AM186: F | AN186: F | AO186: F | AP186: F | AQ186: F | AR186: S | AS186: S | AT186: S | AU186: S | AV186: S | AW186: S | AX186: U | AY186: U | AZ186: S | BA186: S | BB186: S | BC186: S | BD186: S | BE186: S | BF186: S | BG186: S | BH186: Mi | BI186: 2026-07-01 | BJ186: U | BK186: T | BL186: F | BM186: 27 | BN186: S | BO186: .F | BP186: F | BQ186: T | BR186: T | BS186: T
A187: 2026-07-02 | B187: Do | C187: 10 | D187: 9 | E187: 9 | F187: =COUNTIF($I187:L187,"f*")+COUNTIF($AA187:$AD187,"f*")+COUNTIF($AR187:$AU187,"f*") -> 2 | G187: =COUNTIF($I187:L187,"s*")+COUNTIF($AA187:$AD187,"s*")+COUNTIF($AR187:$AU187,"s*") -> 4 | H187: =COUNTIF($I187:L187,"n*")+COUNTIF($AA187:$AD187,"n*")+COUNTIF($AR187:$AU187,"n*") -> 4 | I187: N | J187: N | K187: N | L187: N | M187: N | N187: .N | O187: N | P187: N | Q187: U | R187: N | S187: .N | T187: A | U187: N | V187: N | W187: N | X187: .N | Y187: N | Z187: N | AA187: F | AB187: U | AC187: F | AD187: .F | AE187: U | AF187: F | AG187: F | AH187: F | AI187: F | AJ187: F | AK187: .F | AL187: F | AM187: F | AN187: A | AO187: F | AP187: F | AQ187: F | AR187: S | AS187: S | AT187: S | AU187: S | AV187: S | AW187: A | AX187: U | AY187: U | AZ187: S | BA187: S | BB187: S | BC187: S | BD187: S | BE187: S | BF187: S | BG187: S | BH187: Do | BI187: 2026-07-02 | BJ187: U | BK187: T | BL187: F | BM187: 27 | BN187: S | BO187: .F | BP187: F | BQ187: T | BR187: T | BS187: T
A188: 2026-07-03 | B188: Fr | C188: 10 | D188: 10 | E188: 10 | F188: =COUNTIF($I188:L188,"f*")+COUNTIF($AA188:$AD188,"f*")+COUNTIF($AR188:$AU188,"f*") -> 2 | G188: =COUNTIF($I188:L188,"s*")+COUNTIF($AA188:$AD188,"s*")+COUNTIF($AR188:$AU188,"s*") -> 4 | H188: =COUNTIF($I188:L188,"n*")+COUNTIF($AA188:$AD188,"n*")+COUNTIF($AR188:$AU188,"n*") -> 4 | I188: N | J188: N | K188: N | L188: N | M188: N | N188: .N | O188: N | P188: N | Q188: U | R188: N | S188: .N | T188: N | U188: N | V188: N | W188: N | X188: .N | Y188: N | Z188: N | AA188: F | AB188: U | AC188: F | AD188: .F | AE188: U | AF188: F | AG188: F | AH188: F | AI188: F | AJ188: U | AK188: .F | AL188: F | AM188: F | AN188: F | AO188: F | AP188: F | AQ188: F | AR188: S | AS188: S | AT188: S | AU188: S | AV188: S | AW188: S | AX188: U | AY188: U | AZ188: S | BA188: S | BB188: S | BC188: S | BD188: S | BE188: S | BF188: S | BG188: S | BH188: Fr | BI188: 2026-07-03 | BJ188: U | BK188: T | BL188: F | BM188: 27 | BN188: S | BO188: .F | BP188: F | BQ188: T | BR188: T | BS188: T
A189: 2026-07-04 | B189: Sa | C189: 1 | D189: 0 | E189: 0 | F189: =COUNTIF($I189:L189,"f*")+COUNTIF($AA189:$AD189,"f*")+COUNTIF($AR189:$AU189,"f*") -> 0 | G189: =COUNTIF($I189:L189,"s*")+COUNTIF($AA189:$AD189,"s*")+COUNTIF($AR189:$AU189,"s*") -> 0 | H189: =COUNTIF($I189:L189,"n*")+COUNTIF($AA189:$AD189,"n*")+COUNTIF($AR189:$AU189,"n*") -> 0 | AG189: F | BH189: Sa | BI189: 2026-07-04 | BM189: 28
A190: 2026-07-05 | B190: So | C190: 0 | D190: 0 | E190: 1 | F190: =COUNTIF($I190:L190,"f*")+COUNTIF($AA190:$AD190,"f*")+COUNTIF($AR190:$AU190,"f*") -> 0 | G190: =COUNTIF($I190:L190,"s*")+COUNTIF($AA190:$AD190,"s*")+COUNTIF($AR190:$AU190,"s*") -> 0 | H190: =COUNTIF($I190:L190,"n*")+COUNTIF($AA190:$AD190,"n*")+COUNTIF($AR190:$AU190,"n*") -> 0 | AF190: N | BH190: So | BI190: 2026-07-05 | BM190: 28
A191: 2026-07-06 | B191: Mo | C191: 10 | D191: 10 | E191: 12 | F191: =COUNTIF($I191:L191,"f*")+COUNTIF($AA191:$AD191,"f*")+COUNTIF($AR191:$AU191,"f*") -> 4 | G191: =COUNTIF($I191:L191,"s*")+COUNTIF($AA191:$AD191,"s*")+COUNTIF($AR191:$AU191,"s*") -> 4 | H191: =COUNTIF($I191:L191,"n*")+COUNTIF($AA191:$AD191,"n*")+COUNTIF($AR191:$AU191,"n*") -> 2 | I191: S | J191: S | K191: S | L191: S | M191: S | N191: .S | O191: S | P191: S | Q191: U | R191: S | S191: .S | T191: S | U191: S | V191: S | W191: S | X191: .S | Y191: S | Z191: S | AA191: N | AB191: U | AC191: N | AD191: .N | AE191: N | AF191: N | AG191: N | AH191: N | AI191: N | AJ191: N | AK191: .N | AL191: N | AM191: N | AN191: N | AO191: N | AP191: N | AQ191: N | AR191: F | AS191: F+ | AT191: F | AU191: F | AV191: F | AW191: F | AX191: U | AY191: U | AZ191: F+ | BA191: F+ | BB191: F+ | BC191: F+ | BD191: F | BE191: F | BF191: F | BG191: F | BH191: Mo | BI191: 2026-07-06 | BJ191: U | BK191: T | BL191: F | BM191: 28 | BN191: F | BO191: .N | BP191: S | BQ191: T | BR191: T | BS191: T
A192: 2026-07-07 | B192: Di | C192: 10 | D192: 10 | E192: 12 | F192: =COUNTIF($I192:L192,"f*")+COUNTIF($AA192:$AD192,"f*")+COUNTIF($AR192:$AU192,"f*") -> 4 | G192: =COUNTIF($I192:L192,"s*")+COUNTIF($AA192:$AD192,"s*")+COUNTIF($AR192:$AU192,"s*") -> 4 | H192: =COUNTIF($I192:L192,"n*")+COUNTIF($AA192:$AD192,"n*")+COUNTIF($AR192:$AU192,"n*") -> 2 | I192: S | J192: S | K192: S | L192: S | M192: S | N192: .S | O192: S | P192: S | Q192: U | R192: S | S192: .S | T192: S | U192: S | V192: S | W192: S | X192: .S | Y192: S | Z192: S | AA192: N | AB192: U | AC192: N | AD192: .N | AE192: N | AF192: N | AG192: N | AH192: N | AI192: N | AJ192: N | AK192: .N | AL192: N | AM192: N | AN192: N | AO192: N | AP192: N | AQ192: N | AR192: F | AS192: F | AT192: F | AU192: F | AV192: F | AW192: F | AX192: U | AY192: U | AZ192: F | BA192: F | BB192: F | BC192: F | BD192: F | BE192: F | BF192: F | BG192: F | BH192: Di | BI192: 2026-07-07 | BJ192: U | BK192: T | BL192: F | BM192: 28 | BN192: F | BO192: .N | BP192: S | BQ192: A | BR192: T | BS192: T
A193: 2026-07-08 | B193: Mi | C193: 10 | D193: 10 | E193: 11 | F193: =COUNTIF($I193:L193,"f*")+COUNTIF($AA193:$AD193,"f*")+COUNTIF($AR193:$AU193,"f*") -> 4 | G193: =COUNTIF($I193:L193,"s*")+COUNTIF($AA193:$AD193,"s*")+COUNTIF($AR193:$AU193,"s*") -> 4 | H193: =COUNTIF($I193:L193,"n*")+COUNTIF($AA193:$AD193,"n*")+COUNTIF($AR193:$AU193,"n*") -> 1 | I193: S | J193: S | K193: S | L193: S | M193: S | N193: .S | O193: S | P193: S | Q193: U | R193: S | S193: .S | T193: S | U193: S | V193: S | W193: S | X193: .S | Y193: S | Z193: S | AA193: A | AB193: U | AC193: N | AD193: .N | AE193: N | AF193: N | AG193: N | AH193: N | AI193: N | AJ193: N | AK193: .N | AL193: N | AM193: N | AN193: N | AO193: N | AP193: A | AQ193: N | AR193: F | AS193: F | AT193: F | AU193: F | AV193: F | AW193: F | AX193: U | AY193: U | AZ193: F | BA193: F | BB193: F | BC193: F | BD193: F | BE193: F | BF193: F | BG193: F | BH193: Mi | BI193: 2026-07-08 | BJ193: U | BK193: T | BL193: F | BM193: 28 | BN193: F | BO193: .N | BP193: S | BQ193: T | BR193: T | BS193: T
A194: 2026-07-09 | B194: Do | C194: 9 | D194: 9 | E194: 11 | F194: =COUNTIF($I194:L194,"f*")+COUNTIF($AA194:$AD194,"f*")+COUNTIF($AR194:$AU194,"f*") -> 3 | G194: =COUNTIF($I194:L194,"s*")+COUNTIF($AA194:$AD194,"s*")+COUNTIF($AR194:$AU194,"s*") -> 4 | H194: =COUNTIF($I194:L194,"n*")+COUNTIF($AA194:$AD194,"n*")+COUNTIF($AR194:$AU194,"n*") -> 2 | I194: S | J194: S | K194: S | L194: S | M194: S | N194: .S | O194: S | P194: S | Q194: U | R194: S | S194: .S | T194: S | U194: S | V194: S | W194: S | X194: .S | Y194: A | Z194: S | AA194: N | AB194: U | AC194: N | AD194: .N | AE194: N | AF194: N | AG194: N | AH194: N | AI194: N | AJ194: N | AK194: .N | AL194: N | AM194: A | AN194: N | AO194: N | AP194: N | AQ194: N | AR194: F | AS194: A | AT194: F | AU194: F | AV194: F | AW194: F | AX194: U | AY194: U | AZ194: F | BA194: F | BB194: F | BC194: F | BD194: F | BE194: F | BF194: A | BG194: F | BH194: Do | BI194: 2026-07-09 | BJ194: U | BK194: T | BL194: F | BM194: 28 | BN194: F | BO194: .N | BP194: S | BQ194: T | BR194: T | BS194: T
A195: 2026-07-10 | B195: Fr | C195: 10 | D195: 10 | E195: 12 | F195: =COUNTIF($I195:L195,"f*")+COUNTIF($AA195:$AD195,"f*")+COUNTIF($AR195:$AU195,"f*") -> 3 | G195: =COUNTIF($I195:L195,"s*")+COUNTIF($AA195:$AD195,"s*")+COUNTIF($AR195:$AU195,"s*") -> 4 | H195: =COUNTIF($I195:L195,"n*")+COUNTIF($AA195:$AD195,"n*")+COUNTIF($AR195:$AU195,"n*") -> 2 | I195: S | J195: S | K195: S | L195: S | M195: S | N195: .S | O195: S | P195: S | Q195: U | R195: S | S195: .S | T195: S | U195: S | V195: S | W195: S | X195: .S | Y195: S | Z195: S | AA195: N | AB195: U | AC195: N | AD195: .N | AE195: N | AF195: N | AG195: N | AH195: N | AI195: N | AJ195: N | AK195: .N | AL195: N | AM195: N+ | AN195: N+ | AO195: N+ | AP195: N+ | AQ195: N+ | AR195: F | AS195: F | AT195: A | AU195: F | AV195: F | AW195: F | AX195: U | AY195: U | AZ195: F | BA195: F | BB195: F | BC195: F | BD195: F | BE195: F | BF195: F | BG195: F | BH195: Fr | BI195: 2026-07-10 | BJ195: U | BK195: T | BL195: F | BM195: 28 | BN195: F | BO195: .N | BP195: S | BQ195: T | BR195: T | BS195: T
A196: 2026-07-11 | B196: Sa | C196: 1 | D196: 0 | E196: 0 | F196: =COUNTIF($I196:L196,"f*")+COUNTIF($AA196:$AD196,"f*")+COUNTIF($AR196:$AU196,"f*") -> 0 | G196: =COUNTIF($I196:L196,"s*")+COUNTIF($AA196:$AD196,"s*")+COUNTIF($AR196:$AU196,"s*") -> 0 | H196: =COUNTIF($I196:L196,"n*")+COUNTIF($AA196:$AD196,"n*")+COUNTIF($AR196:$AU196,"n*") -> 0 | AV196: F | BH196: Sa | BI196: 2026-07-11 | BM196: 29
A197: =A196+1 -> 2026-07-12 | B197: So | C197: =COUNTIF($M197:$Z197,"f*")+COUNTIF($AE197:$AQ197,"f*")+COUNTIF($AV197:$BG197,"f*") -> 0 | D197: =COUNTIF($M197:$Z197,"s*")+COUNTIF($AE197:$AQ197,"s*")+COUNTIF($AV197:$BG197,"s*") -> 0 | E197: =COUNTIF($M197:$Z197,"n*")+COUNTIF($AE197:$AQ197,"n*")+COUNTIF($AV197:$BG197,"n*") -> 1 | F197: =COUNTIF($I197:L197,"f*")+COUNTIF($AA197:$AD197,"f*")+COUNTIF($AR197:$AU197,"f*") -> 0 | G197: =COUNTIF($I197:L197,"s*")+COUNTIF($AA197:$AD197,"s*")+COUNTIF($AR197:$AU197,"s*") -> 0 | H197: =COUNTIF($I197:L197,"n*")+COUNTIF($AA197:$AD197,"n*")+COUNTIF($AR197:$AU197,"n*") -> 0 | AW197: N | BH197: =TEXT(A197,"TTT") -> So | BI197: =BI196+1 -> 2026-07-12 | BM197: 29
A198: 2026-07-13 | B198: Mo | C198: 10 | D198: 11 | E198: 12 | F198: =COUNTIF($I198:L198,"f*")+COUNTIF($AA198:$AD198,"f*")+COUNTIF($AR198:$AU198,"f*") -> 4 | G198: =COUNTIF($I198:L198,"s*")+COUNTIF($AA198:$AD198,"s*")+COUNTIF($AR198:$AU198,"s*") -> 2 | H198: =COUNTIF($I198:L198,"n*")+COUNTIF($AA198:$AD198,"n*")+COUNTIF($AR198:$AU198,"n*") -> 4 | I198: F+ | J198: F | K198: F | L198: F | M198: F | N198: .F | O198: F | P198: F+ | Q198: U | R198: F | S198: .F+ | T198: F+ | U198: F+ | V198: F | W198: F | X198: .F | Y198: F | Z198: F | AA198: S | AB198: U | AC198: S | AD198: .S | AE198: S | AF198: S | AG198: S | AH198: U | AI198: S | AJ198: S | AK198: .S | AL198: S | AM198: S | AN198: S | AO198: S | AP198: S | AQ198: S | AR198: N | AS198: N | AT198: N | AU198: N | AV198: N | AW198: N | AX198: N | AY198: N | AZ198: N | BA198: N | BB198: N | BC198: N | BD198: N | BE198: N | BF198: N | BG198: N | BH198: Mo | BI198: 2026-07-13 | BJ198: F | BK198: T | BL198: F | BM198: 29 | BN198: S | BO198: .S | BP198: F | BQ198: T | BR198: T | BS198: T
A199: 2026-07-14 | B199: =TEXT(A199,"TTT") -> Di | C199: 10 | D199: 11 | E199: 12 | F199: =COUNTIF($I199:L199,"f*")+COUNTIF($AA199:$AD199,"f*")+COUNTIF($AR199:$AU199,"f*") -> 4 | G199: =COUNTIF($I199:L199,"s*")+COUNTIF($AA199:$AD199,"s*")+COUNTIF($AR199:$AU199,"s*") -> 2 | H199: =COUNTIF($I199:L199,"n*")+COUNTIF($AA199:$AD199,"n*")+COUNTIF($AR199:$AU199,"n*") -> 4 | I199: F | J199: F | K199: F | L199: F | M199: F | N199: .F | O199: F | P199: F | Q199: U | R199: F | S199: .F | T199: F | U199: F | V199: F | W199: F | X199: .F | Y199: F | Z199: F | AA199: S | AB199: U | AC199: S | AD199: .S | AE199: S | AF199: S | AG199: S | AH199: U | AI199: S | AJ199: S | AK199: .S | AL199: S | AM199: S | AN199: S | AO199: S | AP199: S | AQ199: S | AR199: N | AS199: N | AT199: N | AU199: N | AV199: N | AW199: N | AX199: N | AY199: N | AZ199: N | BA199: N | BB199: N | BC199: N | BD199: N | BE199: N | BF199: N | BG199: N | BH199: Di | BI199: 2026-07-14 | BJ199: F | BK199: T | BL199: F | BM199: 29 | BN199: S | BO199: .S | BP199: F | BQ199: T | BR199: T | BS199: T
A200: 2026-07-15 | B200: Mi | C200: 10 | D200: 11 | E200: 11 | F200: =COUNTIF($I200:L200,"f*")+COUNTIF($AA200:$AD200,"f*")+COUNTIF($AR200:$AU200,"f*") -> 4 | G200: =COUNTIF($I200:L200,"s*")+COUNTIF($AA200:$AD200,"s*")+COUNTIF($AR200:$AU200,"s*") -> 2 | H200: =COUNTIF($I200:L200,"n*")+COUNTIF($AA200:$AD200,"n*")+COUNTIF($AR200:$AU200,"n*") -> 4 | I200: F | J200: F | K200: F | L200: F | M200: F | N200: .F | O200: F | P200: F | Q200: U | R200: F | S200: .F | T200: F | U200: F | V200: F | W200: F | X200: .F | Y200: F | Z200: F | AA200: S | AB200: A | AC200: S | AD200: .S | AE200: S | AF200: S | AG200: S | AH200: U | AI200: S | AJ200: S | AK200: .S | AL200: S | AM200: S | AN200: S | AO200: S | AP200: S | AQ200: S | AR200: N | AS200: N | AT200: N | AU200: N | AV200: N | AW200: N | AX200: N | AY200: N | AZ200: N | BA200: N | BB200: N | BC200: N | BD200: A | BE200: N | BF200: N | BG200: N | BH200: Mi | BI200: 2026-07-15 | BJ200: A | BK200: T | BL200: F | BM200: 29 | BN200: S | BO200: .S | BP200: F | BQ200: T | BR200: T | BS200: T
... 180 more rows

Sheet MA
C1: 43 | E1: Achtung:
C2: 27 | E2: Nach Veränderungen in der Personalliste, muß diese neu sortiert werden!
C3: 9 | E3: Sortiert wird aufsteigend nach der Spalte A (Personalnummer)
C4: 33 | E4: 1. Markieren des eingerahmten Bereichs
C5: 32 | E5: 2. Auf das Feld "Daten" gehen
C6: 52 | E6: 3. Im Abrollmenü "Sortieren..." wählen
C7: 15 | E7: 4. Sortieren nach Spalte A, Aufsteigend wählen
C8: 35
C9: 13 | E9: Es ist unbedingt erforderlich, daß für den Sortiervorgang die Spalten A, B und C markiert sind!
C10: 21
C11: 40
C12: 39 | E12: Zur Vorsicht gegen unbeabsichtigtes Löschen ist der Balttschutz aktiviert.
C13: 45 | E13: Kennwort: sp
C14: 22
C15: 16
C16: 20
C17: 49
C18: 56
C19: 17
C20: 58
C21: 34
C22: 42
C23: 62
C24: 59
C25: 50
C26: 25
C27: 70
C28: 64
C29: 63
C30: 54
C31: 69
C32: 28
C33: 41
C34: 67
C35: 10
C36: 26
C37: 68
C38: 23
C39: 11
C40: 66
C41: 71
C42: 48
C43: 36
C44: 46
C45: 29
C46: 51
C47: 31
C48: 53
C49: 55
C50: 38
C51: 47
C52: 12
C53: 18
C54: 57
C55: 44
C56: 24
C57: 30
C58: 37

Sheet Plan
A1: 2025 | C1: Schicht A | D1: Schicht B | E1: Schicht C
A2: 2025-01-01 | B2: =TEXT(A2,"TTT") -> Mi | C2: N | D2: F | E2: S
A3: =A2+1 -> 2025-01-02 | B3: =TEXT(A3,"TTT") -> Do | C3: N | D3: F | E3: S
A4: =A3+1 -> 2025-01-03 | B4: Fr | C4: N | D4: F | E4: S
A5: 2025-01-04 | B5: Sa
A6: 2025-01-05 | B6: So
A7: 2025-01-06 | B7: Mo | C7: S | D7: N | E7: F
A8: 2025-01-07 | B8: Di | C8: S | D8: N | E8: F
A9: 2025-01-08 | B9: Mi | C9: S | D9: N | E9: F
A10: 2025-01-09 | B10: Do | C10: S | D10: N | E10: F
A11: 2025-01-10 | B11: Fr | C11: S | D11: N | E11: F
A12: 2025-01-11 | B12: Sa
A13: 2025-01-12 | B13: So
A14: 2025-01-13 | B14: Mo | C14: F | D14: S | E14: N
A15: 2025-01-14 | B15: Di | C15: F | D15: S | E15: N
A16: 2025-01-15 | B16: Mi | C16: F | D16: S | E16: N
A17: 2025-01-16 | B17: Do | C17: F | D17: S | E17: N
A18: 2025-01-17 | B18: Fr | C18: F | D18: S | E18: N
A19: 2025-01-18 | B19: Sa
A20: 2025-01-19 | B20: So
A21: 2025-01-20 | B21: Mo | C21: N | D21: F | E21: S
A22: 2025-01-21 | B22: Di | C22: N | D22: F | E22: S
A23: 2025-01-22 | B23: Mi | C23: N | D23: F | E23: S
A24: 2025-01-23 | B24: Do | C24: N | D24: F | E24: S
A25: 2025-01-24 | B25: Fr | C25: N | D25: F | E25: S
A26: 2025-01-25 | B26: Sa
A27: 2025-01-26 | B27: So
A28: =A27+1 -> 2025-01-27 | B28: Mo | C28: S | D28: N | E28: F
A29: 2025-01-28 | B29: Di | C29: S | D29: N | E29: F
A30: 2025-01-29 | B30: Mi | C30: S | D30: N | E30: F
A31: 2025-01-30 | B31: Do | C31: S | D31: N | E31: F
A32: 2025-01-31 | B32: Fr | C32: S | D32: N | E32: F
A33: 2025-02-01 | B33: Sa
A34: 2025-02-02 | B34: So
A35: 2025-02-03 | B35: Mo | C35: F | D35: S | E35: N
A36: 2025-02-04 | B36: Di | C36: F | D36: S | E36: N
A37: 2025-02-05 | B37: Mi | C37: F | D37: S | E37: N
A38: 2025-02-06 | B38: Do | C38: F | D38: S | E38: N
A39: 2025-02-07 | B39: Fr | C39: F | D39: S | E39: N
A40: 2025-02-08 | B40: Sa
A41: 2025-02-09 | B41: So
A42: 2025-02-10 | B42: Mo | C42: N | D42: F | E42: S
A43: 2025-02-11 | B43: Di | C43: N | D43: F | E43: S
A44: 2025-02-12 | B44: Mi | C44: N | D44: F | E44: S
A45: 2025-02-13 | B45: Do | C45: N | D45: F | E45: S
A46: 2025-02-14 | B46: Fr | C46: N | D46: F | E46: S
A47: 2025-02-15 | B47: Sa
A48: 2025-02-16 | B48: So
A49: 2025-02-17 | B49: Mo | C49: S | D49: N | E49: F
A50: 2025-02-18 | B50: Di | C50: S | D50: N | E50: F
A51: 2025-02-19 | B51: Mi | C51: S | D51: N | E51: F
A52: 2025-02-20 | B52: Do | C52: S | D52: N | E52: F
A53: 2025-02-21 | B53: Fr | C53: S | D53: N | E53: F
A54: 2025-02-22 | B54: Sa
A55: 2025-02-23 | B55: So
A56: 2025-02-24 | B56: Mo | C56: F | D56: S | E56: N
A57: 2025-02-25 | B57: Di | C57: F | D57: S | E57: N
A58: 2025-02-26 | B58: Mi | C58: F | D58: S | E58: N
A59: 2025-02-27 | B59: Do | C59: F | D59: S | E59: N
A60: 2025-02-28 | B60: Fr | C60: F | D60: S | E60: N
A61: =A60+1 -> 2025-03-01 | B61: Sa
A62: =A61+1 -> 2025-03-02 | B62: So
A63: =A62+1 -> 2025-03-03 | B63: Mo | C63: N | D63: F | E63: S
A64: =A63+1 -> 2025-03-04 | B64: Di | C64: N | D64: F | E64: S
A65: =A64+1 -> 2025-03-05 | B65: Mi | C65: N | D65: F | E65: S
A66: 2025-03-06 | B66: Do | C66: N | D66: F | E66: S
A67: 2025-03-07 | B67: =TEXT(A67,"TTT") -> Fr | C67: N | D67: F | E67: S
A68: 2025-03-08 | B68: Sa
A69: 2025-03-09 | B69: So
A70: 2025-03-10 | B70: Mo | C70: S | D70: N | E70: F
A71: 2025-03-11 | B71: Di | C71: S | D71: N | E71: F
A72: 2025-03-12 | B72: Mi | C72: S | D72: N | E72: F
A73: 2025-03-13 | B73: Do | C73: S | D73: N | E73: F
A74: 2025-03-14 | B74: Fr | C74: S | D74: N | E74: F
A75: 2025-03-15 | B75: Sa
A76: 2025-03-16 | B76: So
A77: 2025-03-17 | B77: Mo | C77: F | D77: S | E77: N
A78: 2025-03-18 | B78: Di | C78: F | D78: S | E78: N
A79: 2025-03-19 | B79: Mi | C79: F | D79: S | E79: N
A80: 2025-03-20 | B80: Do | C80: F | D80: S | E80: N
A81: 2025-03-21 | B81: Fr | C81: F | D81: S | E81: N
A82: 2025-03-22 | B82: Sa
A83: 2025-03-23 | B83: So
A84: 2025-03-24 | B84: Mo | C84: N | D84: F | E84: S
A85: 2025-03-25 | B85: Di | C85: N | D85: F | E85: S
A86: 2025-03-26 | B86: Mi | C86: N | D86: F | E86: S
A87: 2025-03-27 | B87: Do | C87: N | D87: F | E87: S
A88: 2025-03-28 | B88: Fr | C88: N | D88: F | E88: S
A89: 2025-03-29 | B89: Sa
A90: 2025-03-30 | B90: So
A91: 2025-03-31 | B91: Mo | C91: S | D91: N | E91: F
A92: 2025-04-01 | B92: Di | C92: S | D92: N | E92: F
A93: 2025-04-02 | B93: Mi | C93: S | D93: N | E93: F
A94: 2025-04-03 | B94: Do | C94: S | D94: N | E94: F
A95: 2025-04-04 | B95: Fr | C95: S | D95: N | E95: F
A96: 2025-04-05 | B96: Sa
A97: 2025-04-06 | B97: So
A98: 2025-04-07 | B98: Mo | C98: F | D98: S | E98: N
A99: 2025-04-08 | B99: Di | C99: F | D99: S | E99: N
A100: 2025-04-09 | B100: Mi | C100: F | D100: S | E100: N
A101: 2025-04-10 | B101: Do | C101: F | D101: S | E101: N
A102: 2025-04-11 | B102: Fr | C102: F | D102: S | E102: N
A103: 2025-04-12 | B103: Sa
A104: 2025-04-13 | B104: So
A105: 2025-04-14 | B105: Mo | C105: N | D105: F | E105: S
A106: 2025-04-15 | B106: Di | C106: N | D106: F | E106: S
A107: 2025-04-16 | B107: Mi | C107: N | D107: F | E107: S
A108: 2025-04-17 | B108: Do | C108: N | D108: F | E108: S
A109: 2025-04-18 | B109: Fr | C109: N | D109: F | E109: S
A110: 2025-04-19 | B110: Sa
A111: 2025-04-20 | B111: So
A112: 2025-04-21 | B112: Mo | C112: S | D112: N | E112: F
A113: 2025-04-22 | B113: Di | C113: S | D113: N | E113: F
A114: 2025-04-23 | B114: Mi | C114: S | D114: N | E114: F
A115: 2025-04-24 | B115: Do | C115: S | D115: N | E115: F
A116: 2025-04-25 | B116: Fr | C116: S | D116: N | E116: F
A117: 2025-04-26 | B117: Sa
A118: 2025-04-27 | B118: So
A119: 2025-04-28 | B119: Mo | C119: F | D119: S | E119: N
A120: 2025-04-29 | B120: Di | C120: F | D120: S | E120: N
A121: 2025-04-30 | B121: Mi | C121: F | D121: S | E121: N
A122: 2025-05-01 | B122: Do | C122: F | D122: S | E122: N
A123: 2025-05-02 | B123: Fr | C123: F | D123: S | E123: N
A124: 2025-05-03 | B124: Sa
A125: 2025-05-04 | B125: So
A126: 2025-05-05 | B126: Mo | C126: N | D126: F | E126: S
A127: 2025-05-06 | B127: Di | C127: N | D127: F | E127: S
A128: 2025-05-07 | B128: Mi | C128: N | D128: F | E128: S
A129: =A128+1 -> 2025-05-08 | B129: Do | C129: N | D129: F | E129: S
A130: 2025-05-09 | B130: Fr | C130: N | D130: F | E130: S
A131: 2025-05-10 | B131: =TEXT(A131,"TTT") -> Sa
A132: 2025-05-11 | B132: So
A133: 2025-05-12 | B133: Mo | C133: S | D133: N | E133: F
A134: 2025-05-13 | B134: Di | C134: S | D134: N | E134: F
A135: 2025-05-14 | B135: Mi | C135: S | D135: N | E135: F
A136: 2025-05-15 | B136: Do | C136: S | D136: N | E136: F
A137: 2025-05-16 | B137: Fr | C137: S | D137: N | E137: F
A138: 2025-05-17 | B138: Sa
A139: 2025-05-18 | B139: So
A140: 2025-05-19 | B140: Mo | C140: F | D140: S | E140: N
A141: 2025-05-20 | B141: Di | C141: F | D141: S | E141: N
A142: 2025-05-21 | B142: Mi | C142: F | D142: S | E142: N
A143: 2025-05-22 | B143: Do | C143: F | D143: S | E143: N
A144: 2025-05-23 | B144: Fr | C144: F | D144: S | E144: N
A145: 2025-05-24 | B145: Sa
A146: 2025-05-25 | B146: So
A147: 2025-05-26 | B147: Mo | C147: N | D147: F | E147: S
A148: 2025-05-27 | B148: Di | C148: N | D148: F | E148: S
A149: 2025-05-28 | B149: Mi | C149: N | D149: F | E149: S
A150: 2025-05-29 | B150: Do | C150: N | D150: F | E150: S
A151: 2025-05-30 | B151: Fr | C151: N | D151: F | E151: S
A152: 2025-05-31 | B152: Sa
A153: 2025-06-01 | B153: So
A154: 2025-06-02 | B154: Mo | C154: S | D154: N | E154: F
A155: 2025-06-03 | B155: Di | C155: S | D155: N | E155: F
A156: 2025-06-04 | B156: Mi | C156: S | D156: N | E156: F
A157: 2025-06-05 | B157: Do | C157: S | D157: N | E157: F
A158: 2025-06-06 | B158: Fr | C158: S | D158: N | E158: F
A159: 2025-06-07 | B159: Sa
A160: 2025-06-08 | B160: So
A161: 2025-06-09 | B161: Mo | C161: F | D161: S | E161: N
A162: 2025-06-10 | B162: Di | C162: F | D162: S | E162: N
A163: 2025-06-11 | B163: Mi | C163: F | D163: S | E163: N
A164: 2025-06-12 | B164: Do | C164: F | D164: S | E164: N
A165: 2025-06-13 | B165: Fr | C165: F | D165: S | E165: N
A166: 2025-06-14 | B166: Sa
A167: 2025-06-15 | B167: So
A168: 2025-06-16 | B168: Mo | C168: N | D168: F | E168: S
A169: 2025-06-17 | B169: Di | C169: N | D169: F | E169: S
A170: 2025-06-18 | B170: Mi | C170: N | D170: F | E170: S
A171: 2025-06-19 | B171: Do | C171: N | D171: F | E171: S
A172: 2025-06-20 | B172: Fr | C172: N | D172: F | E172: S
A173: 2025-06-21 | B173: Sa
A174: 2025-06-22 | B174: So
A175: 2025-06-23 | B175: Mo | C175: S | D175: N | E175: F
A176: 2025-06-24 | B176: Di | C176: S | D176: N | E176: F
A177: 2025-06-25 | B177: Mi | C177: S | D177: N | E177: F
A178: 2025-06-26 | B178: Do | C178: S | D178: N | E178: F
A179: 2025-06-27 | B179: Fr | C179: S | D179: N | E179: F
A180: 2025-06-28 | B180: Sa
A181: 2025-06-29 | B181: So
A182: 2025-06-30 | B182: Mo | C182: F | D182: S | E182: N
A183: 2025-07-01 | B183: Di | C183: F | D183: S | E183: N
A184: 2025-07-02 | B184: Mi | C184: F | D184: S | E184: N
A185: 2025-07-03 | B185: Do | C185: F | D185: S | E185: N
A186: 2025-07-04 | B186: Fr | C186: F | D186: S | E186: N
A187: 2025-07-05 | B187: Sa
A188: 2025-07-06 | B188: So
A189: 2025-07-07 | B189: Mo | C189: N | D189: F | E189: S
A190: 2025-07-08 | B190: Di | C190: N | D190: F | E190: S
A191: 2025-07-09 | B191: Mi | C191: N | D191: F | E191: S
A192: 2025-07-10 | B192: Do | C192: N | D192: F | E192: S
A193: =A192+1 -> 2025-07-11 | B193: Fr | C193: N | D193: F | E193: S
A194: 2025-07-12 | B194: Sa
A195: 2025-07-13 | B195: =TEXT(A195,"TTT") -> So
A196: 2025-07-14 | B196: Mo | C196: S | D196: N | E196: F
A197: 2025-07-15 | B197: Di | C197: S | D197: N | E197: F
A198: 2025-07-16 | B198: Mi | C198: S | D198: N | E198: F
A199: 2025-07-17 | B199: Do | C199: S | D199: N | E199: F
A200: 2025-07-18 | B200: Fr | C200: S | D200: N | E200: F
... 167 more rows
